Body Name,Date Paid,Transaction Number,Amount,Supplier Name,Supplier Type,Expense Area,Cost Centre Description,Expense Type
Cambridgeshire County Council,08-Jan-18,25409675-16631870,-13409.8,Jackson Frameworks Ltd,Company,Local Infrastructure & Street Management,Local Projects,Capital WIP - roads  -  Construction cost
Cambridgeshire County Council,16-Jan-18,25577649-16679555,-11200,Poweri Services Ltd,Company,LGSS Managed,County Farms,County Farms Maintenance Planned
Cambridgeshire County Council,04-Jan-18,24864598-16595479,-10300.67,Mercer Limited,Trade Supplier,Corporate Services,Pensions Fund General,Pension Fund - Advisory costs
Cambridgeshire County Council,29-Jan-18,25483659-16752729,-9975,Methodist Homes For The Aged (Mha),Care Establishment,2 - Commissioning - Older people Pool,East Cambs - O P Team,Daycare
Cambridgeshire County Council,08-Jan-18,25409676-16631871,-9256.57,Jackson Frameworks Ltd,Company,Local Infrastructure & Street Management,Local Projects,Capital WIP - roads  -  Construction cost
Cambridgeshire County Council,08-Jan-18,25409674-16631869,-5447.32,Jackson Frameworks Ltd,Company,Local Infrastructure & Street Management,Local Projects,Capital WIP - roads  -  Construction cost
Cambridgeshire County Council,05-Jan-18,25271507-16627178,-4655,Brookdale Healthcare Limited,Care Establishment,2 - Operations - Learning Disability,LDP Huntingdonshire Locality - Care,Respite Independent Sector
Cambridgeshire County Council,05-Jan-18,25271524-16627195,-4655,Brookdale Healthcare Limited,Care Establishment,4 - Operations - Providers services,LDP Hunts special needs,Respite Independent Sector
Cambridgeshire County Council,05-Jan-18,25271525-16627196,-4655,Brookdale Healthcare Limited,Care Establishment,2 - Operations - Learning Disability,LDP Huntingdonshire Locality - Care,Respite Independent Sector
Cambridgeshire County Council,11-Jan-18,25557705-16658915,-4655,Brookdale Healthcare Limited,Care Establishment,4 - Operations - Providers services,LDP Hunts special needs,Respite Independent Sector
Cambridgeshire County Council,11-Jan-18,25557716-16658926,-4655,Brookdale Healthcare Limited,Care Establishment,2 - Operations - Learning Disability,LDP Huntingdonshire Locality - Care,Respite Independent Sector
Cambridgeshire County Council,18-Jan-18,25680468-16700416,-4655,Brookdale Healthcare Limited,Care Establishment,4 - Operations - Providers services,LDP Hunts special needs,Respite Independent Sector
Cambridgeshire County Council,18-Jan-18,25678575-16700397,-4655,Brookdale Healthcare Limited,Care Establishment,2 - Operations - Learning Disability,LDP Huntingdonshire Locality - Care,Respite Independent Sector
Cambridgeshire County Council,18-Jan-18,25678578-16700400,-4655,Brookdale Healthcare Limited,Care Establishment,4 - Operations - Providers services,LDP Hunts special needs,Respite Independent Sector
Cambridgeshire County Council,05-Jan-18,25271509-16627180,-4655,Brookdale Healthcare Limited,Care Establishment,2 - Operations - Learning Disability,LDP Huntingdonshire Locality - Care,Respite Independent Sector
Cambridgeshire County Council,05-Jan-18,25393265-16627202,-4655,Brookdale Healthcare Limited,Care Establishment,4 - Operations - Providers services,LDP Hunts special needs,Respite Independent Sector
Cambridgeshire County Council,05-Jan-18,25393280-16627213,-4655,Brookdale Healthcare Limited,Care Establishment,2 - Operations - Learning Disability,LDP Huntingdonshire Locality - Care,Respite Independent Sector
Cambridgeshire County Council,11-Jan-18,25557706-16658916,-4655,Brookdale Healthcare Limited,Care Establishment,2 - Operations - Learning Disability,LDP Huntingdonshire Locality - Care,Respite Independent Sector
Cambridgeshire County Council,18-Jan-18,25678576-16700398,-4655,Brookdale Healthcare Limited,Care Establishment,2 - Operations - Learning Disability,LDP Huntingdonshire Locality - Care,Respite Independent Sector
Cambridgeshire County Council,18-Jan-18,25680486-16700421,-4655,Brookdale Healthcare Limited,Care Establishment,4 - Operations - Providers services,LDP Hunts special needs,Respite Independent Sector
Cambridgeshire County Council,05-Jan-18,25271519-16627190,-4655,Brookdale Healthcare Limited,Care Establishment,2 - Operations - Learning Disability,LDP Huntingdonshire Locality - Care,Respite Independent Sector
Cambridgeshire County Council,05-Jan-18,25393268-16627205,-4655,Brookdale Healthcare Limited,Care Establishment,4 - Operations - Providers services,LDP Hunts special needs,Respite Independent Sector
Cambridgeshire County Council,05-Jan-18,25393289-16627220,-4655,Brookdale Healthcare Limited,Care Establishment,4 - Operations - Providers services,LDP Hunts special needs,Respite Independent Sector
Cambridgeshire County Council,05-Jan-18,25393271-16627206,-4655,Brookdale Healthcare Limited,Care Establishment,4 - Operations - Providers services,LDP Hunts special needs,Respite Independent Sector
Cambridgeshire County Council,05-Jan-18,25393272-16627207,-4655,Brookdale Healthcare Limited,Care Establishment,2 - Operations - Learning Disability,LDP Huntingdonshire Locality - Care,Respite Independent Sector
Cambridgeshire County Council,11-Jan-18,25557707-16658917,-4655,Brookdale Healthcare Limited,Care Establishment,2 - Operations - Learning Disability,LDP Huntingdonshire Locality - Care,Respite Independent Sector
Cambridgeshire County Council,11-Jan-18,25557711-16658921,-4655,Brookdale Healthcare Limited,Care Establishment,2 - Operations - Learning Disability,LDP Huntingdonshire Locality - Care,Respite Independent Sector
Cambridgeshire County Council,05-Jan-18,25271508-16627179,-4655,Brookdale Healthcare Limited,Care Establishment,4 - Operations - Providers services,LDP Hunts special needs,Respite Independent Sector
Cambridgeshire County Council,05-Jan-18,25271514-16627185,-4655,Brookdale Healthcare Limited,Care Establishment,4 - Operations - Providers services,LDP Hunts special needs,Respite Independent Sector
Cambridgeshire County Council,05-Jan-18,25271516-16627187,-4655,Brookdale Healthcare Limited,Care Establishment,4 - Operations - Providers services,LDP Hunts special needs,Respite Independent Sector
Cambridgeshire County Council,11-Jan-18,25557700-16658910,-4655,Brookdale Healthcare Limited,Care Establishment,2 - Operations - Learning Disability,LDP Huntingdonshire Locality - Care,Respite Independent Sector
Cambridgeshire County Council,11-Jan-18,25557704-16658914,-4655,Brookdale Healthcare Limited,Care Establishment,4 - Operations - Providers services,LDP Hunts special needs,Respite Independent Sector
Cambridgeshire County Council,18-Jan-18,25680484-16700420,-4655,Brookdale Healthcare Limited,Care Establishment,4 - Operations - Providers services,LDP Hunts special needs,Respite Independent Sector
Cambridgeshire County Council,05-Jan-18,25271512-16627183,-4655,Brookdale Healthcare Limited,Care Establishment,4 - Operations - Providers services,LDP Hunts special needs,Respite Independent Sector
Cambridgeshire County Council,05-Jan-18,25393276-16627209,-4655,Brookdale Healthcare Limited,Care Establishment,2 - Operations - Learning Disability,LDP Huntingdonshire Locality - Care,Respite Independent Sector
Cambridgeshire County Council,05-Jan-18,25393277-16627210,-4655,Brookdale Healthcare Limited,Care Establishment,4 - Operations - Providers services,LDP Hunts special needs,Respite Independent Sector
Cambridgeshire County Council,18-Jan-18,25678569-16700395,-4655,Brookdale Healthcare Limited,Care Establishment,2 - Operations - Learning Disability,LDP Huntingdonshire Locality - Care,Respite Independent Sector
Cambridgeshire County Council,18-Jan-18,25680481-16700419,-4655,Brookdale Healthcare Limited,Care Establishment,4 - Operations - Providers services,LDP Hunts special needs,Respite Independent Sector
Cambridgeshire County Council,05-Jan-18,25393290-16627221,-4655,Brookdale Healthcare Limited,Care Establishment,4 - Operations - Providers services,LDP Hunts special needs,Respite Independent Sector
Cambridgeshire County Council,11-Jan-18,25557708-16658918,-4655,Brookdale Healthcare Limited,Care Establishment,4 - Operations - Providers services,LDP Hunts special needs,Respite Independent Sector
Cambridgeshire County Council,11-Jan-18,25557715-16658925,-4655,Brookdale Healthcare Limited,Care Establishment,2 - Operations - Learning Disability,LDP Huntingdonshire Locality - Care,Respite Independent Sector
Cambridgeshire County Council,18-Jan-18,25680467-16700415,-4655,Brookdale Healthcare Limited,Care Establishment,2 - Operations - Learning Disability,LDP Huntingdonshire Locality - Care,Respite Independent Sector
Cambridgeshire County Council,10-Jan-18,25409680-16642965,-4213.44,Radis Community Care,Care Establishment,2 - Commissioning - Older people Pool,Hunts O P  Team,Supported Living
Cambridgeshire County Council,10-Jan-18,23480745-16642843,-4080,Liberty Services,Trade Supplier,Traffic Management & Road Safety,On Street Parking,Specialist equipment for service provision
Cambridgeshire County Council,16-Jan-18,25585672-16679587,-3666,Grange Academy,Education,S&C,Procurement - Out-County Mainstream,Education Recoupment
Cambridgeshire County Council,11-Jan-18,25549951-16655894,-3574.61,Conquest Care Homes Peterborough,Care Establishment,4 - Operations - Providers services,LDP E Cambs Special Needs,Residential Independent Sector
Cambridgeshire County Council,26-Jan-18,25741054-16749916,-3333,The Mary Hare Primary School,Education,S&C,Placements - Education,Independent School Placements
Cambridgeshire County Council,26-Jan-18,25741922-16749917,-3333,The Mary Hare Primary School,Education,S&C,Placements - Education,Independent School Placements
Cambridgeshire County Council,18-Jan-18,25678568-16700394,-3325,Brookdale Healthcare Limited,Care Establishment,2 - Operations - Learning Disability,LDP Huntingdonshire Locality - Care,Respite Independent Sector
Cambridgeshire County Council,05-Jan-18,25393279-16627212,-3325,Brookdale Healthcare Limited,Care Establishment,2 - Operations - Learning Disability,LDP Huntingdonshire Locality - Care,Respite Independent Sector
Cambridgeshire County Council,05-Jan-18,25271521-16627192,-3325,Brookdale Healthcare Limited,Care Establishment,4 - Operations - Providers services,LDP Hunts special needs,Respite Independent Sector
Cambridgeshire County Council,11-Jan-18,25557702-16658912,-3325,Brookdale Healthcare Limited,Care Establishment,2 - Operations - Learning Disability,LDP Huntingdonshire Locality - Care,Respite Independent Sector
Cambridgeshire County Council,11-Jan-18,25396205-16649171,-2977.44,Decoy Farm,Care Establishment,4 - Operations - Providers services,LDP E Cambs Special Needs,Residential Independent Sector
Cambridgeshire County Council,11-Jan-18,25396212-16649178,-2977.44,Decoy Farm,Care Establishment,4 - Operations - Providers services,LDP E Cambs Special Needs,Residential Independent Sector
Cambridgeshire County Council,11-Jan-18,25396182-16649189,-2977.44,Decoy Farm,Care Establishment,4 - Operations - Providers services,LDP E Cambs Special Needs,Residential Independent Sector
Cambridgeshire County Council,11-Jan-18,25399765-16649206,-2977.44,Decoy Farm,Care Establishment,4 - Operations - Providers services,LDP E Cambs Special Needs,Residential Independent Sector
Cambridgeshire County Council,11-Jan-18,25399775-16649216,-2977.44,Decoy Farm,Care Establishment,4 - Operations - Providers services,LDP E Cambs Special Needs,Residential Independent Sector
Cambridgeshire County Council,11-Jan-18,25399841-16649280,-2977.44,Decoy Farm,Care Establishment,4 - Operations - Providers services,LDP E Cambs Special Needs,Residential Independent Sector
Cambridgeshire County Council,11-Jan-18,25399842-16649281,-2977.44,Decoy Farm,Care Establishment,4 - Operations - Providers services,LDP E Cambs Special Needs,Residential Independent Sector
Cambridgeshire County Council,11-Jan-18,25399843-16649282,-2977.44,Decoy Farm,Care Establishment,4 - Operations - Providers services,LDP E Cambs Special Needs,Residential Independent Sector
Cambridgeshire County Council,11-Jan-18,25399849-16649288,-2977.44,Decoy Farm,Care Establishment,4 - Operations - Providers services,LDP E Cambs Special Needs,Residential Independent Sector
Cambridgeshire County Council,11-Jan-18,25553045-16649612,-2977.44,Decoy Farm,Care Establishment,4 - Operations - Providers services,LDP E Cambs Special Needs,Residential Independent Sector
Cambridgeshire County Council,11-Jan-18,25553046-16649613,-2977.44,Decoy Farm,Care Establishment,4 - Operations - Providers services,LDP E Cambs Special Needs,Residential Independent Sector
Cambridgeshire County Council,11-Jan-18,25553049-16649616,-2977.44,Decoy Farm,Care Establishment,4 - Operations - Providers services,LDP E Cambs Special Needs,Residential Independent Sector
Cambridgeshire County Council,11-Jan-18,25556920-16649650,-2977.44,Decoy Farm,Care Establishment,4 - Operations - Providers services,LDP E Cambs Special Needs,Residential Independent Sector
Cambridgeshire County Council,11-Jan-18,25399752-16649315,-2977.44,Decoy Farm,Care Establishment,4 - Operations - Providers services,LDP E Cambs Special Needs,Residential Independent Sector
Cambridgeshire County Council,11-Jan-18,25399758-16649321,-2977.44,Decoy Farm,Care Establishment,4 - Operations - Providers services,LDP E Cambs Special Needs,Residential Independent Sector
Cambridgeshire County Council,11-Jan-18,25404805-16649328,-2977.44,Decoy Farm,Care Establishment,4 - Operations - Providers services,LDP E Cambs Special Needs,Residential Independent Sector
Cambridgeshire County Council,11-Jan-18,25404811-16649334,-2977.44,Decoy Farm,Care Establishment,4 - Operations - Providers services,LDP E Cambs Special Needs,Residential Independent Sector
Cambridgeshire County Council,11-Jan-18,25404770-16649366,-2977.44,Decoy Farm,Care Establishment,4 - Operations - Providers services,LDP E Cambs Special Needs,Residential Independent Sector
Cambridgeshire County Council,11-Jan-18,25404778-16649374,-2977.44,Decoy Farm,Care Establishment,4 - Operations - Providers services,LDP E Cambs Special Needs,Residential Independent Sector
Cambridgeshire County Council,11-Jan-18,25489264-16649429,-2977.44,Decoy Farm,Care Establishment,4 - Operations - Providers services,LDP E Cambs Special Needs,Residential Independent Sector
Cambridgeshire County Council,11-Jan-18,25489269-16649434,-2977.44,Decoy Farm,Care Establishment,4 - Operations - Providers services,LDP E Cambs Special Needs,Residential Independent Sector
Cambridgeshire County Council,11-Jan-18,25489286-16649451,-2977.44,Decoy Farm,Care Establishment,4 - Operations - Providers services,LDP E Cambs Special Needs,Residential Independent Sector
Cambridgeshire County Council,11-Jan-18,25489310-16649475,-2977.44,Decoy Farm,Care Establishment,4 - Operations - Providers services,LDP E Cambs Special Needs,Residential Independent Sector
Cambridgeshire County Council,11-Jan-18,25489316-16649481,-2977.44,Decoy Farm,Care Establishment,4 - Operations - Providers services,LDP E Cambs Special Needs,Residential Independent Sector
Cambridgeshire County Council,11-Jan-18,25551902-16649529,-2977.44,Decoy Farm,Care Establishment,4 - Operations - Providers services,LDP E Cambs Special Needs,Residential Independent Sector
Cambridgeshire County Council,11-Jan-18,25551916-16649543,-2977.44,Decoy Farm,Care Establishment,4 - Operations - Providers services,LDP E Cambs Special Needs,Residential Independent Sector
Cambridgeshire County Council,11-Jan-18,25551930-16649557,-2977.44,Decoy Farm,Care Establishment,4 - Operations - Providers services,LDP E Cambs Special Needs,Residential Independent Sector
Cambridgeshire County Council,11-Jan-18,25551932-16649559,-2977.44,Decoy Farm,Care Establishment,4 - Operations - Providers services,LDP E Cambs Special Needs,Residential Independent Sector
Cambridgeshire County Council,11-Jan-18,25551947-16649574,-2977.44,Decoy Farm,Care Establishment,4 - Operations - Providers services,LDP E Cambs Special Needs,Residential Independent Sector
Cambridgeshire County Council,11-Jan-18,25553012-16649580,-2977.44,Decoy Farm,Care Establishment,4 - Operations - Providers services,LDP E Cambs Special Needs,Residential Independent Sector
Cambridgeshire County Council,11-Jan-18,25399800-16649240,-2977.44,Decoy Farm,Care Establishment,4 - Operations - Providers services,LDP E Cambs Special Needs,Residential Independent Sector
Cambridgeshire County Council,18-Jan-18,25671932-16692761,-2977.44,Decoy Farm,Care Establishment,4 - Operations - Providers services,LDP E Cambs Special Needs,Residential Independent Sector
Cambridgeshire County Council,18-Jan-18,25678849-16692781,-2977.44,Decoy Farm,Care Establishment,4 - Operations - Providers services,LDP E Cambs Special Needs,Residential Independent Sector
Cambridgeshire County Council,18-Jan-18,25678855-16692787,-2977.44,Decoy Farm,Care Establishment,4 - Operations - Providers services,LDP E Cambs Special Needs,Residential Independent Sector
Cambridgeshire County Council,18-Jan-18,25678874-16692806,-2977.44,Decoy Farm,Care Establishment,4 - Operations - Providers services,LDP E Cambs Special Needs,Residential Independent Sector
Cambridgeshire County Council,18-Jan-18,25676855-16692616,-2977.44,Decoy Farm,Care Establishment,4 - Operations - Providers services,LDP E Cambs Special Needs,Residential Independent Sector
Cambridgeshire County Council,18-Jan-18,25671881-16692710,-2977.44,Decoy Farm,Care Establishment,4 - Operations - Providers services,LDP E Cambs Special Needs,Residential Independent Sector
Cambridgeshire County Council,18-Jan-18,25671885-16692714,-2977.44,Decoy Farm,Care Establishment,4 - Operations - Providers services,LDP E Cambs Special Needs,Residential Independent Sector
Cambridgeshire County Council,18-Jan-18,25671859-16692688,-2977.44,Decoy Farm,Care Establishment,4 - Operations - Providers services,LDP E Cambs Special Needs,Residential Independent Sector
Cambridgeshire County Council,18-Jan-18,25671870-16692699,-2977.44,Decoy Farm,Care Establishment,4 - Operations - Providers services,LDP E Cambs Special Needs,Residential Independent Sector
Cambridgeshire County Council,25-Jan-18,25735970-16741156,-2977.44,Decoy Farm,Care Establishment,4 - Operations - Providers services,LDP E Cambs Special Needs,Residential Independent Sector
Cambridgeshire County Council,25-Jan-18,25735974-16741160,-2977.44,Decoy Farm,Care Establishment,4 - Operations - Providers services,LDP E Cambs Special Needs,Residential Independent Sector
Cambridgeshire County Council,25-Jan-18,25730929-16741224,-2977.44,Decoy Farm,Care Establishment,4 - Operations - Providers services,LDP E Cambs Special Needs,Residential Independent Sector
Cambridgeshire County Council,25-Jan-18,25737753-16741260,-2977.44,Decoy Farm,Care Establishment,4 - Operations - Providers services,LDP E Cambs Special Needs,Residential Independent Sector
Cambridgeshire County Council,25-Jan-18,25737761-16741268,-2977.44,Decoy Farm,Care Establishment,4 - Operations - Providers services,LDP E Cambs Special Needs,Residential Independent Sector
Cambridgeshire County Council,25-Jan-18,25737769-16741276,-2977.44,Decoy Farm,Care Establishment,4 - Operations - Providers services,LDP E Cambs Special Needs,Residential Independent Sector
Cambridgeshire County Council,25-Jan-18,25737780-16741287,-2977.44,Decoy Farm,Care Establishment,4 - Operations - Providers services,LDP E Cambs Special Needs,Residential Independent Sector
Cambridgeshire County Council,25-Jan-18,25737787-16741294,-2977.44,Decoy Farm,Care Establishment,4 - Operations - Providers services,LDP E Cambs Special Needs,Residential Independent Sector
Cambridgeshire County Council,25-Jan-18,25737789-16741296,-2977.44,Decoy Farm,Care Establishment,4 - Operations - Providers services,LDP E Cambs Special Needs,Residential Independent Sector
Cambridgeshire County Council,25-Jan-18,25737805-16741312,-2977.44,Decoy Farm,Care Establishment,4 - Operations - Providers services,LDP E Cambs Special Needs,Residential Independent Sector
Cambridgeshire County Council,25-Jan-18,25737806-16741313,-2977.44,Decoy Farm,Care Establishment,4 - Operations - Providers services,LDP E Cambs Special Needs,Residential Independent Sector
Cambridgeshire County Council,25-Jan-18,25730982-16741091,-2977.44,Decoy Farm,Care Establishment,4 - Operations - Providers services,LDP E Cambs Special Needs,Residential Independent Sector
Cambridgeshire County Council,25-Jan-18,25731026-16741135,-2977.44,Decoy Farm,Care Establishment,4 - Operations - Providers services,LDP E Cambs Special Needs,Residential Independent Sector
Cambridgeshire County Council,25-Jan-18,25735958-16741144,-2977.44,Decoy Farm,Care Establishment,4 - Operations - Providers services,LDP E Cambs Special Needs,Residential Independent Sector
Cambridgeshire County Council,11-Jan-18,25382161-16649151,-2977.44,Decoy Farm,Care Establishment,4 - Operations - Providers services,LDP E Cambs Special Needs,Residential Independent Sector
Cambridgeshire County Council,11-Jan-18,25399764-16649205,-2977.44,Decoy Farm,Care Establishment,4 - Operations - Providers services,LDP E Cambs Special Needs,Residential Independent Sector
Cambridgeshire County Council,11-Jan-18,25399780-16649221,-2977.44,Decoy Farm,Care Establishment,4 - Operations - Providers services,LDP E Cambs Special Needs,Residential Independent Sector
Cambridgeshire County Council,11-Jan-18,25399834-16649273,-2977.44,Decoy Farm,Care Establishment,4 - Operations - Providers services,LDP E Cambs Special Needs,Residential Independent Sector
Cambridgeshire County Council,11-Jan-18,25399733-16649297,-2977.44,Decoy Farm,Care Establishment,4 - Operations - Providers services,LDP E Cambs Special Needs,Residential Independent Sector
Cambridgeshire County Council,11-Jan-18,25553041-16649608,-2977.44,Decoy Farm,Care Establishment,4 - Operations - Providers services,LDP E Cambs Special Needs,Residential Independent Sector
Cambridgeshire County Council,11-Jan-18,25553042-16649609,-2977.44,Decoy Farm,Care Establishment,4 - Operations - Providers services,LDP E Cambs Special Needs,Residential Independent Sector
Cambridgeshire County Council,11-Jan-18,25556908-16649638,-2977.44,Decoy Farm,Care Establishment,4 - Operations - Providers services,LDP E Cambs Special Needs,Residential Independent Sector
Cambridgeshire County Council,11-Jan-18,25556916-16649646,-2977.44,Decoy Farm,Care Establishment,4 - Operations - Providers services,LDP E Cambs Special Needs,Residential Independent Sector
Cambridgeshire County Council,11-Jan-18,25556918-16649648,-2977.44,Decoy Farm,Care Establishment,4 - Operations - Providers services,LDP E Cambs Special Needs,Residential Independent Sector
Cambridgeshire County Council,11-Jan-18,25399734-16649298,-2977.44,Decoy Farm,Care Establishment,4 - Operations - Providers services,LDP E Cambs Special Needs,Residential Independent Sector
Cambridgeshire County Council,11-Jan-18,25399744-16649308,-2977.44,Decoy Farm,Care Establishment,4 - Operations - Providers services,LDP E Cambs Special Needs,Residential Independent Sector
Cambridgeshire County Council,11-Jan-18,25399761-16649324,-2977.44,Decoy Farm,Care Establishment,4 - Operations - Providers services,LDP E Cambs Special Needs,Residential Independent Sector
Cambridgeshire County Council,11-Jan-18,25404750-16649349,-2977.44,Decoy Farm,Care Establishment,4 - Operations - Providers services,LDP E Cambs Special Needs,Residential Independent Sector
Cambridgeshire County Council,11-Jan-18,25404757-16649356,-2977.44,Decoy Farm,Care Establishment,4 - Operations - Providers services,LDP E Cambs Special Needs,Residential Independent Sector
Cambridgeshire County Council,11-Jan-18,25404788-16649384,-2977.44,Decoy Farm,Care Establishment,4 - Operations - Providers services,LDP E Cambs Special Needs,Residential Independent Sector
Cambridgeshire County Council,11-Jan-18,25489200-16649399,-2977.44,Decoy Farm,Care Establishment,4 - Operations - Providers services,LDP E Cambs Special Needs,Residential Independent Sector
Cambridgeshire County Council,11-Jan-18,25489201-16649400,-2977.44,Decoy Farm,Care Establishment,4 - Operations - Providers services,LDP E Cambs Special Needs,Residential Independent Sector
Cambridgeshire County Council,11-Jan-18,25489243-16649408,-2977.44,Decoy Farm,Care Establishment,4 - Operations - Providers services,LDP E Cambs Special Needs,Residential Independent Sector
Cambridgeshire County Council,11-Jan-18,25489288-16649453,-2977.44,Decoy Farm,Care Establishment,4 - Operations - Providers services,LDP E Cambs Special Needs,Residential Independent Sector
Cambridgeshire County Council,11-Jan-18,25489309-16649474,-2977.44,Decoy Farm,Care Establishment,4 - Operations - Providers services,LDP E Cambs Special Needs,Residential Independent Sector
Cambridgeshire County Council,11-Jan-18,25489216-16649490,-2977.44,Decoy Farm,Care Establishment,4 - Operations - Providers services,LDP E Cambs Special Needs,Residential Independent Sector
Cambridgeshire County Council,11-Jan-18,25489221-16649495,-2977.44,Decoy Farm,Care Establishment,4 - Operations - Providers services,LDP E Cambs Special Needs,Residential Independent Sector
Cambridgeshire County Council,11-Jan-18,25550163-16649524,-2977.44,Decoy Farm,Care Establishment,4 - Operations - Providers services,LDP E Cambs Special Needs,Residential Independent Sector
Cambridgeshire County Council,11-Jan-18,25551901-16649528,-2977.44,Decoy Farm,Care Establishment,4 - Operations - Providers services,LDP E Cambs Special Needs,Residential Independent Sector
Cambridgeshire County Council,11-Jan-18,25551910-16649537,-2977.44,Decoy Farm,Care Establishment,4 - Operations - Providers services,LDP E Cambs Special Needs,Residential Independent Sector
Cambridgeshire County Council,11-Jan-18,25551913-16649540,-2977.44,Decoy Farm,Care Establishment,4 - Operations - Providers services,LDP E Cambs Special Needs,Residential Independent Sector
Cambridgeshire County Council,11-Jan-18,25551917-16649544,-2977.44,Decoy Farm,Care Establishment,4 - Operations - Providers services,LDP E Cambs Special Needs,Residential Independent Sector
Cambridgeshire County Council,11-Jan-18,25553022-16649590,-2977.44,Decoy Farm,Care Establishment,4 - Operations - Providers services,LDP E Cambs Special Needs,Residential Independent Sector
Cambridgeshire County Council,11-Jan-18,25399799-16649239,-2977.44,Decoy Farm,Care Establishment,4 - Operations - Providers services,LDP E Cambs Special Needs,Residential Independent Sector
Cambridgeshire County Council,18-Jan-18,25678876-16692808,-2977.44,Decoy Farm,Care Establishment,4 - Operations - Providers services,LDP E Cambs Special Needs,Residential Independent Sector
Cambridgeshire County Council,18-Jan-18,25673876-16692573,-2977.44,Decoy Farm,Care Establishment,4 - Operations - Providers services,LDP E Cambs Special Needs,Residential Independent Sector
Cambridgeshire County Council,18-Jan-18,25673878-16692575,-2977.44,Decoy Farm,Care Establishment,4 - Operations - Providers services,LDP E Cambs Special Needs,Residential Independent Sector
Cambridgeshire County Council,18-Jan-18,25673882-16692579,-2977.44,Decoy Farm,Care Establishment,4 - Operations - Providers services,LDP E Cambs Special Needs,Residential Independent Sector
Cambridgeshire County Council,18-Jan-18,25676850-16692611,-2977.44,Decoy Farm,Care Establishment,4 - Operations - Providers services,LDP E Cambs Special Needs,Residential Independent Sector
Cambridgeshire County Council,18-Jan-18,25676871-16692632,-2977.44,Decoy Farm,Care Establishment,4 - Operations - Providers services,LDP E Cambs Special Needs,Residential Independent Sector
Cambridgeshire County Council,18-Jan-18,25671834-16692663,-2977.44,Decoy Farm,Care Establishment,4 - Operations - Providers services,LDP E Cambs Special Needs,Residential Independent Sector
Cambridgeshire County Council,18-Jan-18,25671837-16692666,-2977.44,Decoy Farm,Care Establishment,4 - Operations - Providers services,LDP E Cambs Special Needs,Residential Independent Sector
Cambridgeshire County Council,18-Jan-18,25671838-16692667,-2977.44,Decoy Farm,Care Establishment,4 - Operations - Providers services,LDP E Cambs Special Needs,Residential Independent Sector
Cambridgeshire County Council,18-Jan-18,25671843-16692672,-2977.44,Decoy Farm,Care Establishment,4 - Operations - Providers services,LDP E Cambs Special Needs,Residential Independent Sector
Cambridgeshire County Council,18-Jan-18,25671855-16692684,-2977.44,Decoy Farm,Care Establishment,4 - Operations - Providers services,LDP E Cambs Special Needs,Residential Independent Sector
Cambridgeshire County Council,18-Jan-18,25671875-16692704,-2977.44,Decoy Farm,Care Establishment,4 - Operations - Providers services,LDP E Cambs Special Needs,Residential Independent Sector
Cambridgeshire County Council,25-Jan-18,25730952-16741170,-2977.44,Decoy Farm,Care Establishment,4 - Operations - Providers services,LDP E Cambs Special Needs,Residential Independent Sector
Cambridgeshire County Council,25-Jan-18,25730953-16741171,-2977.44,Decoy Farm,Care Establishment,4 - Operations - Providers services,LDP E Cambs Special Needs,Residential Independent Sector
Cambridgeshire County Council,25-Jan-18,25737838-16741345,-2977.44,Decoy Farm,Care Establishment,4 - Operations - Providers services,LDP E Cambs Special Needs,Residential Independent Sector
Cambridgeshire County Council,25-Jan-18,25737842-16741349,-2977.44,Decoy Farm,Care Establishment,4 - Operations - Providers services,LDP E Cambs Special Needs,Residential Independent Sector
Cambridgeshire County Council,25-Jan-18,25737845-16741352,-2977.44,Decoy Farm,Care Establishment,4 - Operations - Providers services,LDP E Cambs Special Needs,Residential Independent Sector
Cambridgeshire County Council,25-Jan-18,25730971-16741189,-2977.44,Decoy Farm,Care Establishment,4 - Operations - Providers services,LDP E Cambs Special Needs,Residential Independent Sector
Cambridgeshire County Council,25-Jan-18,25730979-16741197,-2977.44,Decoy Farm,Care Establishment,4 - Operations - Providers services,LDP E Cambs Special Needs,Residential Independent Sector
Cambridgeshire County Council,25-Jan-18,25730905-16741201,-2977.44,Decoy Farm,Care Establishment,4 - Operations - Providers services,LDP E Cambs Special Needs,Residential Independent Sector
Cambridgeshire County Council,25-Jan-18,25733827-16741248,-2977.44,Decoy Farm,Care Establishment,4 - Operations - Providers services,LDP E Cambs Special Needs,Residential Independent Sector
Cambridgeshire County Council,25-Jan-18,25737754-16741261,-2977.44,Decoy Farm,Care Establishment,4 - Operations - Providers services,LDP E Cambs Special Needs,Residential Independent Sector
Cambridgeshire County Council,25-Jan-18,25737760-16741267,-2977.44,Decoy Farm,Care Establishment,4 - Operations - Providers services,LDP E Cambs Special Needs,Residential Independent Sector
Cambridgeshire County Council,25-Jan-18,25737764-16741271,-2977.44,Decoy Farm,Care Establishment,4 - Operations - Providers services,LDP E Cambs Special Needs,Residential Independent Sector
Cambridgeshire County Council,25-Jan-18,25737783-16741290,-2977.44,Decoy Farm,Care Establishment,4 - Operations - Providers services,LDP E Cambs Special Needs,Residential Independent Sector
Cambridgeshire County Council,25-Jan-18,25737791-16741298,-2977.44,Decoy Farm,Care Establishment,4 - Operations - Providers services,LDP E Cambs Special Needs,Residential Independent Sector
Cambridgeshire County Council,25-Jan-18,25731003-16741112,-2977.44,Decoy Farm,Care Establishment,4 - Operations - Providers services,LDP E Cambs Special Needs,Residential Independent Sector
Cambridgeshire County Council,25-Jan-18,25731025-16741134,-2977.44,Decoy Farm,Care Establishment,4 - Operations - Providers services,LDP E Cambs Special Needs,Residential Independent Sector
Cambridgeshire County Council,11-Jan-18,25382155-16649145,-2977.44,Decoy Farm,Care Establishment,4 - Operations - Providers services,LDP E Cambs Special Needs,Residential Independent Sector
Cambridgeshire County Council,11-Jan-18,25396204-16649170,-2977.44,Decoy Farm,Care Establishment,4 - Operations - Providers services,LDP E Cambs Special Needs,Residential Independent Sector
Cambridgeshire County Council,11-Jan-18,25396183-16649190,-2977.44,Decoy Farm,Care Establishment,4 - Operations - Providers services,LDP E Cambs Special Needs,Residential Independent Sector
Cambridgeshire County Council,11-Jan-18,25399768-16649209,-2977.44,Decoy Farm,Care Establishment,4 - Operations - Providers services,LDP E Cambs Special Needs,Residential Independent Sector
Cambridgeshire County Council,11-Jan-18,25399772-16649213,-2977.44,Decoy Farm,Care Establishment,4 - Operations - Providers services,LDP E Cambs Special Needs,Residential Independent Sector
Cambridgeshire County Council,11-Jan-18,25399840-16649279,-2977.44,Decoy Farm,Care Establishment,4 - Operations - Providers services,LDP E Cambs Special Needs,Residential Independent Sector
Cambridgeshire County Council,11-Jan-18,25399844-16649283,-2977.44,Decoy Farm,Care Establishment,4 - Operations - Providers services,LDP E Cambs Special Needs,Residential Independent Sector
Cambridgeshire County Council,11-Jan-18,25555978-16649624,-2977.44,Decoy Farm,Care Establishment,4 - Operations - Providers services,LDP E Cambs Special Needs,Residential Independent Sector
Cambridgeshire County Council,11-Jan-18,25556923-16649653,-2977.44,Decoy Farm,Care Establishment,4 - Operations - Providers services,LDP E Cambs Special Needs,Residential Independent Sector
Cambridgeshire County Council,11-Jan-18,25399762-16649325,-2977.44,Decoy Farm,Care Establishment,4 - Operations - Providers services,LDP E Cambs Special Needs,Residential Independent Sector
Cambridgeshire County Council,11-Jan-18,25404748-16649347,-2977.44,Decoy Farm,Care Establishment,4 - Operations - Providers services,LDP E Cambs Special Needs,Residential Independent Sector
Cambridgeshire County Council,11-Jan-18,25404752-16649351,-2977.44,Decoy Farm,Care Establishment,4 - Operations - Providers services,LDP E Cambs Special Needs,Residential Independent Sector
Cambridgeshire County Council,11-Jan-18,25404755-16649354,-2977.44,Decoy Farm,Care Establishment,4 - Operations - Providers services,LDP E Cambs Special Needs,Residential Independent Sector
Cambridgeshire County Council,11-Jan-18,25404758-16649357,-2977.44,Decoy Farm,Care Establishment,4 - Operations - Providers services,LDP E Cambs Special Needs,Residential Independent Sector
Cambridgeshire County Council,11-Jan-18,25489294-16649459,-2977.44,Decoy Farm,Care Establishment,4 - Operations - Providers services,LDP E Cambs Special Needs,Residential Independent Sector
Cambridgeshire County Council,11-Jan-18,25489295-16649460,-2977.44,Decoy Farm,Care Establishment,4 - Operations - Providers services,LDP E Cambs Special Needs,Residential Independent Sector
Cambridgeshire County Council,11-Jan-18,25489308-16649473,-2977.44,Decoy Farm,Care Establishment,4 - Operations - Providers services,LDP E Cambs Special Needs,Residential Independent Sector
Cambridgeshire County Council,11-Jan-18,25489313-16649478,-2977.44,Decoy Farm,Care Establishment,4 - Operations - Providers services,LDP E Cambs Special Needs,Residential Independent Sector
Cambridgeshire County Council,11-Jan-18,25489315-16649480,-2977.44,Decoy Farm,Care Establishment,4 - Operations - Providers services,LDP E Cambs Special Needs,Residential Independent Sector
Cambridgeshire County Council,11-Jan-18,25489215-16649489,-2977.44,Decoy Farm,Care Establishment,4 - Operations - Providers services,LDP E Cambs Special Needs,Residential Independent Sector
Cambridgeshire County Council,11-Jan-18,25489225-16649499,-2977.44,Decoy Farm,Care Establishment,4 - Operations - Providers services,LDP E Cambs Special Needs,Residential Independent Sector
Cambridgeshire County Council,11-Jan-18,25489238-16649512,-2977.44,Decoy Farm,Care Establishment,4 - Operations - Providers services,LDP E Cambs Special Needs,Residential Independent Sector
Cambridgeshire County Council,11-Jan-18,25550157-16649518,-2977.44,Decoy Farm,Care Establishment,4 - Operations - Providers services,LDP E Cambs Special Needs,Residential Independent Sector
Cambridgeshire County Council,11-Jan-18,25551904-16649531,-2977.44,Decoy Farm,Care Establishment,4 - Operations - Providers services,LDP E Cambs Special Needs,Residential Independent Sector
Cambridgeshire County Council,11-Jan-18,25551912-16649539,-2977.44,Decoy Farm,Care Establishment,4 - Operations - Providers services,LDP E Cambs Special Needs,Residential Independent Sector
Cambridgeshire County Council,11-Jan-18,25553015-16649583,-2977.44,Decoy Farm,Care Establishment,4 - Operations - Providers services,LDP E Cambs Special Needs,Residential Independent Sector
Cambridgeshire County Council,11-Jan-18,25553026-16649593,-2977.44,Decoy Farm,Care Establishment,4 - Operations - Providers services,LDP E Cambs Special Needs,Residential Independent Sector
Cambridgeshire County Council,11-Jan-18,25399804-16649244,-2977.44,Decoy Farm,Care Establishment,4 - Operations - Providers services,LDP E Cambs Special Needs,Residential Independent Sector
Cambridgeshire County Council,11-Jan-18,25399805-16649245,-2977.44,Decoy Farm,Care Establishment,4 - Operations - Providers services,LDP E Cambs Special Needs,Residential Independent Sector
Cambridgeshire County Council,18-Jan-18,25671919-16692748,-2977.44,Decoy Farm,Care Establishment,4 - Operations - Providers services,LDP E Cambs Special Needs,Residential Independent Sector
Cambridgeshire County Council,18-Jan-18,25671921-16692750,-2977.44,Decoy Farm,Care Establishment,4 - Operations - Providers services,LDP E Cambs Special Needs,Residential Independent Sector
Cambridgeshire County Council,18-Jan-18,25671924-16692753,-2977.44,Decoy Farm,Care Establishment,4 - Operations - Providers services,LDP E Cambs Special Needs,Residential Independent Sector
Cambridgeshire County Council,18-Jan-18,25671934-16692763,-2977.44,Decoy Farm,Care Establishment,4 - Operations - Providers services,LDP E Cambs Special Needs,Residential Independent Sector
Cambridgeshire County Council,18-Jan-18,25678865-16692797,-2977.44,Decoy Farm,Care Establishment,4 - Operations - Providers services,LDP E Cambs Special Needs,Residential Independent Sector
Cambridgeshire County Council,18-Jan-18,25678878-16692810,-2977.44,Decoy Farm,Care Establishment,4 - Operations - Providers services,LDP E Cambs Special Needs,Residential Independent Sector
Cambridgeshire County Council,18-Jan-18,25673859-16692556,-2977.44,Decoy Farm,Care Establishment,4 - Operations - Providers services,LDP E Cambs Special Needs,Residential Independent Sector
Cambridgeshire County Council,18-Jan-18,25673870-16692567,-2977.44,Decoy Farm,Care Establishment,4 - Operations - Providers services,LDP E Cambs Special Needs,Residential Independent Sector
Cambridgeshire County Council,18-Jan-18,25673906-16692603,-2977.44,Decoy Farm,Care Establishment,4 - Operations - Providers services,LDP E Cambs Special Needs,Residential Independent Sector
Cambridgeshire County Council,18-Jan-18,25676868-16692629,-2977.44,Decoy Farm,Care Establishment,4 - Operations - Providers services,LDP E Cambs Special Needs,Residential Independent Sector
Cambridgeshire County Council,18-Jan-18,25676870-16692631,-2977.44,Decoy Farm,Care Establishment,4 - Operations - Providers services,LDP E Cambs Special Needs,Residential Independent Sector
Cambridgeshire County Council,18-Jan-18,25676872-16692633,-2977.44,Decoy Farm,Care Establishment,4 - Operations - Providers services,LDP E Cambs Special Needs,Residential Independent Sector
Cambridgeshire County Council,18-Jan-18,25671878-16692707,-2977.44,Decoy Farm,Care Establishment,4 - Operations - Providers services,LDP E Cambs Special Needs,Residential Independent Sector
Cambridgeshire County Council,18-Jan-18,25671882-16692711,-2977.44,Decoy Farm,Care Establishment,4 - Operations - Providers services,LDP E Cambs Special Needs,Residential Independent Sector
Cambridgeshire County Council,18-Jan-18,25671889-16692718,-2977.44,Decoy Farm,Care Establishment,4 - Operations - Providers services,LDP E Cambs Special Needs,Residential Independent Sector
Cambridgeshire County Council,18-Jan-18,25671853-16692682,-2977.44,Decoy Farm,Care Establishment,4 - Operations - Providers services,LDP E Cambs Special Needs,Residential Independent Sector
Cambridgeshire County Council,25-Jan-18,25735972-16741158,-2977.44,Decoy Farm,Care Establishment,4 - Operations - Providers services,LDP E Cambs Special Needs,Residential Independent Sector
Cambridgeshire County Council,25-Jan-18,25735975-16741161,-2977.44,Decoy Farm,Care Establishment,4 - Operations - Providers services,LDP E Cambs Special Needs,Residential Independent Sector
Cambridgeshire County Council,25-Jan-18,25730948-16741166,-2977.44,Decoy Farm,Care Establishment,4 - Operations - Providers services,LDP E Cambs Special Needs,Residential Independent Sector
Cambridgeshire County Council,25-Jan-18,25730962-16741180,-2977.44,Decoy Farm,Care Establishment,4 - Operations - Providers services,LDP E Cambs Special Needs,Residential Independent Sector
Cambridgeshire County Council,25-Jan-18,25730945-16741240,-2977.44,Decoy Farm,Care Establishment,4 - Operations - Providers services,LDP E Cambs Special Needs,Residential Independent Sector
Cambridgeshire County Council,25-Jan-18,25737751-16741258,-2977.44,Decoy Farm,Care Establishment,4 - Operations - Providers services,LDP E Cambs Special Needs,Residential Independent Sector
Cambridgeshire County Council,25-Jan-18,25737758-16741265,-2977.44,Decoy Farm,Care Establishment,4 - Operations - Providers services,LDP E Cambs Special Needs,Residential Independent Sector
Cambridgeshire County Council,25-Jan-18,25737766-16741273,-2977.44,Decoy Farm,Care Establishment,4 - Operations - Providers services,LDP E Cambs Special Needs,Residential Independent Sector
Cambridgeshire County Council,25-Jan-18,25737781-16741288,-2977.44,Decoy Farm,Care Establishment,4 - Operations - Providers services,LDP E Cambs Special Needs,Residential Independent Sector
Cambridgeshire County Council,25-Jan-18,25737803-16741310,-2977.44,Decoy Farm,Care Establishment,4 - Operations - Providers services,LDP E Cambs Special Needs,Residential Independent Sector
Cambridgeshire County Council,25-Jan-18,25737820-16741327,-2977.44,Decoy Farm,Care Establishment,4 - Operations - Providers services,LDP E Cambs Special Needs,Residential Independent Sector
Cambridgeshire County Council,25-Jan-18,25730992-16741101,-2977.44,Decoy Farm,Care Establishment,4 - Operations - Providers services,LDP E Cambs Special Needs,Residential Independent Sector
Cambridgeshire County Council,25-Jan-18,25731029-16741138,-2977.44,Decoy Farm,Care Establishment,4 - Operations - Providers services,LDP E Cambs Special Needs,Residential Independent Sector
Cambridgeshire County Council,25-Jan-18,25735960-16741146,-2977.44,Decoy Farm,Care Establishment,4 - Operations - Providers services,LDP E Cambs Special Needs,Residential Independent Sector
Cambridgeshire County Council,25-Jan-18,25735961-16741147,-2977.44,Decoy Farm,Care Establishment,4 - Operations - Providers services,LDP E Cambs Special Needs,Residential Independent Sector
Cambridgeshire County Council,25-Jan-18,25735964-16741150,-2977.44,Decoy Farm,Care Establishment,4 - Operations - Providers services,LDP E Cambs Special Needs,Residential Independent Sector
Cambridgeshire County Council,11-Jan-18,25382154-16649144,-2977.44,Decoy Farm,Care Establishment,4 - Operations - Providers services,LDP E Cambs Special Needs,Residential Independent Sector
Cambridgeshire County Council,11-Jan-18,25382170-16649157,-2977.44,Decoy Farm,Care Establishment,4 - Operations - Providers services,LDP E Cambs Special Needs,Residential Independent Sector
Cambridgeshire County Council,11-Jan-18,25396209-16649175,-2977.44,Decoy Farm,Care Establishment,4 - Operations - Providers services,LDP E Cambs Special Needs,Residential Independent Sector
Cambridgeshire County Council,11-Jan-18,25396190-16649196,-2977.44,Decoy Farm,Care Establishment,4 - Operations - Providers services,LDP E Cambs Special Needs,Residential Independent Sector
Cambridgeshire County Council,11-Jan-18,25399776-16649217,-2977.44,Decoy Farm,Care Establishment,4 - Operations - Providers services,LDP E Cambs Special Needs,Residential Independent Sector
Cambridgeshire County Council,11-Jan-18,25399784-16649226,-2977.44,Decoy Farm,Care Establishment,4 - Operations - Providers services,LDP E Cambs Special Needs,Residential Independent Sector
Cambridgeshire County Council,11-Jan-18,25399848-16649287,-2977.44,Decoy Farm,Care Establishment,4 - Operations - Providers services,LDP E Cambs Special Needs,Residential Independent Sector
Cambridgeshire County Council,11-Jan-18,25553048-16649615,-2977.44,Decoy Farm,Care Establishment,4 - Operations - Providers services,LDP E Cambs Special Needs,Residential Independent Sector
Cambridgeshire County Council,11-Jan-18,25553050-16649617,-2977.44,Decoy Farm,Care Establishment,4 - Operations - Providers services,LDP E Cambs Special Needs,Residential Independent Sector
Cambridgeshire County Council,11-Jan-18,25553052-16649619,-2977.44,Decoy Farm,Care Establishment,4 - Operations - Providers services,LDP E Cambs Special Needs,Residential Independent Sector
Cambridgeshire County Council,11-Jan-18,25404808-16649331,-2977.44,Decoy Farm,Care Establishment,4 - Operations - Providers services,LDP E Cambs Special Needs,Residential Independent Sector
Cambridgeshire County Council,11-Jan-18,25404738-16649337,-2977.44,Decoy Farm,Care Establishment,4 - Operations - Providers services,LDP E Cambs Special Needs,Residential Independent Sector
Cambridgeshire County Council,11-Jan-18,25404744-16649343,-2977.44,Decoy Farm,Care Establishment,4 - Operations - Providers services,LDP E Cambs Special Needs,Residential Independent Sector
Cambridgeshire County Council,11-Jan-18,25404747-16649346,-2977.44,Decoy Farm,Care Establishment,4 - Operations - Providers services,LDP E Cambs Special Needs,Residential Independent Sector
Cambridgeshire County Council,11-Jan-18,25404774-16649370,-2977.44,Decoy Farm,Care Establishment,4 - Operations - Providers services,LDP E Cambs Special Needs,Residential Independent Sector
Cambridgeshire County Council,11-Jan-18,25404781-16649377,-2977.44,Decoy Farm,Care Establishment,4 - Operations - Providers services,LDP E Cambs Special Needs,Residential Independent Sector
Cambridgeshire County Council,11-Jan-18,25404789-16649385,-2977.44,Decoy Farm,Care Establishment,4 - Operations - Providers services,LDP E Cambs Special Needs,Residential Independent Sector
Cambridgeshire County Council,11-Jan-18,25489205-16649404,-2977.44,Decoy Farm,Care Establishment,4 - Operations - Providers services,LDP E Cambs Special Needs,Residential Independent Sector
Cambridgeshire County Council,11-Jan-18,25489254-16649419,-2977.44,Decoy Farm,Care Establishment,4 - Operations - Providers services,LDP E Cambs Special Needs,Residential Independent Sector
Cambridgeshire County Council,11-Jan-18,25489255-16649420,-2977.44,Decoy Farm,Care Establishment,4 - Operations - Providers services,LDP E Cambs Special Needs,Residential Independent Sector
Cambridgeshire County Council,11-Jan-18,25489271-16649436,-2977.44,Decoy Farm,Care Establishment,4 - Operations - Providers services,LDP E Cambs Special Needs,Residential Independent Sector
Cambridgeshire County Council,11-Jan-18,25489312-16649477,-2977.44,Decoy Farm,Care Establishment,4 - Operations - Providers services,LDP E Cambs Special Needs,Residential Independent Sector
Cambridgeshire County Council,11-Jan-18,25489236-16649510,-2977.44,Decoy Farm,Care Establishment,4 - Operations - Providers services,LDP E Cambs Special Needs,Residential Independent Sector
Cambridgeshire County Council,11-Jan-18,25553027-16649594,-2977.44,Decoy Farm,Care Establishment,4 - Operations - Providers services,LDP E Cambs Special Needs,Residential Independent Sector
Cambridgeshire County Council,11-Jan-18,25553036-16649603,-2977.44,Decoy Farm,Care Establishment,4 - Operations - Providers services,LDP E Cambs Special Needs,Residential Independent Sector
Cambridgeshire County Council,11-Jan-18,25399813-16649253,-2977.44,Decoy Farm,Care Establishment,4 - Operations - Providers services,LDP E Cambs Special Needs,Residential Independent Sector
Cambridgeshire County Council,11-Jan-18,25399819-16649259,-2977.44,Decoy Farm,Care Establishment,4 - Operations - Providers services,LDP E Cambs Special Needs,Residential Independent Sector
Cambridgeshire County Council,18-Jan-18,25671941-16692770,-2977.44,Decoy Farm,Care Establishment,4 - Operations - Providers services,LDP E Cambs Special Needs,Residential Independent Sector
Cambridgeshire County Council,18-Jan-18,25678857-16692789,-2977.44,Decoy Farm,Care Establishment,4 - Operations - Providers services,LDP E Cambs Special Needs,Residential Independent Sector
Cambridgeshire County Council,18-Jan-18,25678858-16692790,-2977.44,Decoy Farm,Care Establishment,4 - Operations - Providers services,LDP E Cambs Special Needs,Residential Independent Sector
Cambridgeshire County Council,18-Jan-18,25678867-16692799,-2977.44,Decoy Farm,Care Establishment,4 - Operations - Providers services,LDP E Cambs Special Needs,Residential Independent Sector
Cambridgeshire County Council,18-Jan-18,25678870-16692802,-2977.44,Decoy Farm,Care Establishment,4 - Operations - Providers services,LDP E Cambs Special Needs,Residential Independent Sector
Cambridgeshire County Council,18-Jan-18,25678881-16692813,-2977.44,Decoy Farm,Care Establishment,4 - Operations - Providers services,LDP E Cambs Special Needs,Residential Independent Sector
Cambridgeshire County Council,18-Jan-18,25673872-16692569,-2977.44,Decoy Farm,Care Establishment,4 - Operations - Providers services,LDP E Cambs Special Needs,Residential Independent Sector
Cambridgeshire County Council,18-Jan-18,25673884-16692581,-2977.44,Decoy Farm,Care Establishment,4 - Operations - Providers services,LDP E Cambs Special Needs,Residential Independent Sector
Cambridgeshire County Council,18-Jan-18,25673886-16692583,-2977.44,Decoy Farm,Care Establishment,4 - Operations - Providers services,LDP E Cambs Special Needs,Residential Independent Sector
Cambridgeshire County Council,18-Jan-18,25673888-16692585,-2977.44,Decoy Farm,Care Establishment,4 - Operations - Providers services,LDP E Cambs Special Needs,Residential Independent Sector
Cambridgeshire County Council,18-Jan-18,25676857-16692618,-2977.44,Decoy Farm,Care Establishment,4 - Operations - Providers services,LDP E Cambs Special Needs,Residential Independent Sector
Cambridgeshire County Council,18-Jan-18,25676861-16692622,-2977.44,Decoy Farm,Care Establishment,4 - Operations - Providers services,LDP E Cambs Special Needs,Residential Independent Sector
Cambridgeshire County Council,18-Jan-18,25676880-16692641,-2977.44,Decoy Farm,Care Establishment,4 - Operations - Providers services,LDP E Cambs Special Needs,Residential Independent Sector
Cambridgeshire County Council,18-Jan-18,25676882-16692643,-2977.44,Decoy Farm,Care Establishment,4 - Operations - Providers services,LDP E Cambs Special Needs,Residential Independent Sector
Cambridgeshire County Council,18-Jan-18,25671884-16692713,-2977.44,Decoy Farm,Care Establishment,4 - Operations - Providers services,LDP E Cambs Special Needs,Residential Independent Sector
Cambridgeshire County Council,18-Jan-18,25671888-16692717,-2977.44,Decoy Farm,Care Establishment,4 - Operations - Providers services,LDP E Cambs Special Needs,Residential Independent Sector
Cambridgeshire County Council,18-Jan-18,25671833-16692662,-2977.44,Decoy Farm,Care Establishment,4 - Operations - Providers services,LDP E Cambs Special Needs,Residential Independent Sector
Cambridgeshire County Council,18-Jan-18,25671842-16692671,-2977.44,Decoy Farm,Care Establishment,4 - Operations - Providers services,LDP E Cambs Special Needs,Residential Independent Sector
Cambridgeshire County Council,18-Jan-18,25671844-16692673,-2977.44,Decoy Farm,Care Establishment,4 - Operations - Providers services,LDP E Cambs Special Needs,Residential Independent Sector
Cambridgeshire County Council,18-Jan-18,25671854-16692683,-2977.44,Decoy Farm,Care Establishment,4 - Operations - Providers services,LDP E Cambs Special Needs,Residential Independent Sector
Cambridgeshire County Council,18-Jan-18,25671862-16692691,-2977.44,Decoy Farm,Care Establishment,4 - Operations - Providers services,LDP E Cambs Special Needs,Residential Independent Sector
Cambridgeshire County Council,25-Jan-18,25730951-16741169,-2977.44,Decoy Farm,Care Establishment,4 - Operations - Providers services,LDP E Cambs Special Needs,Residential Independent Sector
Cambridgeshire County Council,25-Jan-18,25730974-16741192,-2977.44,Decoy Farm,Care Establishment,4 - Operations - Providers services,LDP E Cambs Special Needs,Residential Independent Sector
Cambridgeshire County Council,25-Jan-18,25730919-16741214,-2977.44,Decoy Farm,Care Establishment,4 - Operations - Providers services,LDP E Cambs Special Needs,Residential Independent Sector
Cambridgeshire County Council,25-Jan-18,25730939-16741234,-2977.44,Decoy Farm,Care Establishment,4 - Operations - Providers services,LDP E Cambs Special Needs,Residential Independent Sector
Cambridgeshire County Council,25-Jan-18,25733823-16741244,-2977.44,Decoy Farm,Care Establishment,4 - Operations - Providers services,LDP E Cambs Special Needs,Residential Independent Sector
Cambridgeshire County Council,25-Jan-18,25737774-16741281,-2977.44,Decoy Farm,Care Establishment,4 - Operations - Providers services,LDP E Cambs Special Needs,Residential Independent Sector
Cambridgeshire County Council,25-Jan-18,25737776-16741283,-2977.44,Decoy Farm,Care Establishment,4 - Operations - Providers services,LDP E Cambs Special Needs,Residential Independent Sector
Cambridgeshire County Council,25-Jan-18,25737825-16741332,-2977.44,Decoy Farm,Care Establishment,4 - Operations - Providers services,LDP E Cambs Special Needs,Residential Independent Sector
Cambridgeshire County Council,25-Jan-18,25730981-16741090,-2977.44,Decoy Farm,Care Establishment,4 - Operations - Providers services,LDP E Cambs Special Needs,Residential Independent Sector
Cambridgeshire County Council,25-Jan-18,25731030-16741139,-2977.44,Decoy Farm,Care Establishment,4 - Operations - Providers services,LDP E Cambs Special Needs,Residential Independent Sector
Cambridgeshire County Council,25-Jan-18,25735966-16741152,-2977.44,Decoy Farm,Care Establishment,4 - Operations - Providers services,LDP E Cambs Special Needs,Residential Independent Sector
Cambridgeshire County Council,11-Jan-18,25396200-16649166,-2977.44,Decoy Farm,Care Establishment,4 - Operations - Providers services,LDP E Cambs Special Needs,Residential Independent Sector
Cambridgeshire County Council,11-Jan-18,25396216-16649182,-2977.44,Decoy Farm,Care Establishment,4 - Operations - Providers services,LDP E Cambs Special Needs,Residential Independent Sector
Cambridgeshire County Council,11-Jan-18,25396189-16649195,-2977.44,Decoy Farm,Care Establishment,4 - Operations - Providers services,LDP E Cambs Special Needs,Residential Independent Sector
Cambridgeshire County Council,11-Jan-18,25396196-16649201,-2977.44,Decoy Farm,Care Establishment,4 - Operations - Providers services,LDP E Cambs Special Needs,Residential Independent Sector
Cambridgeshire County Council,11-Jan-18,25399783-16649225,-2977.44,Decoy Farm,Care Establishment,4 - Operations - Providers services,LDP E Cambs Special Needs,Residential Independent Sector
Cambridgeshire County Council,11-Jan-18,25399730-16649294,-2977.44,Decoy Farm,Care Establishment,4 - Operations - Providers services,LDP E Cambs Special Needs,Residential Independent Sector
Cambridgeshire County Council,11-Jan-18,25556911-16649641,-2977.44,Decoy Farm,Care Establishment,4 - Operations - Providers services,LDP E Cambs Special Needs,Residential Independent Sector
Cambridgeshire County Council,11-Jan-18,25556924-16649654,-2977.44,Decoy Farm,Care Establishment,4 - Operations - Providers services,LDP E Cambs Special Needs,Residential Independent Sector
Cambridgeshire County Council,11-Jan-18,25399750-16649314,-2977.44,Decoy Farm,Care Establishment,4 - Operations - Providers services,LDP E Cambs Special Needs,Residential Independent Sector
Cambridgeshire County Council,11-Jan-18,25399757-16649320,-2977.44,Decoy Farm,Care Establishment,4 - Operations - Providers services,LDP E Cambs Special Needs,Residential Independent Sector
Cambridgeshire County Council,11-Jan-18,25399759-16649322,-2977.44,Decoy Farm,Care Establishment,4 - Operations - Providers services,LDP E Cambs Special Needs,Residential Independent Sector
Cambridgeshire County Council,11-Jan-18,25404736-16649335,-2977.44,Decoy Farm,Care Establishment,4 - Operations - Providers services,LDP E Cambs Special Needs,Residential Independent Sector
Cambridgeshire County Council,11-Jan-18,25404765-16649361,-2977.44,Decoy Farm,Care Establishment,4 - Operations - Providers services,LDP E Cambs Special Needs,Residential Independent Sector
Cambridgeshire County Council,11-Jan-18,25404785-16649381,-2977.44,Decoy Farm,Care Establishment,4 - Operations - Providers services,LDP E Cambs Special Needs,Residential Independent Sector
Cambridgeshire County Council,11-Jan-18,25404797-16649392,-2977.44,Decoy Farm,Care Establishment,4 - Operations - Providers services,LDP E Cambs Special Needs,Residential Independent Sector
Cambridgeshire County Council,11-Jan-18,25404798-16649393,-2977.44,Decoy Farm,Care Establishment,4 - Operations - Providers services,LDP E Cambs Special Needs,Residential Independent Sector
Cambridgeshire County Council,11-Jan-18,25489260-16649425,-2977.44,Decoy Farm,Care Establishment,4 - Operations - Providers services,LDP E Cambs Special Needs,Residential Independent Sector
Cambridgeshire County Council,11-Jan-18,25489293-16649458,-2977.44,Decoy Farm,Care Establishment,4 - Operations - Providers services,LDP E Cambs Special Needs,Residential Independent Sector
Cambridgeshire County Council,11-Jan-18,25489305-16649470,-2977.44,Decoy Farm,Care Establishment,4 - Operations - Providers services,LDP E Cambs Special Needs,Residential Independent Sector
Cambridgeshire County Council,11-Jan-18,25489214-16649488,-2977.44,Decoy Farm,Care Establishment,4 - Operations - Providers services,LDP E Cambs Special Needs,Residential Independent Sector
Cambridgeshire County Council,11-Jan-18,25550161-16649522,-2977.44,Decoy Farm,Care Establishment,4 - Operations - Providers services,LDP E Cambs Special Needs,Residential Independent Sector
Cambridgeshire County Council,11-Jan-18,25551914-16649541,-2977.44,Decoy Farm,Care Establishment,4 - Operations - Providers services,LDP E Cambs Special Needs,Residential Independent Sector
Cambridgeshire County Council,11-Jan-18,25551933-16649560,-2977.44,Decoy Farm,Care Establishment,4 - Operations - Providers services,LDP E Cambs Special Needs,Residential Independent Sector
Cambridgeshire County Council,11-Jan-18,25551938-16649565,-2977.44,Decoy Farm,Care Establishment,4 - Operations - Providers services,LDP E Cambs Special Needs,Residential Independent Sector
Cambridgeshire County Council,11-Jan-18,25551946-16649573,-2977.44,Decoy Farm,Care Establishment,4 - Operations - Providers services,LDP E Cambs Special Needs,Residential Independent Sector
Cambridgeshire County Council,11-Jan-18,25551949-16649576,-2977.44,Decoy Farm,Care Establishment,4 - Operations - Providers services,LDP E Cambs Special Needs,Residential Independent Sector
Cambridgeshire County Council,18-Jan-18,25671943-16692772,-2977.44,Decoy Farm,Care Establishment,4 - Operations - Providers services,LDP E Cambs Special Needs,Residential Independent Sector
Cambridgeshire County Council,18-Jan-18,25678868-16692800,-2977.44,Decoy Farm,Care Establishment,4 - Operations - Providers services,LDP E Cambs Special Needs,Residential Independent Sector
Cambridgeshire County Council,18-Jan-18,25673868-16692565,-2977.44,Decoy Farm,Care Establishment,4 - Operations - Providers services,LDP E Cambs Special Needs,Residential Independent Sector
Cambridgeshire County Council,18-Jan-18,25676845-16692606,-2977.44,Decoy Farm,Care Establishment,4 - Operations - Providers services,LDP E Cambs Special Needs,Residential Independent Sector
Cambridgeshire County Council,18-Jan-18,25676853-16692614,-2977.44,Decoy Farm,Care Establishment,4 - Operations - Providers services,LDP E Cambs Special Needs,Residential Independent Sector
Cambridgeshire County Council,18-Jan-18,25676874-16692635,-2977.44,Decoy Farm,Care Establishment,4 - Operations - Providers services,LDP E Cambs Special Needs,Residential Independent Sector
Cambridgeshire County Council,18-Jan-18,25676876-16692637,-2977.44,Decoy Farm,Care Establishment,4 - Operations - Providers services,LDP E Cambs Special Needs,Residential Independent Sector
Cambridgeshire County Council,18-Jan-18,25671900-16692729,-2977.44,Decoy Farm,Care Establishment,4 - Operations - Providers services,LDP E Cambs Special Needs,Residential Independent Sector
Cambridgeshire County Council,18-Jan-18,25671906-16692735,-2977.44,Decoy Farm,Care Establishment,4 - Operations - Providers services,LDP E Cambs Special Needs,Residential Independent Sector
Cambridgeshire County Council,18-Jan-18,25676884-16692645,-2977.44,Decoy Farm,Care Establishment,4 - Operations - Providers services,LDP E Cambs Special Needs,Residential Independent Sector
Cambridgeshire County Council,18-Jan-18,25671871-16692700,-2977.44,Decoy Farm,Care Establishment,4 - Operations - Providers services,LDP E Cambs Special Needs,Residential Independent Sector
Cambridgeshire County Council,18-Jan-18,25673852-16692549,-2977.44,Decoy Farm,Care Establishment,4 - Operations - Providers services,LDP E Cambs Special Needs,Residential Independent Sector
Cambridgeshire County Council,25-Jan-18,25735973-16741159,-2977.44,Decoy Farm,Care Establishment,4 - Operations - Providers services,LDP E Cambs Special Needs,Residential Independent Sector
Cambridgeshire County Council,25-Jan-18,25730980-16741198,-2977.44,Decoy Farm,Care Establishment,4 - Operations - Providers services,LDP E Cambs Special Needs,Residential Independent Sector
Cambridgeshire County Council,25-Jan-18,25730903-16741199,-2977.44,Decoy Farm,Care Establishment,4 - Operations - Providers services,LDP E Cambs Special Needs,Residential Independent Sector
Cambridgeshire County Council,25-Jan-18,25730910-16741205,-2977.44,Decoy Farm,Care Establishment,4 - Operations - Providers services,LDP E Cambs Special Needs,Residential Independent Sector
Cambridgeshire County Council,25-Jan-18,25730935-16741230,-2977.44,Decoy Farm,Care Establishment,4 - Operations - Providers services,LDP E Cambs Special Needs,Residential Independent Sector
Cambridgeshire County Council,25-Jan-18,25733824-16741245,-2977.44,Decoy Farm,Care Establishment,4 - Operations - Providers services,LDP E Cambs Special Needs,Residential Independent Sector
Cambridgeshire County Council,25-Jan-18,25737768-16741275,-2977.44,Decoy Farm,Care Establishment,4 - Operations - Providers services,LDP E Cambs Special Needs,Residential Independent Sector
Cambridgeshire County Council,25-Jan-18,25737817-16741324,-2977.44,Decoy Farm,Care Establishment,4 - Operations - Providers services,LDP E Cambs Special Needs,Residential Independent Sector
Cambridgeshire County Council,25-Jan-18,25730986-16741095,-2977.44,Decoy Farm,Care Establishment,4 - Operations - Providers services,LDP E Cambs Special Needs,Residential Independent Sector
Cambridgeshire County Council,25-Jan-18,25730995-16741104,-2977.44,Decoy Farm,Care Establishment,4 - Operations - Providers services,LDP E Cambs Special Needs,Residential Independent Sector
Cambridgeshire County Council,25-Jan-18,25731004-16741113,-2977.44,Decoy Farm,Care Establishment,4 - Operations - Providers services,LDP E Cambs Special Needs,Residential Independent Sector
Cambridgeshire County Council,25-Jan-18,25731009-16741118,-2977.44,Decoy Farm,Care Establishment,4 - Operations - Providers services,LDP E Cambs Special Needs,Residential Independent Sector
Cambridgeshire County Council,25-Jan-18,25731014-16741123,-2977.44,Decoy Farm,Care Establishment,4 - Operations - Providers services,LDP E Cambs Special Needs,Residential Independent Sector
Cambridgeshire County Council,25-Jan-18,25731020-16741129,-2977.44,Decoy Farm,Care Establishment,4 - Operations - Providers services,LDP E Cambs Special Needs,Residential Independent Sector
Cambridgeshire County Council,11-Jan-18,25382158-16649148,-2977.44,Decoy Farm,Care Establishment,4 - Operations - Providers services,LDP E Cambs Special Needs,Residential Independent Sector
Cambridgeshire County Council,11-Jan-18,25399726-16649187,-2977.44,Decoy Farm,Care Establishment,4 - Operations - Providers services,LDP E Cambs Special Needs,Residential Independent Sector
Cambridgeshire County Council,11-Jan-18,25399770-16649211,-2977.44,Decoy Farm,Care Establishment,4 - Operations - Providers services,LDP E Cambs Special Needs,Residential Independent Sector
Cambridgeshire County Council,11-Jan-18,25399847-16649286,-2977.44,Decoy Farm,Care Establishment,4 - Operations - Providers services,LDP E Cambs Special Needs,Residential Independent Sector
Cambridgeshire County Council,11-Jan-18,25553047-16649614,-2977.44,Decoy Farm,Care Establishment,4 - Operations - Providers services,LDP E Cambs Special Needs,Residential Independent Sector
Cambridgeshire County Council,11-Jan-18,25556912-16649642,-2977.44,Decoy Farm,Care Establishment,4 - Operations - Providers services,LDP E Cambs Special Needs,Residential Independent Sector
Cambridgeshire County Council,11-Jan-18,25556919-16649649,-2977.44,Decoy Farm,Care Establishment,4 - Operations - Providers services,LDP E Cambs Special Needs,Residential Independent Sector
Cambridgeshire County Council,11-Jan-18,25399745-16649309,-2977.44,Decoy Farm,Care Establishment,4 - Operations - Providers services,LDP E Cambs Special Needs,Residential Independent Sector
Cambridgeshire County Council,11-Jan-18,25399756-16649319,-2977.44,Decoy Farm,Care Establishment,4 - Operations - Providers services,LDP E Cambs Special Needs,Residential Independent Sector
Cambridgeshire County Council,11-Jan-18,25404772-16649368,-2977.44,Decoy Farm,Care Establishment,4 - Operations - Providers services,LDP E Cambs Special Needs,Residential Independent Sector
Cambridgeshire County Council,11-Jan-18,25404775-16649371,-2977.44,Decoy Farm,Care Establishment,4 - Operations - Providers services,LDP E Cambs Special Needs,Residential Independent Sector
Cambridgeshire County Council,11-Jan-18,25404786-16649382,-2977.44,Decoy Farm,Care Establishment,4 - Operations - Providers services,LDP E Cambs Special Needs,Residential Independent Sector
Cambridgeshire County Council,11-Jan-18,25404787-16649383,-2977.44,Decoy Farm,Care Establishment,4 - Operations - Providers services,LDP E Cambs Special Needs,Residential Independent Sector
Cambridgeshire County Council,11-Jan-18,25404790-16649386,-2977.44,Decoy Farm,Care Establishment,4 - Operations - Providers services,LDP E Cambs Special Needs,Residential Independent Sector
Cambridgeshire County Council,11-Jan-18,25489277-16649442,-2977.44,Decoy Farm,Care Establishment,4 - Operations - Providers services,LDP E Cambs Special Needs,Residential Independent Sector
Cambridgeshire County Council,11-Jan-18,25489280-16649445,-2977.44,Decoy Farm,Care Establishment,4 - Operations - Providers services,LDP E Cambs Special Needs,Residential Independent Sector
Cambridgeshire County Council,11-Jan-18,25489220-16649494,-2977.44,Decoy Farm,Care Establishment,4 - Operations - Providers services,LDP E Cambs Special Needs,Residential Independent Sector
Cambridgeshire County Council,11-Jan-18,25489235-16649509,-2977.44,Decoy Farm,Care Establishment,4 - Operations - Providers services,LDP E Cambs Special Needs,Residential Independent Sector
Cambridgeshire County Council,11-Jan-18,25551900-16649527,-2977.44,Decoy Farm,Care Establishment,4 - Operations - Providers services,LDP E Cambs Special Needs,Residential Independent Sector
Cambridgeshire County Council,11-Jan-18,25553032-16649599,-2977.44,Decoy Farm,Care Establishment,4 - Operations - Providers services,LDP E Cambs Special Needs,Residential Independent Sector
Cambridgeshire County Council,11-Jan-18,25399820-16649260,-2977.44,Decoy Farm,Care Establishment,4 - Operations - Providers services,LDP E Cambs Special Needs,Residential Independent Sector
Cambridgeshire County Council,18-Jan-18,25671914-16692743,-2977.44,Decoy Farm,Care Establishment,4 - Operations - Providers services,LDP E Cambs Special Needs,Residential Independent Sector
Cambridgeshire County Council,18-Jan-18,25671926-16692755,-2977.44,Decoy Farm,Care Establishment,4 - Operations - Providers services,LDP E Cambs Special Needs,Residential Independent Sector
Cambridgeshire County Council,18-Jan-18,25671933-16692762,-2977.44,Decoy Farm,Care Establishment,4 - Operations - Providers services,LDP E Cambs Special Needs,Residential Independent Sector
Cambridgeshire County Council,18-Jan-18,25678864-16692796,-2977.44,Decoy Farm,Care Establishment,4 - Operations - Providers services,LDP E Cambs Special Needs,Residential Independent Sector
Cambridgeshire County Council,18-Jan-18,25676852-16692613,-2977.44,Decoy Farm,Care Establishment,4 - Operations - Providers services,LDP E Cambs Special Needs,Residential Independent Sector
Cambridgeshire County Council,18-Jan-18,25676864-16692625,-2977.44,Decoy Farm,Care Establishment,4 - Operations - Providers services,LDP E Cambs Special Needs,Residential Independent Sector
Cambridgeshire County Council,18-Jan-18,25676865-16692626,-2977.44,Decoy Farm,Care Establishment,4 - Operations - Providers services,LDP E Cambs Special Needs,Residential Independent Sector
Cambridgeshire County Council,18-Jan-18,25671886-16692715,-2977.44,Decoy Farm,Care Establishment,4 - Operations - Providers services,LDP E Cambs Special Needs,Residential Independent Sector
Cambridgeshire County Council,18-Jan-18,25671892-16692721,-2977.44,Decoy Farm,Care Establishment,4 - Operations - Providers services,LDP E Cambs Special Needs,Residential Independent Sector
Cambridgeshire County Council,18-Jan-18,25671895-16692724,-2977.44,Decoy Farm,Care Establishment,4 - Operations - Providers services,LDP E Cambs Special Needs,Residential Independent Sector
Cambridgeshire County Council,18-Jan-18,25671835-16692664,-2977.44,Decoy Farm,Care Establishment,4 - Operations - Providers services,LDP E Cambs Special Needs,Residential Independent Sector
Cambridgeshire County Council,18-Jan-18,25671840-16692669,-2977.44,Decoy Farm,Care Establishment,4 - Operations - Providers services,LDP E Cambs Special Needs,Residential Independent Sector
Cambridgeshire County Council,18-Jan-18,25671864-16692693,-2977.44,Decoy Farm,Care Establishment,4 - Operations - Providers services,LDP E Cambs Special Needs,Residential Independent Sector
Cambridgeshire County Council,25-Jan-18,25730964-16741182,-2977.44,Decoy Farm,Care Establishment,4 - Operations - Providers services,LDP E Cambs Special Needs,Residential Independent Sector
Cambridgeshire County Council,25-Jan-18,25730972-16741190,-2977.44,Decoy Farm,Care Establishment,4 - Operations - Providers services,LDP E Cambs Special Needs,Residential Independent Sector
Cambridgeshire County Council,25-Jan-18,25730911-16741206,-2977.44,Decoy Farm,Care Establishment,4 - Operations - Providers services,LDP E Cambs Special Needs,Residential Independent Sector
Cambridgeshire County Council,25-Jan-18,25730913-16741208,-2977.44,Decoy Farm,Care Establishment,4 - Operations - Providers services,LDP E Cambs Special Needs,Residential Independent Sector
Cambridgeshire County Council,25-Jan-18,25730920-16741215,-2977.44,Decoy Farm,Care Establishment,4 - Operations - Providers services,LDP E Cambs Special Needs,Residential Independent Sector
Cambridgeshire County Council,25-Jan-18,25730924-16741219,-2977.44,Decoy Farm,Care Establishment,4 - Operations - Providers services,LDP E Cambs Special Needs,Residential Independent Sector
Cambridgeshire County Council,25-Jan-18,25730928-16741223,-2977.44,Decoy Farm,Care Establishment,4 - Operations - Providers services,LDP E Cambs Special Needs,Residential Independent Sector
Cambridgeshire County Council,25-Jan-18,25730931-16741226,-2977.44,Decoy Farm,Care Establishment,4 - Operations - Providers services,LDP E Cambs Special Needs,Residential Independent Sector
Cambridgeshire County Council,25-Jan-18,25730934-16741229,-2977.44,Decoy Farm,Care Establishment,4 - Operations - Providers services,LDP E Cambs Special Needs,Residential Independent Sector
Cambridgeshire County Council,25-Jan-18,25730946-16741241,-2977.44,Decoy Farm,Care Establishment,4 - Operations - Providers services,LDP E Cambs Special Needs,Residential Independent Sector
Cambridgeshire County Council,25-Jan-18,25737779-16741286,-2977.44,Decoy Farm,Care Establishment,4 - Operations - Providers services,LDP E Cambs Special Needs,Residential Independent Sector
Cambridgeshire County Council,25-Jan-18,25737796-16741303,-2977.44,Decoy Farm,Care Establishment,4 - Operations - Providers services,LDP E Cambs Special Needs,Residential Independent Sector
Cambridgeshire County Council,25-Jan-18,25737815-16741322,-2977.44,Decoy Farm,Care Establishment,4 - Operations - Providers services,LDP E Cambs Special Needs,Residential Independent Sector
Cambridgeshire County Council,25-Jan-18,25737819-16741326,-2977.44,Decoy Farm,Care Establishment,4 - Operations - Providers services,LDP E Cambs Special Needs,Residential Independent Sector
Cambridgeshire County Council,25-Jan-18,25737821-16741328,-2977.44,Decoy Farm,Care Establishment,4 - Operations - Providers services,LDP E Cambs Special Needs,Residential Independent Sector
Cambridgeshire County Council,25-Jan-18,25730987-16741096,-2977.44,Decoy Farm,Care Establishment,4 - Operations - Providers services,LDP E Cambs Special Needs,Residential Independent Sector
Cambridgeshire County Council,25-Jan-18,25730993-16741102,-2977.44,Decoy Farm,Care Establishment,4 - Operations - Providers services,LDP E Cambs Special Needs,Residential Independent Sector
Cambridgeshire County Council,25-Jan-18,25730994-16741103,-2977.44,Decoy Farm,Care Establishment,4 - Operations - Providers services,LDP E Cambs Special Needs,Residential Independent Sector
Cambridgeshire County Council,25-Jan-18,25730997-16741106,-2977.44,Decoy Farm,Care Establishment,4 - Operations - Providers services,LDP E Cambs Special Needs,Residential Independent Sector
Cambridgeshire County Council,25-Jan-18,25731008-16741117,-2977.44,Decoy Farm,Care Establishment,4 - Operations - Providers services,LDP E Cambs Special Needs,Residential Independent Sector
Cambridgeshire County Council,25-Jan-18,25731010-16741119,-2977.44,Decoy Farm,Care Establishment,4 - Operations - Providers services,LDP E Cambs Special Needs,Residential Independent Sector
Cambridgeshire County Council,25-Jan-18,25731031-16741140,-2977.44,Decoy Farm,Care Establishment,4 - Operations - Providers services,LDP E Cambs Special Needs,Residential Independent Sector
Cambridgeshire County Council,25-Jan-18,25731033-16741142,-2977.44,Decoy Farm,Care Establishment,4 - Operations - Providers services,LDP E Cambs Special Needs,Residential Independent Sector
Cambridgeshire County Council,25-Jan-18,25735959-16741145,-2977.44,Decoy Farm,Care Establishment,4 - Operations - Providers services,LDP E Cambs Special Needs,Residential Independent Sector
Cambridgeshire County Council,11-Jan-18,25382167-16649154,-2977.44,Decoy Farm,Care Establishment,4 - Operations - Providers services,LDP E Cambs Special Needs,Residential Independent Sector
Cambridgeshire County Council,11-Jan-18,25396207-16649173,-2977.44,Decoy Farm,Care Establishment,4 - Operations - Providers services,LDP E Cambs Special Needs,Residential Independent Sector
Cambridgeshire County Council,11-Jan-18,25399769-16649210,-2977.44,Decoy Farm,Care Establishment,4 - Operations - Providers services,LDP E Cambs Special Needs,Residential Independent Sector
Cambridgeshire County Council,11-Jan-18,25399845-16649284,-2977.44,Decoy Farm,Care Establishment,4 - Operations - Providers services,LDP E Cambs Special Needs,Residential Independent Sector
Cambridgeshire County Council,11-Jan-18,25399728-16649292,-2977.44,Decoy Farm,Care Establishment,4 - Operations - Providers services,LDP E Cambs Special Needs,Residential Independent Sector
Cambridgeshire County Council,11-Jan-18,25399731-16649295,-2977.44,Decoy Farm,Care Establishment,4 - Operations - Providers services,LDP E Cambs Special Needs,Residential Independent Sector
Cambridgeshire County Council,11-Jan-18,25555981-16649627,-2977.44,Decoy Farm,Care Establishment,4 - Operations - Providers services,LDP E Cambs Special Needs,Residential Independent Sector
Cambridgeshire County Council,11-Jan-18,25556904-16649634,-2977.44,Decoy Farm,Care Establishment,4 - Operations - Providers services,LDP E Cambs Special Needs,Residential Independent Sector
Cambridgeshire County Council,11-Jan-18,25399738-16649302,-2977.44,Decoy Farm,Care Establishment,4 - Operations - Providers services,LDP E Cambs Special Needs,Residential Independent Sector
Cambridgeshire County Council,11-Jan-18,25404810-16649333,-2977.44,Decoy Farm,Care Establishment,4 - Operations - Providers services,LDP E Cambs Special Needs,Residential Independent Sector
Cambridgeshire County Council,11-Jan-18,25404745-16649344,-2977.44,Decoy Farm,Care Establishment,4 - Operations - Providers services,LDP E Cambs Special Needs,Residential Independent Sector
Cambridgeshire County Council,11-Jan-18,25404759-16649358,-2977.44,Decoy Farm,Care Establishment,4 - Operations - Providers services,LDP E Cambs Special Needs,Residential Independent Sector
Cambridgeshire County Council,11-Jan-18,25404784-16649380,-2977.44,Decoy Farm,Care Establishment,4 - Operations - Providers services,LDP E Cambs Special Needs,Residential Independent Sector
Cambridgeshire County Council,11-Jan-18,25404793-16649389,-2977.44,Decoy Farm,Care Establishment,4 - Operations - Providers services,LDP E Cambs Special Needs,Residential Independent Sector
Cambridgeshire County Council,11-Jan-18,25489251-16649416,-2977.44,Decoy Farm,Care Establishment,4 - Operations - Providers services,LDP E Cambs Special Needs,Residential Independent Sector
Cambridgeshire County Council,11-Jan-18,25489273-16649438,-2977.44,Decoy Farm,Care Establishment,4 - Operations - Providers services,LDP E Cambs Special Needs,Residential Independent Sector
Cambridgeshire County Council,11-Jan-18,25489274-16649439,-2977.44,Decoy Farm,Care Establishment,4 - Operations - Providers services,LDP E Cambs Special Needs,Residential Independent Sector
Cambridgeshire County Council,11-Jan-18,25489281-16649446,-2977.44,Decoy Farm,Care Establishment,4 - Operations - Providers services,LDP E Cambs Special Needs,Residential Independent Sector
Cambridgeshire County Council,11-Jan-18,25489297-16649462,-2977.44,Decoy Farm,Care Establishment,4 - Operations - Providers services,LDP E Cambs Special Needs,Residential Independent Sector
Cambridgeshire County Council,11-Jan-18,25489301-16649466,-2977.44,Decoy Farm,Care Establishment,4 - Operations - Providers services,LDP E Cambs Special Needs,Residential Independent Sector
Cambridgeshire County Council,11-Jan-18,25489303-16649468,-2977.44,Decoy Farm,Care Establishment,4 - Operations - Providers services,LDP E Cambs Special Needs,Residential Independent Sector
Cambridgeshire County Council,11-Jan-18,25489210-16649484,-2977.44,Decoy Farm,Care Establishment,4 - Operations - Providers services,LDP E Cambs Special Needs,Residential Independent Sector
Cambridgeshire County Council,11-Jan-18,25489222-16649496,-2977.44,Decoy Farm,Care Establishment,4 - Operations - Providers services,LDP E Cambs Special Needs,Residential Independent Sector
Cambridgeshire County Council,11-Jan-18,25489224-16649498,-2977.44,Decoy Farm,Care Establishment,4 - Operations - Providers services,LDP E Cambs Special Needs,Residential Independent Sector
Cambridgeshire County Council,11-Jan-18,25489232-16649506,-2977.44,Decoy Farm,Care Establishment,4 - Operations - Providers services,LDP E Cambs Special Needs,Residential Independent Sector
Cambridgeshire County Council,11-Jan-18,25489234-16649508,-2977.44,Decoy Farm,Care Establishment,4 - Operations - Providers services,LDP E Cambs Special Needs,Residential Independent Sector
Cambridgeshire County Council,11-Jan-18,25489239-16649513,-2977.44,Decoy Farm,Care Establishment,4 - Operations - Providers services,LDP E Cambs Special Needs,Residential Independent Sector
Cambridgeshire County Council,11-Jan-18,25550155-16649516,-2977.44,Decoy Farm,Care Establishment,4 - Operations - Providers services,LDP E Cambs Special Needs,Residential Independent Sector
Cambridgeshire County Council,11-Jan-18,25550156-16649517,-2977.44,Decoy Farm,Care Establishment,4 - Operations - Providers services,LDP E Cambs Special Needs,Residential Independent Sector
Cambridgeshire County Council,11-Jan-18,25551915-16649542,-2977.44,Decoy Farm,Care Establishment,4 - Operations - Providers services,LDP E Cambs Special Needs,Residential Independent Sector
Cambridgeshire County Council,11-Jan-18,25551922-16649549,-2977.44,Decoy Farm,Care Establishment,4 - Operations - Providers services,LDP E Cambs Special Needs,Residential Independent Sector
Cambridgeshire County Council,11-Jan-18,25551941-16649568,-2977.44,Decoy Farm,Care Establishment,4 - Operations - Providers services,LDP E Cambs Special Needs,Residential Independent Sector
Cambridgeshire County Council,11-Jan-18,25553030-16649597,-2977.44,Decoy Farm,Care Establishment,4 - Operations - Providers services,LDP E Cambs Special Needs,Residential Independent Sector
Cambridgeshire County Council,11-Jan-18,25553038-16649605,-2977.44,Decoy Farm,Care Establishment,4 - Operations - Providers services,LDP E Cambs Special Needs,Residential Independent Sector
Cambridgeshire County Council,18-Jan-18,25671940-16692769,-2977.44,Decoy Farm,Care Establishment,4 - Operations - Providers services,LDP E Cambs Special Needs,Residential Independent Sector
Cambridgeshire County Council,18-Jan-18,25678861-16692793,-2977.44,Decoy Farm,Care Establishment,4 - Operations - Providers services,LDP E Cambs Special Needs,Residential Independent Sector
Cambridgeshire County Council,18-Jan-18,25678869-16692801,-2977.44,Decoy Farm,Care Establishment,4 - Operations - Providers services,LDP E Cambs Special Needs,Residential Independent Sector
Cambridgeshire County Council,18-Jan-18,25673862-16692559,-2977.44,Decoy Farm,Care Establishment,4 - Operations - Providers services,LDP E Cambs Special Needs,Residential Independent Sector
Cambridgeshire County Council,18-Jan-18,25673883-16692580,-2977.44,Decoy Farm,Care Establishment,4 - Operations - Providers services,LDP E Cambs Special Needs,Residential Independent Sector
Cambridgeshire County Council,18-Jan-18,25676849-16692610,-2977.44,Decoy Farm,Care Establishment,4 - Operations - Providers services,LDP E Cambs Special Needs,Residential Independent Sector
Cambridgeshire County Council,18-Jan-18,25676851-16692612,-2977.44,Decoy Farm,Care Establishment,4 - Operations - Providers services,LDP E Cambs Special Needs,Residential Independent Sector
Cambridgeshire County Council,18-Jan-18,25676858-16692619,-2977.44,Decoy Farm,Care Establishment,4 - Operations - Providers services,LDP E Cambs Special Needs,Residential Independent Sector
Cambridgeshire County Council,18-Jan-18,25676875-16692636,-2977.44,Decoy Farm,Care Establishment,4 - Operations - Providers services,LDP E Cambs Special Needs,Residential Independent Sector
Cambridgeshire County Council,18-Jan-18,25671896-16692725,-2977.44,Decoy Farm,Care Establishment,4 - Operations - Providers services,LDP E Cambs Special Needs,Residential Independent Sector
Cambridgeshire County Council,18-Jan-18,25671899-16692728,-2977.44,Decoy Farm,Care Establishment,4 - Operations - Providers services,LDP E Cambs Special Needs,Residential Independent Sector
Cambridgeshire County Council,18-Jan-18,25671865-16692694,-2977.44,Decoy Farm,Care Establishment,4 - Operations - Providers services,LDP E Cambs Special Needs,Residential Independent Sector
Cambridgeshire County Council,18-Jan-18,25671867-16692696,-2977.44,Decoy Farm,Care Establishment,4 - Operations - Providers services,LDP E Cambs Special Needs,Residential Independent Sector
Cambridgeshire County Council,18-Jan-18,25671874-16692703,-2977.44,Decoy Farm,Care Establishment,4 - Operations - Providers services,LDP E Cambs Special Needs,Residential Independent Sector
Cambridgeshire County Council,25-Jan-18,25735978-16741164,-2977.44,Decoy Farm,Care Establishment,4 - Operations - Providers services,LDP E Cambs Special Needs,Residential Independent Sector
Cambridgeshire County Council,25-Jan-18,25730956-16741174,-2977.44,Decoy Farm,Care Establishment,4 - Operations - Providers services,LDP E Cambs Special Needs,Residential Independent Sector
Cambridgeshire County Council,25-Jan-18,25730969-16741187,-2977.44,Decoy Farm,Care Establishment,4 - Operations - Providers services,LDP E Cambs Special Needs,Residential Independent Sector
Cambridgeshire County Council,25-Jan-18,25730970-16741188,-2977.44,Decoy Farm,Care Establishment,4 - Operations - Providers services,LDP E Cambs Special Needs,Residential Independent Sector
Cambridgeshire County Council,25-Jan-18,25730906-16741202,-2977.44,Decoy Farm,Care Establishment,4 - Operations - Providers services,LDP E Cambs Special Needs,Residential Independent Sector
Cambridgeshire County Council,25-Jan-18,25737759-16741266,-2977.44,Decoy Farm,Care Establishment,4 - Operations - Providers services,LDP E Cambs Special Needs,Residential Independent Sector
Cambridgeshire County Council,25-Jan-18,25737765-16741272,-2977.44,Decoy Farm,Care Establishment,4 - Operations - Providers services,LDP E Cambs Special Needs,Residential Independent Sector
Cambridgeshire County Council,25-Jan-18,25737772-16741279,-2977.44,Decoy Farm,Care Establishment,4 - Operations - Providers services,LDP E Cambs Special Needs,Residential Independent Sector
Cambridgeshire County Council,25-Jan-18,25737775-16741282,-2977.44,Decoy Farm,Care Establishment,4 - Operations - Providers services,LDP E Cambs Special Needs,Residential Independent Sector
Cambridgeshire County Council,25-Jan-18,25737813-16741320,-2977.44,Decoy Farm,Care Establishment,4 - Operations - Providers services,LDP E Cambs Special Needs,Residential Independent Sector
Cambridgeshire County Council,25-Jan-18,25730996-16741105,-2977.44,Decoy Farm,Care Establishment,4 - Operations - Providers services,LDP E Cambs Special Needs,Residential Independent Sector
Cambridgeshire County Council,25-Jan-18,25731023-16741132,-2977.44,Decoy Farm,Care Establishment,4 - Operations - Providers services,LDP E Cambs Special Needs,Residential Independent Sector
Cambridgeshire County Council,25-Jan-18,25731028-16741137,-2977.44,Decoy Farm,Care Establishment,4 - Operations - Providers services,LDP E Cambs Special Needs,Residential Independent Sector
Cambridgeshire County Council,25-Jan-18,25735967-16741153,-2977.44,Decoy Farm,Care Establishment,4 - Operations - Providers services,LDP E Cambs Special Needs,Residential Independent Sector
Cambridgeshire County Council,25-Jan-18,25735968-16741154,-2977.44,Decoy Farm,Care Establishment,4 - Operations - Providers services,LDP E Cambs Special Needs,Residential Independent Sector
Cambridgeshire County Council,11-Jan-18,25382157-16649147,-2977.44,Decoy Farm,Care Establishment,4 - Operations - Providers services,LDP E Cambs Special Needs,Residential Independent Sector
Cambridgeshire County Council,11-Jan-18,25382160-16649150,-2977.44,Decoy Farm,Care Establishment,4 - Operations - Providers services,LDP E Cambs Special Needs,Residential Independent Sector
Cambridgeshire County Council,11-Jan-18,25382147-16649163,-2977.44,Decoy Farm,Care Establishment,4 - Operations - Providers services,LDP E Cambs Special Needs,Residential Independent Sector
Cambridgeshire County Council,11-Jan-18,25396203-16649169,-2977.44,Decoy Farm,Care Establishment,4 - Operations - Providers services,LDP E Cambs Special Needs,Residential Independent Sector
Cambridgeshire County Council,11-Jan-18,25396208-16649174,-2977.44,Decoy Farm,Care Establishment,4 - Operations - Providers services,LDP E Cambs Special Needs,Residential Independent Sector
Cambridgeshire County Council,11-Jan-18,25396213-16649179,-2977.44,Decoy Farm,Care Establishment,4 - Operations - Providers services,LDP E Cambs Special Needs,Residential Independent Sector
Cambridgeshire County Council,11-Jan-18,25396219-16649184,-2977.44,Decoy Farm,Care Establishment,4 - Operations - Providers services,LDP E Cambs Special Needs,Residential Independent Sector
Cambridgeshire County Council,11-Jan-18,25396188-16649194,-2977.44,Decoy Farm,Care Establishment,4 - Operations - Providers services,LDP E Cambs Special Needs,Residential Independent Sector
Cambridgeshire County Council,11-Jan-18,25399788-16649230,-2977.44,Decoy Farm,Care Establishment,4 - Operations - Providers services,LDP E Cambs Special Needs,Residential Independent Sector
Cambridgeshire County Council,11-Jan-18,25399790-16649232,-2977.44,Decoy Farm,Care Establishment,4 - Operations - Providers services,LDP E Cambs Special Needs,Residential Independent Sector
Cambridgeshire County Council,11-Jan-18,25399792-16649234,-2977.44,Decoy Farm,Care Establishment,4 - Operations - Providers services,LDP E Cambs Special Needs,Residential Independent Sector
Cambridgeshire County Council,11-Jan-18,25399836-16649275,-2977.44,Decoy Farm,Care Establishment,4 - Operations - Providers services,LDP E Cambs Special Needs,Residential Independent Sector
Cambridgeshire County Council,11-Jan-18,25399851-16649290,-2977.44,Decoy Farm,Care Establishment,4 - Operations - Providers services,LDP E Cambs Special Needs,Residential Independent Sector
Cambridgeshire County Council,11-Jan-18,25556907-16649637,-2977.44,Decoy Farm,Care Establishment,4 - Operations - Providers services,LDP E Cambs Special Needs,Residential Independent Sector
Cambridgeshire County Council,11-Jan-18,25556910-16649640,-2977.44,Decoy Farm,Care Establishment,4 - Operations - Providers services,LDP E Cambs Special Needs,Residential Independent Sector
Cambridgeshire County Council,11-Jan-18,25556913-16649643,-2977.44,Decoy Farm,Care Establishment,4 - Operations - Providers services,LDP E Cambs Special Needs,Residential Independent Sector
Cambridgeshire County Council,11-Jan-18,25556915-16649645,-2977.44,Decoy Farm,Care Establishment,4 - Operations - Providers services,LDP E Cambs Special Needs,Residential Independent Sector
Cambridgeshire County Council,11-Jan-18,25556922-16649652,-2977.44,Decoy Farm,Care Establishment,4 - Operations - Providers services,LDP E Cambs Special Needs,Residential Independent Sector
Cambridgeshire County Council,11-Jan-18,25556925-16649655,-2977.44,Decoy Farm,Care Establishment,4 - Operations - Providers services,LDP E Cambs Special Needs,Residential Independent Sector
Cambridgeshire County Council,11-Jan-18,25399735-16649299,-2977.44,Decoy Farm,Care Establishment,4 - Operations - Providers services,LDP E Cambs Special Needs,Residential Independent Sector
Cambridgeshire County Council,11-Jan-18,25399741-16649305,-2977.44,Decoy Farm,Care Establishment,4 - Operations - Providers services,LDP E Cambs Special Needs,Residential Independent Sector
Cambridgeshire County Council,11-Jan-18,25399754-16649317,-2977.44,Decoy Farm,Care Establishment,4 - Operations - Providers services,LDP E Cambs Special Needs,Residential Independent Sector
Cambridgeshire County Council,11-Jan-18,25404739-16649338,-2977.44,Decoy Farm,Care Establishment,4 - Operations - Providers services,LDP E Cambs Special Needs,Residential Independent Sector
Cambridgeshire County Council,11-Jan-18,25404742-16649341,-2977.44,Decoy Farm,Care Establishment,4 - Operations - Providers services,LDP E Cambs Special Needs,Residential Independent Sector
Cambridgeshire County Council,11-Jan-18,25404746-16649345,-2977.44,Decoy Farm,Care Establishment,4 - Operations - Providers services,LDP E Cambs Special Needs,Residential Independent Sector
Cambridgeshire County Council,11-Jan-18,25404791-16649387,-2977.44,Decoy Farm,Care Establishment,4 - Operations - Providers services,LDP E Cambs Special Needs,Residential Independent Sector
Cambridgeshire County Council,11-Jan-18,25404794-16649390,-2977.44,Decoy Farm,Care Establishment,4 - Operations - Providers services,LDP E Cambs Special Needs,Residential Independent Sector
Cambridgeshire County Council,11-Jan-18,25404795-16649391,-2977.44,Decoy Farm,Care Establishment,4 - Operations - Providers services,LDP E Cambs Special Needs,Residential Independent Sector
Cambridgeshire County Council,11-Jan-18,25489203-16649402,-2977.44,Decoy Farm,Care Establishment,4 - Operations - Providers services,LDP E Cambs Special Needs,Residential Independent Sector
Cambridgeshire County Council,11-Jan-18,25489207-16649406,-2977.44,Decoy Farm,Care Establishment,4 - Operations - Providers services,LDP E Cambs Special Needs,Residential Independent Sector
Cambridgeshire County Council,11-Jan-18,25489250-16649415,-2977.44,Decoy Farm,Care Establishment,4 - Operations - Providers services,LDP E Cambs Special Needs,Residential Independent Sector
Cambridgeshire County Council,11-Jan-18,25489275-16649440,-2977.44,Decoy Farm,Care Establishment,4 - Operations - Providers services,LDP E Cambs Special Needs,Residential Independent Sector
Cambridgeshire County Council,11-Jan-18,25489289-16649454,-2977.44,Decoy Farm,Care Establishment,4 - Operations - Providers services,LDP E Cambs Special Needs,Residential Independent Sector
Cambridgeshire County Council,11-Jan-18,25489219-16649493,-2977.44,Decoy Farm,Care Establishment,4 - Operations - Providers services,LDP E Cambs Special Needs,Residential Independent Sector
Cambridgeshire County Council,11-Jan-18,25489227-16649501,-2977.44,Decoy Farm,Care Establishment,4 - Operations - Providers services,LDP E Cambs Special Needs,Residential Independent Sector
Cambridgeshire County Council,11-Jan-18,25550159-16649520,-2977.44,Decoy Farm,Care Establishment,4 - Operations - Providers services,LDP E Cambs Special Needs,Residential Independent Sector
Cambridgeshire County Council,11-Jan-18,25550162-16649523,-2977.44,Decoy Farm,Care Establishment,4 - Operations - Providers services,LDP E Cambs Special Needs,Residential Independent Sector
Cambridgeshire County Council,11-Jan-18,25551907-16649534,-2977.44,Decoy Farm,Care Establishment,4 - Operations - Providers services,LDP E Cambs Special Needs,Residential Independent Sector
Cambridgeshire County Council,11-Jan-18,25551924-16649551,-2977.44,Decoy Farm,Care Establishment,4 - Operations - Providers services,LDP E Cambs Special Needs,Residential Independent Sector
Cambridgeshire County Council,11-Jan-18,25551936-16649563,-2977.44,Decoy Farm,Care Establishment,4 - Operations - Providers services,LDP E Cambs Special Needs,Residential Independent Sector
Cambridgeshire County Council,11-Jan-18,25551951-16649578,-2977.44,Decoy Farm,Care Establishment,4 - Operations - Providers services,LDP E Cambs Special Needs,Residential Independent Sector
Cambridgeshire County Council,11-Jan-18,25553011-16649579,-2977.44,Decoy Farm,Care Establishment,4 - Operations - Providers services,LDP E Cambs Special Needs,Residential Independent Sector
Cambridgeshire County Council,11-Jan-18,25553019-16649587,-2977.44,Decoy Farm,Care Establishment,4 - Operations - Providers services,LDP E Cambs Special Needs,Residential Independent Sector
Cambridgeshire County Council,11-Jan-18,25399795-16649237,-2977.44,Decoy Farm,Care Establishment,4 - Operations - Providers services,LDP E Cambs Special Needs,Residential Independent Sector
Cambridgeshire County Council,11-Jan-18,25399807-16649247,-2977.44,Decoy Farm,Care Establishment,4 - Operations - Providers services,LDP E Cambs Special Needs,Residential Independent Sector
Cambridgeshire County Council,11-Jan-18,25399811-16649251,-2977.44,Decoy Farm,Care Establishment,4 - Operations - Providers services,LDP E Cambs Special Needs,Residential Independent Sector
Cambridgeshire County Council,11-Jan-18,25399812-16649252,-2977.44,Decoy Farm,Care Establishment,4 - Operations - Providers services,LDP E Cambs Special Needs,Residential Independent Sector
Cambridgeshire County Council,11-Jan-18,25399826-16649266,-2977.44,Decoy Farm,Care Establishment,4 - Operations - Providers services,LDP E Cambs Special Needs,Residential Independent Sector
Cambridgeshire County Council,18-Jan-18,25671910-16692739,-2977.44,Decoy Farm,Care Establishment,4 - Operations - Providers services,LDP E Cambs Special Needs,Residential Independent Sector
Cambridgeshire County Council,18-Jan-18,25671925-16692754,-2977.44,Decoy Farm,Care Establishment,4 - Operations - Providers services,LDP E Cambs Special Needs,Residential Independent Sector
Cambridgeshire County Council,18-Jan-18,25671929-16692758,-2977.44,Decoy Farm,Care Establishment,4 - Operations - Providers services,LDP E Cambs Special Needs,Residential Independent Sector
Cambridgeshire County Council,18-Jan-18,25671930-16692759,-2977.44,Decoy Farm,Care Establishment,4 - Operations - Providers services,LDP E Cambs Special Needs,Residential Independent Sector
Cambridgeshire County Council,18-Jan-18,25671939-16692768,-2977.44,Decoy Farm,Care Establishment,4 - Operations - Providers services,LDP E Cambs Special Needs,Residential Independent Sector
Cambridgeshire County Council,18-Jan-18,25678843-16692775,-2977.44,Decoy Farm,Care Establishment,4 - Operations - Providers services,LDP E Cambs Special Needs,Residential Independent Sector
Cambridgeshire County Council,18-Jan-18,25678863-16692795,-2977.44,Decoy Farm,Care Establishment,4 - Operations - Providers services,LDP E Cambs Special Needs,Residential Independent Sector
Cambridgeshire County Council,18-Jan-18,25678871-16692803,-2977.44,Decoy Farm,Care Establishment,4 - Operations - Providers services,LDP E Cambs Special Needs,Residential Independent Sector
Cambridgeshire County Council,18-Jan-18,25678884-16692816,-2977.44,Decoy Farm,Care Establishment,4 - Operations - Providers services,LDP E Cambs Special Needs,Residential Independent Sector
Cambridgeshire County Council,18-Jan-18,25673866-16692563,-2977.44,Decoy Farm,Care Establishment,4 - Operations - Providers services,LDP E Cambs Special Needs,Residential Independent Sector
Cambridgeshire County Council,18-Jan-18,25673879-16692576,-2977.44,Decoy Farm,Care Establishment,4 - Operations - Providers services,LDP E Cambs Special Needs,Residential Independent Sector
Cambridgeshire County Council,18-Jan-18,25673885-16692582,-2977.44,Decoy Farm,Care Establishment,4 - Operations - Providers services,LDP E Cambs Special Needs,Residential Independent Sector
Cambridgeshire County Council,18-Jan-18,25673891-16692588,-2977.44,Decoy Farm,Care Establishment,4 - Operations - Providers services,LDP E Cambs Special Needs,Residential Independent Sector
Cambridgeshire County Council,18-Jan-18,25673902-16692599,-2977.44,Decoy Farm,Care Establishment,4 - Operations - Providers services,LDP E Cambs Special Needs,Residential Independent Sector
Cambridgeshire County Council,18-Jan-18,25676844-16692605,-2977.44,Decoy Farm,Care Establishment,4 - Operations - Providers services,LDP E Cambs Special Needs,Residential Independent Sector
Cambridgeshire County Council,18-Jan-18,25676847-16692608,-2977.44,Decoy Farm,Care Establishment,4 - Operations - Providers services,LDP E Cambs Special Needs,Residential Independent Sector
Cambridgeshire County Council,18-Jan-18,25676848-16692609,-2977.44,Decoy Farm,Care Establishment,4 - Operations - Providers services,LDP E Cambs Special Needs,Residential Independent Sector
Cambridgeshire County Council,18-Jan-18,25671877-16692706,-2977.44,Decoy Farm,Care Establishment,4 - Operations - Providers services,LDP E Cambs Special Needs,Residential Independent Sector
Cambridgeshire County Council,18-Jan-18,25671887-16692716,-2977.44,Decoy Farm,Care Establishment,4 - Operations - Providers services,LDP E Cambs Special Needs,Residential Independent Sector
Cambridgeshire County Council,18-Jan-18,25671890-16692719,-2977.44,Decoy Farm,Care Establishment,4 - Operations - Providers services,LDP E Cambs Special Needs,Residential Independent Sector
Cambridgeshire County Council,18-Jan-18,25671891-16692720,-2977.44,Decoy Farm,Care Establishment,4 - Operations - Providers services,LDP E Cambs Special Needs,Residential Independent Sector
Cambridgeshire County Council,18-Jan-18,25671897-16692726,-2977.44,Decoy Farm,Care Establishment,4 - Operations - Providers services,LDP E Cambs Special Needs,Residential Independent Sector
Cambridgeshire County Council,18-Jan-18,25671848-16692677,-2977.44,Decoy Farm,Care Establishment,4 - Operations - Providers services,LDP E Cambs Special Needs,Residential Independent Sector
Cambridgeshire County Council,18-Jan-18,25671860-16692689,-2977.44,Decoy Farm,Care Establishment,4 - Operations - Providers services,LDP E Cambs Special Needs,Residential Independent Sector
Cambridgeshire County Council,18-Jan-18,25671861-16692690,-2977.44,Decoy Farm,Care Establishment,4 - Operations - Providers services,LDP E Cambs Special Needs,Residential Independent Sector
Cambridgeshire County Council,18-Jan-18,25671873-16692702,-2977.44,Decoy Farm,Care Establishment,4 - Operations - Providers services,LDP E Cambs Special Needs,Residential Independent Sector
Cambridgeshire County Council,25-Jan-18,25730950-16741168,-2977.44,Decoy Farm,Care Establishment,4 - Operations - Providers services,LDP E Cambs Special Needs,Residential Independent Sector
Cambridgeshire County Council,25-Jan-18,25737846-16741353,-2977.44,Decoy Farm,Care Establishment,4 - Operations - Providers services,LDP E Cambs Special Needs,Residential Independent Sector
Cambridgeshire County Council,25-Jan-18,25730912-16741207,-2977.44,Decoy Farm,Care Establishment,4 - Operations - Providers services,LDP E Cambs Special Needs,Residential Independent Sector
Cambridgeshire County Council,25-Jan-18,25730918-16741213,-2977.44,Decoy Farm,Care Establishment,4 - Operations - Providers services,LDP E Cambs Special Needs,Residential Independent Sector
Cambridgeshire County Council,25-Jan-18,25730933-16741228,-2977.44,Decoy Farm,Care Establishment,4 - Operations - Providers services,LDP E Cambs Special Needs,Residential Independent Sector
Cambridgeshire County Council,25-Jan-18,25733821-16741242,-2977.44,Decoy Farm,Care Establishment,4 - Operations - Providers services,LDP E Cambs Special Needs,Residential Independent Sector
Cambridgeshire County Council,25-Jan-18,25733822-16741243,-2977.44,Decoy Farm,Care Establishment,4 - Operations - Providers services,LDP E Cambs Special Needs,Residential Independent Sector
Cambridgeshire County Council,25-Jan-18,25737770-16741277,-2977.44,Decoy Farm,Care Establishment,4 - Operations - Providers services,LDP E Cambs Special Needs,Residential Independent Sector
Cambridgeshire County Council,25-Jan-18,25737807-16741314,-2977.44,Decoy Farm,Care Establishment,4 - Operations - Providers services,LDP E Cambs Special Needs,Residential Independent Sector
Cambridgeshire County Council,25-Jan-18,25737822-16741329,-2977.44,Decoy Farm,Care Establishment,4 - Operations - Providers services,LDP E Cambs Special Needs,Residential Independent Sector
Cambridgeshire County Council,25-Jan-18,25737828-16741335,-2977.44,Decoy Farm,Care Establishment,4 - Operations - Providers services,LDP E Cambs Special Needs,Residential Independent Sector
Cambridgeshire County Council,25-Jan-18,25737830-16741337,-2977.44,Decoy Farm,Care Establishment,4 - Operations - Providers services,LDP E Cambs Special Needs,Residential Independent Sector
Cambridgeshire County Council,25-Jan-18,25731006-16741115,-2977.44,Decoy Farm,Care Establishment,4 - Operations - Providers services,LDP E Cambs Special Needs,Residential Independent Sector
Cambridgeshire County Council,05-Jan-18,25405885-16628185,-2785.71,Exceptional Care Limited,Care Establishment,S&C,Placements - Social Care,Agency Placements - Out County
Cambridgeshire County Council,25-Jan-18,25737752-16741259,-2552.09,Decoy Farm,Care Establishment,4 - Operations - Providers services,LDP E Cambs Special Needs,Residential Independent Sector
Cambridgeshire County Council,18-Jan-18,25671893-16692722,-2552.09,Decoy Farm,Care Establishment,4 - Operations - Providers services,LDP E Cambs Special Needs,Residential Independent Sector
Cambridgeshire County Council,11-Jan-18,25382145-16649161,-2552.09,Decoy Farm,Care Establishment,4 - Operations - Providers services,LDP E Cambs Special Needs,Residential Independent Sector
Cambridgeshire County Council,11-Jan-18,25555983-16649629,-2552.09,Decoy Farm,Care Establishment,4 - Operations - Providers services,LDP E Cambs Special Needs,Residential Independent Sector
Cambridgeshire County Council,11-Jan-18,25399828-16649268,-2552.09,Decoy Farm,Care Establishment,4 - Operations - Providers services,LDP E Cambs Special Needs,Residential Independent Sector
Cambridgeshire County Council,11-Jan-18,25489267-16649432,-2552.09,Decoy Farm,Care Establishment,4 - Operations - Providers services,LDP E Cambs Special Needs,Residential Independent Sector
Cambridgeshire County Council,18-Jan-18,25671931-16692760,-2552.09,Decoy Farm,Care Establishment,4 - Operations - Providers services,LDP E Cambs Special Needs,Residential Independent Sector
Cambridgeshire County Council,25-Jan-18,25737802-16741309,-2552.09,Decoy Farm,Care Establishment,4 - Operations - Providers services,LDP E Cambs Special Needs,Residential Independent Sector
Cambridgeshire County Council,05-Jan-18,25197881-16625941,-2337.29,Dimensions (Uk) Ltd,Care Establishment,4 - Operations - Providers services,LDP South Cambs - Special Needs,Supported Living
Cambridgeshire County Council,05-Jan-18,25200731-16625949,-2337.29,Dimensions (Uk) Ltd,Care Establishment,4 - Operations - Providers services,LDP South Cambs - Special Needs,Supported Living
Cambridgeshire County Council,05-Jan-18,25254774-16625968,-2337.29,Dimensions (Uk) Ltd,Care Establishment,4 - Operations - Providers services,LDP Cambs City - Special Needs,Supported Living
Cambridgeshire County Council,05-Jan-18,25254775-16625969,-2337.29,Dimensions (Uk) Ltd,Care Establishment,4 - Operations - Providers services,LDP South Cambs - Special Needs,Supported Living
Cambridgeshire County Council,05-Jan-18,25197884-16625944,-2337.29,Dimensions (Uk) Ltd,Care Establishment,4 - Operations - Providers services,LDP Cambs City - Special Needs,Supported Living
Cambridgeshire County Council,05-Jan-18,25254768-16625962,-2337.29,Dimensions (Uk) Ltd,Care Establishment,4 - Operations - Providers services,LDP Cambs City - Special Needs,Supported Living
Cambridgeshire County Council,05-Jan-18,25269083-16625977,-2337.29,Dimensions (Uk) Ltd,Care Establishment,4 - Operations - Providers services,LDP South Cambs - Special Needs,Supported Living
Cambridgeshire County Council,05-Jan-18,25269089-16625983,-2337.29,Dimensions (Uk) Ltd,Care Establishment,4 - Operations - Providers services,LDP South Cambs - Special Needs,Supported Living
Cambridgeshire County Council,05-Jan-18,25394327-16626059,-2337.29,Dimensions (Uk) Ltd,Care Establishment,4 - Operations - Providers services,LDP Cambs City - Special Needs,Supported Living
Cambridgeshire County Council,11-Jan-18,25551560-16658506,-2337.29,Dimensions (Uk) Ltd,Care Establishment,4 - Operations - Providers services,LDP Cambs City - Special Needs,Supported Living
Cambridgeshire County Council,11-Jan-18,25551571-16658517,-2337.29,Dimensions (Uk) Ltd,Care Establishment,4 - Operations - Providers services,LDP South Cambs - Special Needs,Supported Living
Cambridgeshire County Council,11-Jan-18,25551573-16658519,-2337.29,Dimensions (Uk) Ltd,Care Establishment,4 - Operations - Providers services,LDP Cambs City - Special Needs,Supported Living
Cambridgeshire County Council,05-Jan-18,25200730-16625948,-2337.29,Dimensions (Uk) Ltd,Care Establishment,4 - Operations - Providers services,LDP Cambs City - Special Needs,Supported Living
Cambridgeshire County Council,05-Jan-18,25254778-16625972,-2337.29,Dimensions (Uk) Ltd,Care Establishment,4 - Operations - Providers services,LDP South Cambs - Special Needs,Supported Living
Cambridgeshire County Council,05-Jan-18,25266830-16625974,-2337.29,Dimensions (Uk) Ltd,Care Establishment,4 - Operations - Providers services,LDP South Cambs - Special Needs,Supported Living
Cambridgeshire County Council,05-Jan-18,25394330-16626061,-2337.29,Dimensions (Uk) Ltd,Care Establishment,4 - Operations - Providers services,LDP Cambs City - Special Needs,Supported Living
Cambridgeshire County Council,05-Jan-18,25401437-16626101,-2337.29,Dimensions (Uk) Ltd,Care Establishment,4 - Operations - Providers services,LDP South Cambs - Special Needs,Supported Living
Cambridgeshire County Council,05-Jan-18,25401427-16626105,-2337.29,Dimensions (Uk) Ltd,Care Establishment,4 - Operations - Providers services,LDP Cambs City - Special Needs,Supported Living
Cambridgeshire County Council,11-Jan-18,25551559-16658505,-2337.29,Dimensions (Uk) Ltd,Care Establishment,4 - Operations - Providers services,LDP South Cambs - Special Needs,Supported Living
Cambridgeshire County Council,05-Jan-18,25254770-16625964,-2337.29,Dimensions (Uk) Ltd,Care Establishment,4 - Operations - Providers services,LDP Cambs City - Special Needs,Supported Living
Cambridgeshire County Council,05-Jan-18,25394332-16626063,-2337.29,Dimensions (Uk) Ltd,Care Establishment,4 - Operations - Providers services,LDP Cambs City - Special Needs,Supported Living
Cambridgeshire County Council,11-Jan-18,25551563-16658509,-2337.29,Dimensions (Uk) Ltd,Care Establishment,4 - Operations - Providers services,LDP South Cambs - Special Needs,Supported Living
Cambridgeshire County Council,11-Jan-18,25551568-16658514,-2337.29,Dimensions (Uk) Ltd,Care Establishment,4 - Operations - Providers services,LDP South Cambs - Special Needs,Supported Living
Cambridgeshire County Council,05-Jan-18,25197879-16625939,-2337.29,Dimensions (Uk) Ltd,Care Establishment,4 - Operations - Providers services,LDP Cambs City - Special Needs,Supported Living
Cambridgeshire County Council,05-Jan-18,25200734-16625952,-2337.29,Dimensions (Uk) Ltd,Care Establishment,4 - Operations - Providers services,LDP South Cambs - Special Needs,Supported Living
Cambridgeshire County Council,05-Jan-18,25254777-16625971,-2337.29,Dimensions (Uk) Ltd,Care Establishment,4 - Operations - Providers services,LDP South Cambs - Special Needs,Supported Living
Cambridgeshire County Council,05-Jan-18,25254779-16625973,-2337.29,Dimensions (Uk) Ltd,Care Establishment,4 - Operations - Providers services,LDP South Cambs - Special Needs,Supported Living
Cambridgeshire County Council,05-Jan-18,25269092-16625986,-2337.29,Dimensions (Uk) Ltd,Care Establishment,4 - Operations - Providers services,LDP Cambs City - Special Needs,Supported Living
Cambridgeshire County Council,05-Jan-18,25269095-16625989,-2337.29,Dimensions (Uk) Ltd,Care Establishment,4 - Operations - Providers services,LDP South Cambs - Special Needs,Supported Living
Cambridgeshire County Council,05-Jan-18,25394329-16626060,-2337.29,Dimensions (Uk) Ltd,Care Establishment,4 - Operations - Providers services,LDP Cambs City - Special Needs,Supported Living
Cambridgeshire County Council,11-Jan-18,25551562-16658508,-2337.29,Dimensions (Uk) Ltd,Care Establishment,4 - Operations - Providers services,LDP Cambs City - Special Needs,Supported Living
Cambridgeshire County Council,05-Jan-18,25254767-16625961,-2337.29,Dimensions (Uk) Ltd,Care Establishment,4 - Operations - Providers services,LDP South Cambs - Special Needs,Supported Living
Cambridgeshire County Council,05-Jan-18,25269090-16625984,-2337.29,Dimensions (Uk) Ltd,Care Establishment,4 - Operations - Providers services,LDP South Cambs - Special Needs,Supported Living
Cambridgeshire County Council,05-Jan-18,25200733-16625951,-2337.29,Dimensions (Uk) Ltd,Care Establishment,4 - Operations - Providers services,LDP Cambs City - Special Needs,Supported Living
Cambridgeshire County Council,05-Jan-18,25266831-16625975,-2337.29,Dimensions (Uk) Ltd,Care Establishment,4 - Operations - Providers services,LDP South Cambs - Special Needs,Supported Living
Cambridgeshire County Council,05-Jan-18,25394333-16626064,-2337.29,Dimensions (Uk) Ltd,Care Establishment,4 - Operations - Providers services,LDP Cambs City - Special Needs,Supported Living
Cambridgeshire County Council,11-Jan-18,25551570-16658516,-2337.29,Dimensions (Uk) Ltd,Care Establishment,4 - Operations - Providers services,LDP Cambs City - Special Needs,Supported Living
Cambridgeshire County Council,05-Jan-18,25197882-16625942,-2337.29,Dimensions (Uk) Ltd,Care Establishment,4 - Operations - Providers services,LDP South Cambs - Special Needs,Supported Living
Cambridgeshire County Council,05-Jan-18,25269088-16625982,-2337.29,Dimensions (Uk) Ltd,Care Establishment,4 - Operations - Providers services,LDP South Cambs - Special Needs,Supported Living
Cambridgeshire County Council,05-Jan-18,25394331-16626062,-2337.29,Dimensions (Uk) Ltd,Care Establishment,4 - Operations - Providers services,LDP South Cambs - Special Needs,Supported Living
Cambridgeshire County Council,05-Jan-18,25200498-16622310,-2169.67,Centra Support,Care Establishment,4 - Operations - Providers services,LDP City Locality - Care,Supported Living
Cambridgeshire County Council,05-Jan-18,25200501-16622311,-2169.67,Centra Support,Care Establishment,4 - Operations - Providers services,LDP City Locality - Care,Supported Living
Cambridgeshire County Council,18-Jan-18,25673877-16692574,-2126.74,Decoy Farm,Care Establishment,4 - Operations - Providers services,LDP E Cambs Special Needs,Residential Independent Sector
Cambridgeshire County Council,11-Jan-18,25399743-16649307,-2126.74,Decoy Farm,Care Establishment,4 - Operations - Providers services,LDP E Cambs Special Needs,Residential Independent Sector
Cambridgeshire County Council,25-Jan-18,25731011-16741120,-2126.74,Decoy Farm,Care Establishment,4 - Operations - Providers services,LDP E Cambs Special Needs,Residential Independent Sector
Cambridgeshire County Council,11-Jan-18,25489278-16649443,-2126.74,Decoy Farm,Care Establishment,4 - Operations - Providers services,LDP E Cambs Special Needs,Residential Independent Sector
Cambridgeshire County Council,05-Jan-18,25253375-16602076,-2114.02,Unit 2b (Dimensions),Care Establishment,4 - Operations - Providers services,LDP Hunts special needs,Day and Domicillary Care Independent Sector
Cambridgeshire County Council,05-Jan-18,25253376-16602077,-2114.02,Unit 2b (Dimensions),Care Establishment,4 - Operations - Providers services,LDP Hunts special needs,Day and Domicillary Care Independent Sector
Cambridgeshire County Council,05-Jan-18,25253373-16602074,-2114.02,Unit 2b (Dimensions),Care Establishment,4 - Operations - Providers services,LDP Hunts special needs,Day and Domicillary Care Independent Sector
Cambridgeshire County Council,05-Jan-18,25253379-16602080,-2114.02,Unit 2b (Dimensions),Care Establishment,4 - Operations - Providers services,LDP Hunts special needs,Day and Domicillary Care Independent Sector
Cambridgeshire County Council,18-Jan-18,25489591-16695494,-1983.5,Voyage,Care Establishment,4 - Operations - Providers services,LDP South Cambs Locality - Care,Residential Independent Sector
Cambridgeshire County Council,18-Jan-18,25489597-16695500,-1983.5,Voyage,Care Establishment,4 - Operations - Providers services,LDP South Cambs Locality - Care,Residential Independent Sector
Cambridgeshire County Council,18-Jan-18,25489576-16695459,-1983.5,Voyage,Care Establishment,4 - Operations - Providers services,LDP South Cambs Locality - Care,Residential Independent Sector
Cambridgeshire County Council,18-Jan-18,25489580-16695463,-1983.5,Voyage,Care Establishment,4 - Operations - Providers services,LDP South Cambs Locality - Care,Residential Independent Sector
Cambridgeshire County Council,18-Jan-18,25552866-16695537,-1983.5,Voyage,Care Establishment,4 - Operations - Providers services,LDP South Cambs Locality - Care,Residential Independent Sector
Cambridgeshire County Council,18-Jan-18,25552876-16695547,-1983.5,Voyage,Care Establishment,4 - Operations - Providers services,LDP South Cambs Locality - Care,Residential Independent Sector
Cambridgeshire County Council,18-Jan-18,25557511-16695585,-1983.5,Voyage,Care Establishment,4 - Operations - Providers services,LDP South Cambs Locality - Care,Residential Independent Sector
Cambridgeshire County Council,18-Jan-18,25556900-16695322,-1983.5,Voyage,Care Establishment,4 - Operations - Providers services,LDP South Cambs Locality - Care,Residential Independent Sector
Cambridgeshire County Council,18-Jan-18,25555856-16695332,-1983.5,Voyage,Care Establishment,4 - Operations - Providers services,LDP South Cambs Locality - Care,Residential Independent Sector
Cambridgeshire County Council,18-Jan-18,25555857-16695333,-1983.5,Voyage,Care Establishment,4 - Operations - Providers services,LDP South Cambs Locality - Care,Residential Independent Sector
Cambridgeshire County Council,18-Jan-18,25555881-16695357,-1983.5,Voyage,Care Establishment,4 - Operations - Providers services,LDP South Cambs Locality - Care,Residential Independent Sector
Cambridgeshire County Council,18-Jan-18,25489566-16695449,-1983.5,Voyage,Care Establishment,4 - Operations - Providers services,LDP South Cambs Locality - Care,Residential Independent Sector
Cambridgeshire County Council,18-Jan-18,25556869-16695291,-1983.5,Voyage,Care Establishment,4 - Operations - Providers services,LDP South Cambs Locality - Care,Residential Independent Sector
Cambridgeshire County Council,18-Jan-18,25552842-16695513,-1983.5,Voyage,Care Establishment,4 - Operations - Providers services,LDP South Cambs Locality - Care,Residential Independent Sector
Cambridgeshire County Council,18-Jan-18,25552848-16695519,-1983.5,Voyage,Care Establishment,4 - Operations - Providers services,LDP South Cambs Locality - Care,Residential Independent Sector
Cambridgeshire County Council,18-Jan-18,25552871-16695542,-1983.5,Voyage,Care Establishment,4 - Operations - Providers services,LDP South Cambs Locality - Care,Residential Independent Sector
Cambridgeshire County Council,18-Jan-18,25552873-16695544,-1983.5,Voyage,Care Establishment,4 - Operations - Providers services,LDP South Cambs Locality - Care,Residential Independent Sector
Cambridgeshire County Council,18-Jan-18,25552885-16695556,-1983.5,Voyage,Care Establishment,4 - Operations - Providers services,LDP South Cambs Locality - Care,Residential Independent Sector
Cambridgeshire County Council,18-Jan-18,25557509-16695583,-1983.5,Voyage,Care Establishment,4 - Operations - Providers services,LDP South Cambs Locality - Care,Residential Independent Sector
Cambridgeshire County Council,18-Jan-18,25555869-16695345,-1983.5,Voyage,Care Establishment,4 - Operations - Providers services,LDP South Cambs Locality - Care,Residential Independent Sector
Cambridgeshire County Council,18-Jan-18,25555873-16695349,-1983.5,Voyage,Care Establishment,4 - Operations - Providers services,LDP South Cambs Locality - Care,Residential Independent Sector
Cambridgeshire County Council,18-Jan-18,25555879-16695355,-1983.5,Voyage,Care Establishment,4 - Operations - Providers services,LDP South Cambs Locality - Care,Residential Independent Sector
Cambridgeshire County Council,18-Jan-18,25489569-16695452,-1983.5,Voyage,Care Establishment,4 - Operations - Providers services,LDP South Cambs Locality - Care,Residential Independent Sector
Cambridgeshire County Council,18-Jan-18,25489575-16695458,-1983.5,Voyage,Care Establishment,4 - Operations - Providers services,LDP South Cambs Locality - Care,Residential Independent Sector
Cambridgeshire County Council,18-Jan-18,25489579-16695462,-1983.5,Voyage,Care Establishment,4 - Operations - Providers services,LDP South Cambs Locality - Care,Residential Independent Sector
Cambridgeshire County Council,18-Jan-18,25556868-16695290,-1983.5,Voyage,Care Establishment,4 - Operations - Providers services,LDP South Cambs Locality - Care,Residential Independent Sector
Cambridgeshire County Council,18-Jan-18,25556872-16695294,-1983.5,Voyage,Care Establishment,4 - Operations - Providers services,LDP South Cambs Locality - Care,Residential Independent Sector
Cambridgeshire County Council,18-Jan-18,25552853-16695524,-1983.5,Voyage,Care Establishment,4 - Operations - Providers services,LDP South Cambs Locality - Care,Residential Independent Sector
Cambridgeshire County Council,18-Jan-18,25552872-16695543,-1983.5,Voyage,Care Establishment,4 - Operations - Providers services,LDP South Cambs Locality - Care,Residential Independent Sector
Cambridgeshire County Council,18-Jan-18,25552883-16695554,-1983.5,Voyage,Care Establishment,4 - Operations - Providers services,LDP South Cambs Locality - Care,Residential Independent Sector
Cambridgeshire County Council,18-Jan-18,25552886-16695557,-1983.5,Voyage,Care Establishment,4 - Operations - Providers services,LDP South Cambs Locality - Care,Residential Independent Sector
Cambridgeshire County Council,18-Jan-18,25555871-16695347,-1983.5,Voyage,Care Establishment,4 - Operations - Providers services,LDP South Cambs Locality - Care,Residential Independent Sector
Cambridgeshire County Council,18-Jan-18,25555880-16695356,-1983.5,Voyage,Care Establishment,4 - Operations - Providers services,LDP South Cambs Locality - Care,Residential Independent Sector
Cambridgeshire County Council,18-Jan-18,25555882-16695358,-1983.5,Voyage,Care Establishment,4 - Operations - Providers services,LDP South Cambs Locality - Care,Residential Independent Sector
Cambridgeshire County Council,18-Jan-18,25489583-16695486,-1983.5,Voyage,Care Establishment,4 - Operations - Providers services,LDP South Cambs Locality - Care,Residential Independent Sector
Cambridgeshire County Council,18-Jan-18,25489567-16695450,-1983.5,Voyage,Care Establishment,4 - Operations - Providers services,LDP South Cambs Locality - Care,Residential Independent Sector
Cambridgeshire County Council,18-Jan-18,25489568-16695451,-1983.5,Voyage,Care Establishment,4 - Operations - Providers services,LDP South Cambs Locality - Care,Residential Independent Sector
Cambridgeshire County Council,18-Jan-18,25557510-16695584,-1983.5,Voyage,Care Establishment,4 - Operations - Providers services,LDP South Cambs Locality - Care,Residential Independent Sector
Cambridgeshire County Council,18-Jan-18,25555865-16695341,-1983.5,Voyage,Care Establishment,4 - Operations - Providers services,LDP South Cambs Locality - Care,Residential Independent Sector
Cambridgeshire County Council,18-Jan-18,25555870-16695346,-1983.5,Voyage,Care Establishment,4 - Operations - Providers services,LDP South Cambs Locality - Care,Residential Independent Sector
Cambridgeshire County Council,18-Jan-18,25489577-16695460,-1983.5,Voyage,Care Establishment,4 - Operations - Providers services,LDP South Cambs Locality - Care,Residential Independent Sector
Cambridgeshire County Council,18-Jan-18,25552854-16695525,-1983.5,Voyage,Care Establishment,4 - Operations - Providers services,LDP South Cambs Locality - Care,Residential Independent Sector
Cambridgeshire County Council,18-Jan-18,25552895-16695566,-1983.5,Voyage,Care Establishment,4 - Operations - Providers services,LDP South Cambs Locality - Care,Residential Independent Sector
Cambridgeshire County Council,18-Jan-18,25555851-16695327,-1983.5,Voyage,Care Establishment,4 - Operations - Providers services,LDP South Cambs Locality - Care,Residential Independent Sector
Cambridgeshire County Council,18-Jan-18,25555867-16695343,-1983.5,Voyage,Care Establishment,4 - Operations - Providers services,LDP South Cambs Locality - Care,Residential Independent Sector
Cambridgeshire County Council,18-Jan-18,25555872-16695348,-1983.5,Voyage,Care Establishment,4 - Operations - Providers services,LDP South Cambs Locality - Care,Residential Independent Sector
Cambridgeshire County Council,18-Jan-18,25489581-16695484,-1983.5,Voyage,Care Establishment,4 - Operations - Providers services,LDP South Cambs Locality - Care,Residential Independent Sector
Cambridgeshire County Council,18-Jan-18,25552855-16695526,-1983.5,Voyage,Care Establishment,4 - Operations - Providers services,LDP South Cambs Locality - Care,Residential Independent Sector
Cambridgeshire County Council,18-Jan-18,25552857-16695528,-1983.5,Voyage,Care Establishment,4 - Operations - Providers services,LDP South Cambs Locality - Care,Residential Independent Sector
Cambridgeshire County Council,18-Jan-18,25552865-16695536,-1983.5,Voyage,Care Establishment,4 - Operations - Providers services,LDP South Cambs Locality - Care,Residential Independent Sector
Cambridgeshire County Council,18-Jan-18,25552884-16695555,-1983.5,Voyage,Care Establishment,4 - Operations - Providers services,LDP South Cambs Locality - Care,Residential Independent Sector
Cambridgeshire County Council,18-Jan-18,25557499-16695573,-1983.5,Voyage,Care Establishment,4 - Operations - Providers services,LDP South Cambs Locality - Care,Residential Independent Sector
Cambridgeshire County Council,18-Jan-18,25555868-16695344,-1983.5,Voyage,Care Establishment,4 - Operations - Providers services,LDP South Cambs Locality - Care,Residential Independent Sector
Cambridgeshire County Council,18-Jan-18,25489596-16695499,-1983.5,Voyage,Care Establishment,4 - Operations - Providers services,LDP South Cambs Locality - Care,Residential Independent Sector
Cambridgeshire County Council,18-Jan-18,25552849-16695520,-1983.5,Voyage,Care Establishment,4 - Operations - Providers services,LDP South Cambs Locality - Care,Residential Independent Sector
Cambridgeshire County Council,18-Jan-18,25552875-16695546,-1983.5,Voyage,Care Establishment,4 - Operations - Providers services,LDP South Cambs Locality - Care,Residential Independent Sector
Cambridgeshire County Council,18-Jan-18,25552894-16695565,-1983.5,Voyage,Care Establishment,4 - Operations - Providers services,LDP South Cambs Locality - Care,Residential Independent Sector
Cambridgeshire County Council,18-Jan-18,25556899-16695321,-1983.5,Voyage,Care Establishment,4 - Operations - Providers services,LDP South Cambs Locality - Care,Residential Independent Sector
Cambridgeshire County Council,18-Jan-18,25489582-16695485,-1983.5,Voyage,Care Establishment,4 - Operations - Providers services,LDP South Cambs Locality - Care,Residential Independent Sector
Cambridgeshire County Council,18-Jan-18,25489578-16695461,-1983.5,Voyage,Care Establishment,4 - Operations - Providers services,LDP South Cambs Locality - Care,Residential Independent Sector
Cambridgeshire County Council,18-Jan-18,25556876-16695298,-1983.5,Voyage,Care Establishment,4 - Operations - Providers services,LDP South Cambs Locality - Care,Residential Independent Sector
Cambridgeshire County Council,18-Jan-18,25556892-16695314,-1983.5,Voyage,Care Establishment,4 - Operations - Providers services,LDP South Cambs Locality - Care,Residential Independent Sector
Cambridgeshire County Council,18-Jan-18,25552856-16695527,-1983.5,Voyage,Care Establishment,4 - Operations - Providers services,LDP South Cambs Locality - Care,Residential Independent Sector
Cambridgeshire County Council,18-Jan-18,25552874-16695545,-1983.5,Voyage,Care Establishment,4 - Operations - Providers services,LDP South Cambs Locality - Care,Residential Independent Sector
Cambridgeshire County Council,18-Jan-18,25557508-16695582,-1983.5,Voyage,Care Establishment,4 - Operations - Providers services,LDP South Cambs Locality - Care,Residential Independent Sector
Cambridgeshire County Council,05-Jan-18,24390108-16623537,-1929.24,Living Ambitions Ltd,Care Establishment,Corporate Services,LDP Young Adults - Care,Day and Domicillary Care Independent Sector
Cambridgeshire County Council,05-Jan-18,24390138-16623560,-1929.24,Living Ambitions Ltd,Care Establishment,Corporate Services,LDP Young Adults - Care,Day and Domicillary Care Independent Sector
Cambridgeshire County Council,05-Jan-18,24392049-16623572,-1929.24,Living Ambitions Ltd,Care Establishment,Corporate Services,LDP Young Adults - Care,Day and Domicillary Care Independent Sector
Cambridgeshire County Council,05-Jan-18,24387243-16623413,-1929.24,Living Ambitions Ltd,Care Establishment,Corporate Services,LDP Young Adults - Care,Day and Domicillary Care Independent Sector
Cambridgeshire County Council,05-Jan-18,24392054-16623575,-1929.24,Living Ambitions Ltd,Care Establishment,Corporate Services,LDP Young Adults - Care,Day and Domicillary Care Independent Sector
Cambridgeshire County Council,05-Jan-18,24392056-16623577,-1929.24,Living Ambitions Ltd,Care Establishment,Corporate Services,LDP Young Adults - Care,Day and Domicillary Care Independent Sector
Cambridgeshire County Council,05-Jan-18,24390116-16623544,-1929.24,Living Ambitions Ltd,Care Establishment,Corporate Services,LDP Young Adults - Care,Day and Domicillary Care Independent Sector
Cambridgeshire County Council,05-Jan-18,24387241-16623411,-1929.24,Living Ambitions Ltd,Care Establishment,Corporate Services,LDP Young Adults - Care,Day and Domicillary Care Independent Sector
Cambridgeshire County Council,05-Jan-18,24390119-16623546,-1929.24,Living Ambitions Ltd,Care Establishment,Corporate Services,LDP Young Adults - Care,Day and Domicillary Care Independent Sector
Cambridgeshire County Council,05-Jan-18,24390122-16623548,-1929.24,Living Ambitions Ltd,Care Establishment,Corporate Services,LDP Young Adults - Care,Day and Domicillary Care Independent Sector
Cambridgeshire County Council,05-Jan-18,24390132-16623556,-1929.24,Living Ambitions Ltd,Care Establishment,Corporate Services,LDP Young Adults - Care,Day and Domicillary Care Independent Sector
Cambridgeshire County Council,05-Jan-18,24390136-16623558,-1929.24,Living Ambitions Ltd,Care Establishment,Corporate Services,LDP Young Adults - Care,Day and Domicillary Care Independent Sector
Cambridgeshire County Council,05-Jan-18,24392059-16623580,-1929.24,Living Ambitions Ltd,Care Establishment,Corporate Services,LDP Young Adults - Care,Day and Domicillary Care Independent Sector
Cambridgeshire County Council,05-Jan-18,24387240-16623410,-1929.24,Living Ambitions Ltd,Care Establishment,Corporate Services,LDP Young Adults - Care,Day and Domicillary Care Independent Sector
Cambridgeshire County Council,05-Jan-18,24390105-16623534,-1929.24,Living Ambitions Ltd,Care Establishment,Corporate Services,LDP Young Adults - Care,Day and Domicillary Care Independent Sector
Cambridgeshire County Council,05-Jan-18,24390112-16623540,-1929.24,Living Ambitions Ltd,Care Establishment,Corporate Services,LDP Young Adults - Care,Day and Domicillary Care Independent Sector
Cambridgeshire County Council,05-Jan-18,24390124-16623550,-1929.24,Living Ambitions Ltd,Care Establishment,Corporate Services,LDP Young Adults - Care,Day and Domicillary Care Independent Sector
Cambridgeshire County Council,05-Jan-18,24390127-16623552,-1929.24,Living Ambitions Ltd,Care Establishment,Corporate Services,LDP Young Adults - Care,Day and Domicillary Care Independent Sector
Cambridgeshire County Council,05-Jan-18,24390111-16623539,-1929.24,Living Ambitions Ltd,Care Establishment,Corporate Services,LDP Young Adults - Care,Day and Domicillary Care Independent Sector
Cambridgeshire County Council,05-Jan-18,24390118-16623545,-1929.24,Living Ambitions Ltd,Care Establishment,Corporate Services,LDP Young Adults - Care,Day and Domicillary Care Independent Sector
Cambridgeshire County Council,05-Jan-18,24390120-16623547,-1929.24,Living Ambitions Ltd,Care Establishment,Corporate Services,LDP Young Adults - Care,Day and Domicillary Care Independent Sector
Cambridgeshire County Council,05-Jan-18,24390128-16623553,-1929.24,Living Ambitions Ltd,Care Establishment,Corporate Services,LDP Young Adults - Care,Day and Domicillary Care Independent Sector
Cambridgeshire County Council,05-Jan-18,24390123-16623549,-1929.24,Living Ambitions Ltd,Care Establishment,Corporate Services,LDP Young Adults - Care,Day and Domicillary Care Independent Sector
Cambridgeshire County Council,05-Jan-18,24392062-16623582,-1929.24,Living Ambitions Ltd,Care Establishment,Corporate Services,LDP Young Adults - Care,Day and Domicillary Care Independent Sector
Cambridgeshire County Council,05-Jan-18,24392063-16623583,-1929.24,Living Ambitions Ltd,Care Establishment,Corporate Services,LDP Young Adults - Care,Day and Domicillary Care Independent Sector
Cambridgeshire County Council,11-Jan-18,25547004-16652552,-1872.69,Thera East Anglia,Care Establishment,4 - Operations - Providers services,LDP E Cambs Special Needs,Supported Living
Cambridgeshire County Council,11-Jan-18,25548331-16652576,-1872.69,Thera East Anglia,Care Establishment,4 - Operations - Providers services,LDP E Cambs Special Needs,Supported Living
Cambridgeshire County Council,11-Jan-18,25548332-16652577,-1872.69,Thera East Anglia,Care Establishment,4 - Operations - Providers services,LDP E Cambs Special Needs,Supported Living
Cambridgeshire County Council,11-Jan-18,25556938-16652668,-1872.69,Thera East Anglia,Care Establishment,4 - Operations - Providers services,LDP E Cambs Special Needs,Supported Living
Cambridgeshire County Council,11-Jan-18,25547182-16652540,-1872.69,Thera East Anglia,Care Establishment,4 - Operations - Providers services,LDP E Cambs Special Needs,Supported Living
Cambridgeshire County Council,11-Jan-18,25547193-16652543,-1872.69,Thera East Anglia,Care Establishment,4 - Operations - Providers services,LDP E Cambs Special Needs,Supported Living
Cambridgeshire County Council,11-Jan-18,25547196-16652544,-1872.69,Thera East Anglia,Care Establishment,4 - Operations - Providers services,LDP E Cambs Special Needs,Supported Living
Cambridgeshire County Council,11-Jan-18,25547197-16652545,-1872.69,Thera East Anglia,Care Establishment,4 - Operations - Providers services,LDP E Cambs Special Needs,Supported Living
Cambridgeshire County Council,11-Jan-18,25547059-16652550,-1872.69,Thera East Anglia,Care Establishment,4 - Operations - Providers services,LDP E Cambs Special Needs,Supported Living
Cambridgeshire County Council,11-Jan-18,25547043-16652525,-1872.69,Thera East Anglia,Care Establishment,4 - Operations - Providers services,LDP E Cambs Special Needs,Supported Living
Cambridgeshire County Council,11-Jan-18,25547047-16652529,-1872.69,Thera East Anglia,Care Establishment,4 - Operations - Providers services,LDP E Cambs Special Needs,Supported Living
Cambridgeshire County Council,11-Jan-18,25547207-16652547,-1872.69,Thera East Anglia,Care Establishment,4 - Operations - Providers services,LDP E Cambs Special Needs,Supported Living
Cambridgeshire County Council,11-Jan-18,25556932-16652662,-1872.69,Thera East Anglia,Care Establishment,4 - Operations - Providers services,LDP E Cambs Special Needs,Supported Living
Cambridgeshire County Council,11-Jan-18,25556933-16652663,-1872.69,Thera East Anglia,Care Establishment,4 - Operations - Providers services,LDP E Cambs Special Needs,Supported Living
Cambridgeshire County Council,11-Jan-18,25556937-16652667,-1872.69,Thera East Anglia,Care Establishment,4 - Operations - Providers services,LDP E Cambs Special Needs,Supported Living
Cambridgeshire County Council,11-Jan-18,25547042-16652524,-1872.69,Thera East Anglia,Care Establishment,4 - Operations - Providers services,LDP E Cambs Special Needs,Supported Living
Cambridgeshire County Council,11-Jan-18,25559157-16652669,-1872.69,Thera East Anglia,Care Establishment,4 - Operations - Providers services,LDP E Cambs Special Needs,Supported Living
Cambridgeshire County Council,11-Jan-18,25559159-16652671,-1872.69,Thera East Anglia,Care Establishment,4 - Operations - Providers services,LDP E Cambs Special Needs,Supported Living
Cambridgeshire County Council,11-Jan-18,25547052-16652534,-1872.69,Thera East Anglia,Care Establishment,4 - Operations - Providers services,LDP E Cambs Special Needs,Supported Living
Cambridgeshire County Council,11-Jan-18,25547057-16652548,-1872.69,Thera East Anglia,Care Establishment,4 - Operations - Providers services,LDP E Cambs Special Needs,Supported Living
Cambridgeshire County Council,11-Jan-18,25548327-16652572,-1872.69,Thera East Anglia,Care Establishment,4 - Operations - Providers services,LDP E Cambs Special Needs,Supported Living
Cambridgeshire County Council,11-Jan-18,25548333-16652578,-1872.69,Thera East Anglia,Care Establishment,4 - Operations - Providers services,LDP E Cambs Special Needs,Supported Living
Cambridgeshire County Council,11-Jan-18,25559162-16652674,-1872.69,Thera East Anglia,Care Establishment,4 - Operations - Providers services,LDP E Cambs Special Needs,Supported Living
Cambridgeshire County Council,11-Jan-18,25547045-16652527,-1872.69,Thera East Anglia,Care Establishment,4 - Operations - Providers services,LDP E Cambs Special Needs,Supported Living
Cambridgeshire County Council,11-Jan-18,25556936-16652666,-1872.69,Thera East Anglia,Care Establishment,4 - Operations - Providers services,LDP E Cambs Special Needs,Supported Living
Cambridgeshire County Council,11-Jan-18,25547185-16652542,-1872.69,Thera East Anglia,Care Establishment,4 - Operations - Providers services,LDP E Cambs Special Needs,Supported Living
Cambridgeshire County Council,11-Jan-18,25547006-16652554,-1872.69,Thera East Anglia,Care Establishment,4 - Operations - Providers services,LDP E Cambs Special Needs,Supported Living
Cambridgeshire County Council,11-Jan-18,25547009-16652557,-1872.69,Thera East Anglia,Care Establishment,4 - Operations - Providers services,LDP E Cambs Special Needs,Supported Living
Cambridgeshire County Council,11-Jan-18,25547213-16652560,-1872.69,Thera East Anglia,Care Establishment,4 - Operations - Providers services,LDP E Cambs Special Needs,Supported Living
Cambridgeshire County Council,11-Jan-18,25547228-16652567,-1872.69,Thera East Anglia,Care Establishment,4 - Operations - Providers services,LDP E Cambs Special Needs,Supported Living
Cambridgeshire County Council,11-Jan-18,25547049-16652531,-1872.69,Thera East Anglia,Care Establishment,4 - Operations - Providers services,LDP E Cambs Special Needs,Supported Living
Cambridgeshire County Council,11-Jan-18,25547224-16652564,-1872.69,Thera East Anglia,Care Establishment,4 - Operations - Providers services,LDP E Cambs Special Needs,Supported Living
Cambridgeshire County Council,11-Jan-18,25548324-16652569,-1872.69,Thera East Anglia,Care Establishment,4 - Operations - Providers services,LDP E Cambs Special Needs,Supported Living
Cambridgeshire County Council,11-Jan-18,25556934-16652664,-1872.69,Thera East Anglia,Care Establishment,4 - Operations - Providers services,LDP E Cambs Special Needs,Supported Living
Cambridgeshire County Council,11-Jan-18,25559163-16652675,-1872.69,Thera East Anglia,Care Establishment,4 - Operations - Providers services,LDP E Cambs Special Needs,Supported Living
Cambridgeshire County Council,11-Jan-18,25547054-16652536,-1872.69,Thera East Anglia,Care Establishment,4 - Operations - Providers services,LDP E Cambs Special Needs,Supported Living
Cambridgeshire County Council,05-Jan-18,24581388-16602847,-1714.57,Peterborough City Council,Other Public Bodies,Corporate Services,LDP Young Adults - Care,Respite Independent Sector
Cambridgeshire County Council,05-Jan-18,24581383-16602846,-1714.57,Peterborough City Council,Other Public Bodies,Corporate Services,LDP Young Adults - Care,Respite Independent Sector
Cambridgeshire County Council,05-Jan-18,25245318-16612325,-1711.36,Affinity Trust,Care Establishment,4 - Operations - Providers services,LDP Fens - Special Needs,Supported Living
Cambridgeshire County Council,05-Jan-18,25245342-16612349,-1711.36,Affinity Trust,Care Establishment,4 - Operations - Providers services,LDP Fens - Special Needs,Supported Living
Cambridgeshire County Council,05-Jan-18,25403095-16612570,-1711.36,Affinity Trust,Care Establishment,2 - Operations - Learning Disability,LDP Fenland Locality - Care,Supported Living
Cambridgeshire County Council,05-Jan-18,25245321-16612328,-1711.36,Affinity Trust,Care Establishment,4 - Operations - Providers services,LDP Fens - Special Needs,Supported Living
Cambridgeshire County Council,05-Jan-18,25245344-16612351,-1711.36,Affinity Trust,Care Establishment,4 - Operations - Providers services,LDP Fens - Special Needs,Supported Living
Cambridgeshire County Council,05-Jan-18,25245347-16612354,-1711.36,Affinity Trust,Care Establishment,2 - Operations - Learning Disability,LDP Fenland Locality - Care,Supported Living
Cambridgeshire County Council,05-Jan-18,25270232-16612361,-1711.36,Affinity Trust,Care Establishment,2 - Operations - Learning Disability,LDP Fenland Locality - Care,Supported Living
Cambridgeshire County Council,05-Jan-18,25270236-16612364,-1711.36,Affinity Trust,Care Establishment,4 - Operations - Providers services,LDP Fens - Special Needs,Supported Living
Cambridgeshire County Council,05-Jan-18,25270257-16612383,-1711.36,Affinity Trust,Care Establishment,4 - Operations - Providers services,LDP Fens - Special Needs,Supported Living
Cambridgeshire County Council,05-Jan-18,25270259-16612384,-1711.36,Affinity Trust,Care Establishment,4 - Operations - Providers services,LDP Fens - Special Needs,Supported Living
Cambridgeshire County Council,05-Jan-18,25270264-16612389,-1711.36,Affinity Trust,Care Establishment,2 - Operations - Learning Disability,LDP Fenland Locality - Care,Supported Living
Cambridgeshire County Council,05-Jan-18,25403096-16612571,-1711.36,Affinity Trust,Care Establishment,4 - Operations - Providers services,LDP Fens - Special Needs,Supported Living
Cambridgeshire County Council,05-Jan-18,25403100-16612575,-1711.36,Affinity Trust,Care Establishment,2 - Operations - Learning Disability,LDP Fenland Locality - Care,Supported Living
Cambridgeshire County Council,05-Jan-18,25403114-16612589,-1711.36,Affinity Trust,Care Establishment,2 - Operations - Learning Disability,LDP Fenland Locality - Care,Supported Living
Cambridgeshire County Council,05-Jan-18,25403118-16612593,-1711.36,Affinity Trust,Care Establishment,2 - Operations - Learning Disability,LDP Fenland Locality - Care,Supported Living
Cambridgeshire County Council,05-Jan-18,25403119-16612594,-1711.36,Affinity Trust,Care Establishment,4 - Operations - Providers services,LDP Fens - Special Needs,Supported Living
Cambridgeshire County Council,05-Jan-18,25403124-16612599,-1711.36,Affinity Trust,Care Establishment,2 - Operations - Learning Disability,LDP Fenland Locality - Care,Supported Living
Cambridgeshire County Council,05-Jan-18,25403129-16612604,-1711.36,Affinity Trust,Care Establishment,4 - Operations - Providers services,LDP Fens - Special Needs,Supported Living
Cambridgeshire County Council,05-Jan-18,25245336-16612343,-1711.36,Affinity Trust,Care Establishment,2 - Operations - Learning Disability,LDP Fenland Locality - Care,Supported Living
Cambridgeshire County Council,05-Jan-18,25270238-16612366,-1711.36,Affinity Trust,Care Establishment,2 - Operations - Learning Disability,LDP Fenland Locality - Care,Supported Living
Cambridgeshire County Council,05-Jan-18,25270247-16612374,-1711.36,Affinity Trust,Care Establishment,4 - Operations - Providers services,LDP Fens - Special Needs,Supported Living
Cambridgeshire County Council,05-Jan-18,25270250-16612377,-1711.36,Affinity Trust,Care Establishment,4 - Operations - Providers services,LDP Fens - Special Needs,Supported Living
Cambridgeshire County Council,05-Jan-18,25270262-16612387,-1711.36,Affinity Trust,Care Establishment,4 - Operations - Providers services,LDP Fens - Special Needs,Supported Living
Cambridgeshire County Council,05-Jan-18,25403109-16612584,-1711.36,Affinity Trust,Care Establishment,2 - Operations - Learning Disability,LDP Fenland Locality - Care,Supported Living
Cambridgeshire County Council,05-Jan-18,25245331-16612338,-1711.36,Affinity Trust,Care Establishment,4 - Operations - Providers services,LDP Fens - Special Needs,Supported Living
Cambridgeshire County Council,05-Jan-18,25245337-16612344,-1711.36,Affinity Trust,Care Establishment,4 - Operations - Providers services,LDP Fens - Special Needs,Supported Living
Cambridgeshire County Council,05-Jan-18,25245345-16612352,-1711.36,Affinity Trust,Care Establishment,2 - Operations - Learning Disability,LDP Fenland Locality - Care,Supported Living
Cambridgeshire County Council,05-Jan-18,25270230-16612359,-1711.36,Affinity Trust,Care Establishment,2 - Operations - Learning Disability,LDP Fenland Locality - Care,Supported Living
Cambridgeshire County Council,05-Jan-18,25270260-16612385,-1711.36,Affinity Trust,Care Establishment,4 - Operations - Providers services,LDP Fens - Special Needs,Supported Living
Cambridgeshire County Council,05-Jan-18,25403110-16612585,-1711.36,Affinity Trust,Care Establishment,2 - Operations - Learning Disability,LDP Fenland Locality - Care,Supported Living
Cambridgeshire County Council,05-Jan-18,25403121-16612596,-1711.36,Affinity Trust,Care Establishment,2 - Operations - Learning Disability,LDP Fenland Locality - Care,Supported Living
Cambridgeshire County Council,05-Jan-18,25245319-16612326,-1711.36,Affinity Trust,Care Establishment,4 - Operations - Providers services,LDP Fens - Special Needs,Supported Living
Cambridgeshire County Council,05-Jan-18,25245325-16612332,-1711.36,Affinity Trust,Care Establishment,4 - Operations - Providers services,LDP Fens - Special Needs,Supported Living
Cambridgeshire County Council,05-Jan-18,25245350-16612357,-1711.36,Affinity Trust,Care Establishment,2 - Operations - Learning Disability,LDP Fenland Locality - Care,Supported Living
Cambridgeshire County Council,05-Jan-18,25403097-16612572,-1711.36,Affinity Trust,Care Establishment,4 - Operations - Providers services,LDP Fens - Special Needs,Supported Living
Cambridgeshire County Council,05-Jan-18,25403111-16612586,-1711.36,Affinity Trust,Care Establishment,2 - Operations - Learning Disability,LDP Fenland Locality - Care,Supported Living
Cambridgeshire County Council,05-Jan-18,25270241-16612369,-1711.36,Affinity Trust,Care Establishment,4 - Operations - Providers services,LDP Fens - Special Needs,Supported Living
Cambridgeshire County Council,05-Jan-18,25403103-16612578,-1711.36,Affinity Trust,Care Establishment,2 - Operations - Learning Disability,LDP Fenland Locality - Care,Supported Living
Cambridgeshire County Council,05-Jan-18,25403105-16612580,-1711.36,Affinity Trust,Care Establishment,4 - Operations - Providers services,LDP Fens - Special Needs,Supported Living
Cambridgeshire County Council,05-Jan-18,25245323-16612330,-1711.36,Affinity Trust,Care Establishment,4 - Operations - Providers services,LDP Fens - Special Needs,Supported Living
Cambridgeshire County Council,05-Jan-18,25245338-16612345,-1711.36,Affinity Trust,Care Establishment,4 - Operations - Providers services,LDP Fens - Special Needs,Supported Living
Cambridgeshire County Council,05-Jan-18,25245349-16612356,-1711.36,Affinity Trust,Care Establishment,4 - Operations - Providers services,LDP Fens - Special Needs,Supported Living
Cambridgeshire County Council,05-Jan-18,25270244-16612372,-1711.36,Affinity Trust,Care Establishment,4 - Operations - Providers services,LDP Fens - Special Needs,Supported Living
Cambridgeshire County Council,05-Jan-18,25270249-16612376,-1711.36,Affinity Trust,Care Establishment,2 - Operations - Learning Disability,LDP Fenland Locality - Care,Supported Living
Cambridgeshire County Council,05-Jan-18,25403116-16612591,-1711.36,Affinity Trust,Care Establishment,4 - Operations - Providers services,LDP Fens - Special Needs,Supported Living
Cambridgeshire County Council,05-Jan-18,25245326-16612333,-1711.36,Affinity Trust,Care Establishment,2 - Operations - Learning Disability,LDP Fenland Locality - Care,Supported Living
Cambridgeshire County Council,05-Jan-18,25270242-16612370,-1711.36,Affinity Trust,Care Establishment,4 - Operations - Providers services,LDP Fens - Special Needs,Supported Living
Cambridgeshire County Council,05-Jan-18,25270266-16612391,-1711.36,Affinity Trust,Care Establishment,2 - Operations - Learning Disability,LDP Fenland Locality - Care,Supported Living
Cambridgeshire County Council,05-Jan-18,25386422-16611536,-1711.24,Conquest Care Homes Peterborough,Care Establishment,Corporate Services,LDP Young Adults - Care,Residential Independent Sector
Cambridgeshire County Council,05-Jan-18,25386417-16611533,-1711.24,Conquest Care Homes Peterborough,Care Establishment,Corporate Services,LDP Young Adults - Care,Residential Independent Sector
Cambridgeshire County Council,05-Jan-18,25386430-16611541,-1711.24,Conquest Care Homes Peterborough,Care Establishment,Corporate Services,LDP Young Adults - Care,Residential Independent Sector
Cambridgeshire County Council,18-Jan-18,25489590-16695493,-1700.14,Voyage,Care Establishment,4 - Operations - Providers services,LDP South Cambs Locality - Care,Residential Independent Sector
Cambridgeshire County Council,22-Jan-18,25702139-16707537,-1684.54,Royal Mail Group Ltd,Trade Supplier,Corporate Services,Resources Franking Machine,Postage & Carriage
Cambridgeshire County Council,05-Jan-18,24857109-16604437,-1665.02,Avican Support Ltd,Care Establishment,4 - Operations - Providers services,LDP E Cambs Special Needs,Day and Domicillary Care Independent Sector
Cambridgeshire County Council,05-Jan-18,24857110-16604438,-1665.02,Avican Support Ltd,Care Establishment,4 - Operations - Providers services,LDP E Cambs Special Needs,Day and Domicillary Care Independent Sector
Cambridgeshire County Council,05-Jan-18,24857113-16604441,-1665.02,Avican Support Ltd,Care Establishment,4 - Operations - Providers services,LDP E Cambs Special Needs,Day and Domicillary Care Independent Sector
Cambridgeshire County Council,05-Jan-18,24857118-16604446,-1665.02,Avican Support Ltd,Care Establishment,4 - Operations - Providers services,LDP E Cambs Special Needs,Day and Domicillary Care Independent Sector
Cambridgeshire County Council,05-Jan-18,24857116-16604444,-1665.02,Avican Support Ltd,Care Establishment,4 - Operations - Providers services,LDP E Cambs Special Needs,Day and Domicillary Care Independent Sector
Cambridgeshire County Council,05-Jan-18,24857117-16604445,-1665.02,Avican Support Ltd,Care Establishment,4 - Operations - Providers services,LDP E Cambs Special Needs,Day and Domicillary Care Independent Sector
Cambridgeshire County Council,05-Jan-18,24392048-16623571,-1653.63,Living Ambitions Ltd,Care Establishment,Corporate Services,LDP Young Adults - Care,Day and Domicillary Care Independent Sector
Cambridgeshire County Council,05-Jan-18,24991214-16619432,-1623.96,Redacted Personal Data,Individual,4 - Operations - Providers services,LDP South Cambs Locality - Care,Direct Payments - Social Services
Cambridgeshire County Council,05-Jan-18,24997999-16619444,-1623.96,Redacted Personal Data,Individual,4 - Operations - Providers services,LDP South Cambs Locality - Care,Direct Payments - Social Services
Cambridgeshire County Council,11-Jan-18,25552237-16652623,-1592.33,Thera East Anglia,Care Establishment,4 - Operations - Providers services,LDP E Cambs Special Needs,Supported Living
Cambridgeshire County Council,11-Jan-18,25552218-16652638,-1592.33,Thera East Anglia,Care Establishment,4 - Operations - Providers services,LDP E Cambs Special Needs,Supported Living
Cambridgeshire County Council,11-Jan-18,25552223-16652643,-1592.33,Thera East Anglia,Care Establishment,4 - Operations - Providers services,LDP E Cambs Special Needs,Supported Living
Cambridgeshire County Council,11-Jan-18,25552216-16652636,-1592.33,Thera East Anglia,Care Establishment,4 - Operations - Providers services,LDP E Cambs Special Needs,Supported Living
Cambridgeshire County Council,11-Jan-18,25552229-16652649,-1592.33,Thera East Anglia,Care Establishment,4 - Operations - Providers services,LDP E Cambs Special Needs,Supported Living
Cambridgeshire County Council,11-Jan-18,25552234-16652654,-1592.33,Thera East Anglia,Care Establishment,4 - Operations - Providers services,LDP E Cambs Special Needs,Supported Living
Cambridgeshire County Council,11-Jan-18,25552235-16652655,-1592.33,Thera East Anglia,Care Establishment,4 - Operations - Providers services,LDP E Cambs Special Needs,Supported Living
Cambridgeshire County Council,11-Jan-18,25552215-16652635,-1592.33,Thera East Anglia,Care Establishment,4 - Operations - Providers services,LDP E Cambs Special Needs,Supported Living
Cambridgeshire County Council,11-Jan-18,25552221-16652641,-1592.33,Thera East Anglia,Care Establishment,4 - Operations - Providers services,LDP E Cambs Special Needs,Supported Living
Cambridgeshire County Council,11-Jan-18,25552242-16652628,-1592.33,Thera East Anglia,Care Establishment,4 - Operations - Providers services,LDP E Cambs Special Needs,Supported Living
Cambridgeshire County Council,11-Jan-18,25552245-16652631,-1592.33,Thera East Anglia,Care Establishment,4 - Operations - Providers services,LDP E Cambs Special Needs,Supported Living
Cambridgeshire County Council,11-Jan-18,25552226-16652646,-1592.33,Thera East Anglia,Care Establishment,4 - Operations - Providers services,LDP E Cambs Special Needs,Supported Living
Cambridgeshire County Council,11-Jan-18,25552246-16652632,-1592.33,Thera East Anglia,Care Establishment,4 - Operations - Providers services,LDP E Cambs Special Needs,Supported Living
Cambridgeshire County Council,11-Jan-18,25552214-16652634,-1592.33,Thera East Anglia,Care Establishment,4 - Operations - Providers services,LDP E Cambs Special Needs,Supported Living
Cambridgeshire County Council,11-Jan-18,25552227-16652647,-1592.33,Thera East Anglia,Care Establishment,4 - Operations - Providers services,LDP E Cambs Special Needs,Supported Living
Cambridgeshire County Council,11-Jan-18,25552232-16652652,-1592.33,Thera East Anglia,Care Establishment,4 - Operations - Providers services,LDP E Cambs Special Needs,Supported Living
Cambridgeshire County Council,18-Jan-18,25557498-16695572,-1416.79,Voyage,Care Establishment,4 - Operations - Providers services,LDP South Cambs Locality - Care,Residential Independent Sector
Cambridgeshire County Council,05-Jan-18,25386466-16610013,-1411.55,Caretech Community Services,Care Establishment,4 - Operations - Providers services,LDP South Cambs Locality - Care,Residential Independent Sector
Cambridgeshire County Council,05-Jan-18,25386487-16610016,-1411.55,Caretech Community Services,Care Establishment,4 - Operations - Providers services,LDP South Cambs Locality - Care,Residential Independent Sector
Cambridgeshire County Council,05-Jan-18,25386484-16610014,-1411.55,Caretech Community Services,Care Establishment,4 - Operations - Providers services,LDP South Cambs Locality - Care,Residential Independent Sector
Cambridgeshire County Council,05-Jan-18,25386485-16610015,-1411.55,Caretech Community Services,Care Establishment,4 - Operations - Providers services,LDP South Cambs Locality - Care,Residential Independent Sector
Cambridgeshire County Council,05-Jan-18,25386505-16610018,-1411.55,Caretech Community Services,Care Establishment,4 - Operations - Providers services,LDP South Cambs Locality - Care,Residential Independent Sector
Cambridgeshire County Council,11-Jan-18,25556101-16658531,-1408.16,Dimensions (Uk) Ltd,Care Establishment,4 - Operations - Providers services,LDP South Cambs Locality - Care,Supported Living
Cambridgeshire County Council,11-Jan-18,25556102-16658532,-1408.16,Dimensions (Uk) Ltd,Care Establishment,4 - Operations - Providers services,LDP South Cambs Locality - Care,Supported Living
Cambridgeshire County Council,11-Jan-18,25556134-16658564,-1408.16,Dimensions (Uk) Ltd,Care Establishment,4 - Operations - Providers services,LDP South Cambs Locality - Care,Supported Living
Cambridgeshire County Council,11-Jan-18,25556099-16658529,-1408.16,Dimensions (Uk) Ltd,Care Establishment,4 - Operations - Providers services,LDP South Cambs Locality - Care,Supported Living
Cambridgeshire County Council,11-Jan-18,25556103-16658533,-1408.16,Dimensions (Uk) Ltd,Care Establishment,4 - Operations - Providers services,LDP South Cambs Locality - Care,Supported Living
Cambridgeshire County Council,11-Jan-18,25556118-16658548,-1408.16,Dimensions (Uk) Ltd,Care Establishment,4 - Operations - Providers services,LDP South Cambs Locality - Care,Supported Living
Cambridgeshire County Council,11-Jan-18,25556104-16658534,-1408.16,Dimensions (Uk) Ltd,Care Establishment,4 - Operations - Providers services,LDP South Cambs Locality - Care,Supported Living
Cambridgeshire County Council,11-Jan-18,25556128-16658558,-1408.16,Dimensions (Uk) Ltd,Care Establishment,4 - Operations - Providers services,LDP South Cambs Locality - Care,Supported Living
Cambridgeshire County Council,11-Jan-18,25556130-16658560,-1408.16,Dimensions (Uk) Ltd,Care Establishment,4 - Operations - Providers services,LDP South Cambs Locality - Care,Supported Living
Cambridgeshire County Council,11-Jan-18,25556093-16658523,-1408.16,Dimensions (Uk) Ltd,Care Establishment,4 - Operations - Providers services,LDP South Cambs Locality - Care,Supported Living
Cambridgeshire County Council,11-Jan-18,25556098-16658528,-1408.16,Dimensions (Uk) Ltd,Care Establishment,4 - Operations - Providers services,LDP South Cambs Locality - Care,Supported Living
Cambridgeshire County Council,11-Jan-18,25556113-16658543,-1408.16,Dimensions (Uk) Ltd,Care Establishment,4 - Operations - Providers services,LDP South Cambs Locality - Care,Supported Living
Cambridgeshire County Council,11-Jan-18,25556108-16658538,-1408.16,Dimensions (Uk) Ltd,Care Establishment,4 - Operations - Providers services,LDP South Cambs Locality - Care,Supported Living
Cambridgeshire County Council,11-Jan-18,25556091-16658521,-1408.16,Dimensions (Uk) Ltd,Care Establishment,4 - Operations - Providers services,LDP South Cambs Locality - Care,Supported Living
Cambridgeshire County Council,11-Jan-18,25556095-16658525,-1408.16,Dimensions (Uk) Ltd,Care Establishment,4 - Operations - Providers services,LDP South Cambs Locality - Care,Supported Living
Cambridgeshire County Council,11-Jan-18,25556122-16658552,-1408.16,Dimensions (Uk) Ltd,Care Establishment,4 - Operations - Providers services,LDP South Cambs Locality - Care,Supported Living
Cambridgeshire County Council,11-Jan-18,25556124-16658554,-1408.16,Dimensions (Uk) Ltd,Care Establishment,4 - Operations - Providers services,LDP South Cambs Locality - Care,Supported Living
Cambridgeshire County Council,11-Jan-18,25556127-16658557,-1408.16,Dimensions (Uk) Ltd,Care Establishment,4 - Operations - Providers services,LDP South Cambs Locality - Care,Supported Living
Cambridgeshire County Council,11-Jan-18,25556131-16658561,-1408.16,Dimensions (Uk) Ltd,Care Establishment,4 - Operations - Providers services,LDP South Cambs Locality - Care,Supported Living
Cambridgeshire County Council,11-Jan-18,25556107-16658537,-1408.16,Dimensions (Uk) Ltd,Care Establishment,4 - Operations - Providers services,LDP South Cambs Locality - Care,Supported Living
Cambridgeshire County Council,11-Jan-18,25556115-16658545,-1408.16,Dimensions (Uk) Ltd,Care Establishment,4 - Operations - Providers services,LDP South Cambs Locality - Care,Supported Living
Cambridgeshire County Council,11-Jan-18,25552931-16649962,-1381.43,Westminster Homecare Limited,Care Establishment,4 - Operations - Providers services,LDP E Cambs Special Needs,Day and Domicillary Care Independent Sector
Cambridgeshire County Council,05-Jan-18,24392051-16623573,-1378.03,Living Ambitions Ltd,Care Establishment,Corporate Services,LDP Young Adults - Care,Day and Domicillary Care Independent Sector
Cambridgeshire County Council,11-Jan-18,25244937-16652885,-1328.44,Care Management Group (64-66 Carlton),Care Establishment,4 - Operations - Providers services,LDP E Cambs Special Needs,Residential Independent Sector
Cambridgeshire County Council,11-Jan-18,25246122-16652902,-1328.44,Care Management Group (64-66 Carlton),Care Establishment,4 - Operations - Providers services,LDP E Cambs Special Needs,Residential Independent Sector
Cambridgeshire County Council,11-Jan-18,25249120-16652942,-1328.44,Care Management Group (64-66 Carlton),Care Establishment,4 - Operations - Providers services,LDP E Cambs Special Needs,Residential Independent Sector
Cambridgeshire County Council,11-Jan-18,25250473-16652962,-1328.44,Care Management Group (64-66 Carlton),Care Establishment,4 - Operations - Providers services,LDP E Cambs Special Needs,Residential Independent Sector
Cambridgeshire County Council,11-Jan-18,25246069-16652984,-1328.44,Care Management Group (64-66 Carlton),Care Establishment,4 - Operations - Providers services,LDP E Cambs Special Needs,Residential Independent Sector
Cambridgeshire County Council,11-Jan-18,25246109-16653024,-1328.44,Care Management Group (64-66 Carlton),Care Establishment,4 - Operations - Providers services,LDP E Cambs Special Needs,Residential Independent Sector
Cambridgeshire County Council,11-Jan-18,25272544-16653362,-1328.44,Care Management Group (64-66 Carlton),Care Establishment,4 - Operations - Providers services,LDP E Cambs Special Needs,Residential Independent Sector
Cambridgeshire County Council,11-Jan-18,25272553-16653371,-1328.44,Care Management Group (64-66 Carlton),Care Establishment,4 - Operations - Providers services,LDP E Cambs Special Needs,Residential Independent Sector
Cambridgeshire County Council,11-Jan-18,25272560-16653378,-1328.44,Care Management Group (64-66 Carlton),Care Establishment,4 - Operations - Providers services,LDP E Cambs Special Needs,Residential Independent Sector
Cambridgeshire County Council,11-Jan-18,25272575-16653393,-1328.44,Care Management Group (64-66 Carlton),Care Establishment,4 - Operations - Providers services,LDP E Cambs Special Needs,Residential Independent Sector
Cambridgeshire County Council,11-Jan-18,25387124-16653435,-1328.44,Care Management Group (64-66 Carlton),Care Establishment,4 - Operations - Providers services,LDP E Cambs Special Needs,Residential Independent Sector
Cambridgeshire County Council,11-Jan-18,25253769-16653068,-1328.44,Care Management Group (64-66 Carlton),Care Establishment,4 - Operations - Providers services,LDP E Cambs Special Needs,Residential Independent Sector
Cambridgeshire County Council,11-Jan-18,25255111-16653074,-1328.44,Care Management Group (64-66 Carlton),Care Establishment,4 - Operations - Providers services,LDP E Cambs Special Needs,Residential Independent Sector
Cambridgeshire County Council,11-Jan-18,25267106-16653141,-1328.44,Care Management Group (64-66 Carlton),Care Establishment,4 - Operations - Providers services,LDP E Cambs Special Needs,Residential Independent Sector
Cambridgeshire County Council,11-Jan-18,25267162-16653161,-1328.44,Care Management Group (64-66 Carlton),Care Establishment,4 - Operations - Providers services,LDP E Cambs Special Needs,Residential Independent Sector
Cambridgeshire County Council,11-Jan-18,25267164-16653163,-1328.44,Care Management Group (64-66 Carlton),Care Establishment,4 - Operations - Providers services,LDP E Cambs Special Needs,Residential Independent Sector
Cambridgeshire County Council,11-Jan-18,25267169-16653168,-1328.44,Care Management Group (64-66 Carlton),Care Establishment,4 - Operations - Providers services,LDP E Cambs Special Needs,Residential Independent Sector
Cambridgeshire County Council,11-Jan-18,25267181-16653180,-1328.44,Care Management Group (64-66 Carlton),Care Establishment,4 - Operations - Providers services,LDP E Cambs Special Needs,Residential Independent Sector
Cambridgeshire County Council,11-Jan-18,25267188-16653187,-1328.44,Care Management Group (64-66 Carlton),Care Establishment,4 - Operations - Providers services,LDP E Cambs Special Needs,Residential Independent Sector
Cambridgeshire County Council,11-Jan-18,25267192-16653191,-1328.44,Care Management Group (64-66 Carlton),Care Establishment,4 - Operations - Providers services,LDP E Cambs Special Needs,Residential Independent Sector
Cambridgeshire County Council,11-Jan-18,25267198-16653197,-1328.44,Care Management Group (64-66 Carlton),Care Establishment,4 - Operations - Providers services,LDP E Cambs Special Needs,Residential Independent Sector
Cambridgeshire County Council,11-Jan-18,25267200-16653199,-1328.44,Care Management Group (64-66 Carlton),Care Establishment,4 - Operations - Providers services,LDP E Cambs Special Needs,Residential Independent Sector
Cambridgeshire County Council,11-Jan-18,25267213-16653212,-1328.44,Care Management Group (64-66 Carlton),Care Establishment,4 - Operations - Providers services,LDP E Cambs Special Needs,Residential Independent Sector
Cambridgeshire County Council,11-Jan-18,25267129-16653227,-1328.44,Care Management Group (64-66 Carlton),Care Establishment,4 - Operations - Providers services,LDP E Cambs Special Needs,Residential Independent Sector
Cambridgeshire County Council,11-Jan-18,25267132-16653230,-1328.44,Care Management Group (64-66 Carlton),Care Establishment,4 - Operations - Providers services,LDP E Cambs Special Needs,Residential Independent Sector
Cambridgeshire County Council,11-Jan-18,25267142-16653240,-1328.44,Care Management Group (64-66 Carlton),Care Establishment,4 - Operations - Providers services,LDP E Cambs Special Needs,Residential Independent Sector
Cambridgeshire County Council,11-Jan-18,25267146-16653244,-1328.44,Care Management Group (64-66 Carlton),Care Establishment,4 - Operations - Providers services,LDP E Cambs Special Needs,Residential Independent Sector
Cambridgeshire County Council,11-Jan-18,25267148-16653246,-1328.44,Care Management Group (64-66 Carlton),Care Establishment,4 - Operations - Providers services,LDP E Cambs Special Needs,Residential Independent Sector
Cambridgeshire County Council,11-Jan-18,25267155-16653253,-1328.44,Care Management Group (64-66 Carlton),Care Establishment,4 - Operations - Providers services,LDP E Cambs Special Needs,Residential Independent Sector
Cambridgeshire County Council,11-Jan-18,25267082-16653260,-1328.44,Care Management Group (64-66 Carlton),Care Establishment,4 - Operations - Providers services,LDP E Cambs Special Needs,Residential Independent Sector
Cambridgeshire County Council,11-Jan-18,25267095-16653273,-1328.44,Care Management Group (64-66 Carlton),Care Establishment,4 - Operations - Providers services,LDP E Cambs Special Needs,Residential Independent Sector
Cambridgeshire County Council,11-Jan-18,25267102-16653280,-1328.44,Care Management Group (64-66 Carlton),Care Establishment,4 - Operations - Providers services,LDP E Cambs Special Needs,Residential Independent Sector
Cambridgeshire County Council,11-Jan-18,25246093-16653008,-1328.44,Care Management Group (64-66 Carlton),Care Establishment,4 - Operations - Providers services,LDP E Cambs Special Needs,Residential Independent Sector
Cambridgeshire County Council,11-Jan-18,25551683-16653788,-1328.44,Care Management Group (64-66 Carlton),Care Establishment,4 - Operations - Providers services,LDP E Cambs Special Needs,Residential Independent Sector
Cambridgeshire County Council,11-Jan-18,25551695-16653809,-1328.44,Care Management Group (64-66 Carlton),Care Establishment,4 - Operations - Providers services,LDP E Cambs Special Needs,Residential Independent Sector
Cambridgeshire County Council,11-Jan-18,25551722-16653836,-1328.44,Care Management Group (64-66 Carlton),Care Establishment,4 - Operations - Providers services,LDP E Cambs Special Needs,Residential Independent Sector
Cambridgeshire County Council,11-Jan-18,25551724-16653838,-1328.44,Care Management Group (64-66 Carlton),Care Establishment,4 - Operations - Providers services,LDP E Cambs Special Needs,Residential Independent Sector
Cambridgeshire County Council,11-Jan-18,25552708-16653850,-1328.44,Care Management Group (64-66 Carlton),Care Establishment,4 - Operations - Providers services,LDP E Cambs Special Needs,Residential Independent Sector
Cambridgeshire County Council,11-Jan-18,25552741-16653883,-1328.44,Care Management Group (64-66 Carlton),Care Establishment,4 - Operations - Providers services,LDP E Cambs Special Needs,Residential Independent Sector
Cambridgeshire County Council,11-Jan-18,25387092-16653501,-1328.44,Care Management Group (64-66 Carlton),Care Establishment,4 - Operations - Providers services,LDP E Cambs Special Needs,Residential Independent Sector
Cambridgeshire County Council,11-Jan-18,25387097-16653506,-1328.44,Care Management Group (64-66 Carlton),Care Establishment,4 - Operations - Providers services,LDP E Cambs Special Needs,Residential Independent Sector
Cambridgeshire County Council,11-Jan-18,25387100-16653509,-1328.44,Care Management Group (64-66 Carlton),Care Establishment,4 - Operations - Providers services,LDP E Cambs Special Needs,Residential Independent Sector
Cambridgeshire County Council,11-Jan-18,25392836-16653529,-1328.44,Care Management Group (64-66 Carlton),Care Establishment,4 - Operations - Providers services,LDP E Cambs Special Needs,Residential Independent Sector
Cambridgeshire County Council,11-Jan-18,25394586-16653544,-1328.44,Care Management Group (64-66 Carlton),Care Establishment,4 - Operations - Providers services,LDP E Cambs Special Needs,Residential Independent Sector
Cambridgeshire County Council,11-Jan-18,25392860-16653590,-1328.44,Care Management Group (64-66 Carlton),Care Establishment,4 - Operations - Providers services,LDP E Cambs Special Needs,Residential Independent Sector
Cambridgeshire County Council,11-Jan-18,25392861-16653591,-1328.44,Care Management Group (64-66 Carlton),Care Establishment,4 - Operations - Providers services,LDP E Cambs Special Needs,Residential Independent Sector
Cambridgeshire County Council,11-Jan-18,25392883-16653613,-1328.44,Care Management Group (64-66 Carlton),Care Establishment,4 - Operations - Providers services,LDP E Cambs Special Needs,Residential Independent Sector
Cambridgeshire County Council,11-Jan-18,25547754-16653665,-1328.44,Care Management Group (64-66 Carlton),Care Establishment,4 - Operations - Providers services,LDP E Cambs Special Needs,Residential Independent Sector
Cambridgeshire County Council,11-Jan-18,25547763-16653674,-1328.44,Care Management Group (64-66 Carlton),Care Establishment,4 - Operations - Providers services,LDP E Cambs Special Needs,Residential Independent Sector
Cambridgeshire County Council,11-Jan-18,25547775-16653686,-1328.44,Care Management Group (64-66 Carlton),Care Establishment,4 - Operations - Providers services,LDP E Cambs Special Needs,Residential Independent Sector
Cambridgeshire County Council,11-Jan-18,25547778-16653689,-1328.44,Care Management Group (64-66 Carlton),Care Establishment,4 - Operations - Providers services,LDP E Cambs Special Needs,Residential Independent Sector
Cambridgeshire County Council,11-Jan-18,25549701-16653691,-1328.44,Care Management Group (64-66 Carlton),Care Establishment,4 - Operations - Providers services,LDP E Cambs Special Needs,Residential Independent Sector
Cambridgeshire County Council,11-Jan-18,25549702-16653692,-1328.44,Care Management Group (64-66 Carlton),Care Establishment,4 - Operations - Providers services,LDP E Cambs Special Needs,Residential Independent Sector
Cambridgeshire County Council,11-Jan-18,25549710-16653700,-1328.44,Care Management Group (64-66 Carlton),Care Establishment,4 - Operations - Providers services,LDP E Cambs Special Needs,Residential Independent Sector
Cambridgeshire County Council,11-Jan-18,25549722-16653712,-1328.44,Care Management Group (64-66 Carlton),Care Establishment,4 - Operations - Providers services,LDP E Cambs Special Needs,Residential Independent Sector
Cambridgeshire County Council,11-Jan-18,25549739-16653729,-1328.44,Care Management Group (64-66 Carlton),Care Establishment,4 - Operations - Providers services,LDP E Cambs Special Needs,Residential Independent Sector
Cambridgeshire County Council,11-Jan-18,25552676-16653894,-1328.44,Care Management Group (64-66 Carlton),Care Establishment,4 - Operations - Providers services,LDP E Cambs Special Needs,Residential Independent Sector
Cambridgeshire County Council,11-Jan-18,25552677-16653895,-1328.44,Care Management Group (64-66 Carlton),Care Establishment,4 - Operations - Providers services,LDP E Cambs Special Needs,Residential Independent Sector
Cambridgeshire County Council,11-Jan-18,25246133-16652913,-1328.44,Care Management Group (64-66 Carlton),Care Establishment,4 - Operations - Providers services,LDP E Cambs Special Needs,Residential Independent Sector
Cambridgeshire County Council,11-Jan-18,25246103-16653018,-1328.44,Care Management Group (64-66 Carlton),Care Establishment,4 - Operations - Providers services,LDP E Cambs Special Needs,Residential Independent Sector
Cambridgeshire County Council,11-Jan-18,25246116-16653031,-1328.44,Care Management Group (64-66 Carlton),Care Establishment,4 - Operations - Providers services,LDP E Cambs Special Needs,Residential Independent Sector
Cambridgeshire County Council,11-Jan-18,25269218-16653334,-1328.44,Care Management Group (64-66 Carlton),Care Establishment,4 - Operations - Providers services,LDP E Cambs Special Needs,Residential Independent Sector
Cambridgeshire County Council,11-Jan-18,25269223-16653339,-1328.44,Care Management Group (64-66 Carlton),Care Establishment,4 - Operations - Providers services,LDP E Cambs Special Needs,Residential Independent Sector
Cambridgeshire County Council,11-Jan-18,25269238-16653354,-1328.44,Care Management Group (64-66 Carlton),Care Establishment,4 - Operations - Providers services,LDP E Cambs Special Needs,Residential Independent Sector
Cambridgeshire County Council,11-Jan-18,25272556-16653374,-1328.44,Care Management Group (64-66 Carlton),Care Establishment,4 - Operations - Providers services,LDP E Cambs Special Needs,Residential Independent Sector
Cambridgeshire County Council,11-Jan-18,25387054-16653401,-1328.44,Care Management Group (64-66 Carlton),Care Establishment,4 - Operations - Providers services,LDP E Cambs Special Needs,Residential Independent Sector
Cambridgeshire County Council,11-Jan-18,25387064-16653411,-1328.44,Care Management Group (64-66 Carlton),Care Establishment,4 - Operations - Providers services,LDP E Cambs Special Needs,Residential Independent Sector
Cambridgeshire County Council,11-Jan-18,25387114-16653425,-1328.44,Care Management Group (64-66 Carlton),Care Establishment,4 - Operations - Providers services,LDP E Cambs Special Needs,Residential Independent Sector
Cambridgeshire County Council,11-Jan-18,25253755-16653054,-1328.44,Care Management Group (64-66 Carlton),Care Establishment,4 - Operations - Providers services,LDP E Cambs Special Needs,Residential Independent Sector
Cambridgeshire County Council,11-Jan-18,25253764-16653063,-1328.44,Care Management Group (64-66 Carlton),Care Establishment,4 - Operations - Providers services,LDP E Cambs Special Needs,Residential Independent Sector
Cambridgeshire County Council,11-Jan-18,25253770-16653069,-1328.44,Care Management Group (64-66 Carlton),Care Establishment,4 - Operations - Providers services,LDP E Cambs Special Needs,Residential Independent Sector
Cambridgeshire County Council,11-Jan-18,25255115-16653078,-1328.44,Care Management Group (64-66 Carlton),Care Establishment,4 - Operations - Providers services,LDP E Cambs Special Needs,Residential Independent Sector
Cambridgeshire County Council,11-Jan-18,25255132-16653095,-1328.44,Care Management Group (64-66 Carlton),Care Establishment,4 - Operations - Providers services,LDP E Cambs Special Needs,Residential Independent Sector
Cambridgeshire County Council,11-Jan-18,25253773-16653110,-1328.44,Care Management Group (64-66 Carlton),Care Establishment,4 - Operations - Providers services,LDP E Cambs Special Needs,Residential Independent Sector
Cambridgeshire County Council,11-Jan-18,25253774-16653111,-1328.44,Care Management Group (64-66 Carlton),Care Establishment,4 - Operations - Providers services,LDP E Cambs Special Needs,Residential Independent Sector
Cambridgeshire County Council,11-Jan-18,25253736-16653124,-1328.44,Care Management Group (64-66 Carlton),Care Establishment,4 - Operations - Providers services,LDP E Cambs Special Needs,Residential Independent Sector
Cambridgeshire County Council,11-Jan-18,25253738-16653126,-1328.44,Care Management Group (64-66 Carlton),Care Establishment,4 - Operations - Providers services,LDP E Cambs Special Needs,Residential Independent Sector
Cambridgeshire County Council,11-Jan-18,25267163-16653162,-1328.44,Care Management Group (64-66 Carlton),Care Establishment,4 - Operations - Providers services,LDP E Cambs Special Needs,Residential Independent Sector
Cambridgeshire County Council,11-Jan-18,25267184-16653183,-1328.44,Care Management Group (64-66 Carlton),Care Establishment,4 - Operations - Providers services,LDP E Cambs Special Needs,Residential Independent Sector
Cambridgeshire County Council,11-Jan-18,25267196-16653195,-1328.44,Care Management Group (64-66 Carlton),Care Establishment,4 - Operations - Providers services,LDP E Cambs Special Needs,Residential Independent Sector
Cambridgeshire County Council,11-Jan-18,25267211-16653210,-1328.44,Care Management Group (64-66 Carlton),Care Establishment,4 - Operations - Providers services,LDP E Cambs Special Needs,Residential Independent Sector
Cambridgeshire County Council,11-Jan-18,25267217-16653216,-1328.44,Care Management Group (64-66 Carlton),Care Establishment,4 - Operations - Providers services,LDP E Cambs Special Needs,Residential Independent Sector
Cambridgeshire County Council,11-Jan-18,25267126-16653224,-1328.44,Care Management Group (64-66 Carlton),Care Establishment,4 - Operations - Providers services,LDP E Cambs Special Needs,Residential Independent Sector
Cambridgeshire County Council,11-Jan-18,25269207-16653290,-1328.44,Care Management Group (64-66 Carlton),Care Establishment,4 - Operations - Providers services,LDP E Cambs Special Needs,Residential Independent Sector
Cambridgeshire County Council,11-Jan-18,25269258-16653305,-1328.44,Care Management Group (64-66 Carlton),Care Establishment,4 - Operations - Providers services,LDP E Cambs Special Needs,Residential Independent Sector
Cambridgeshire County Council,11-Jan-18,25269259-16653306,-1328.44,Care Management Group (64-66 Carlton),Care Establishment,4 - Operations - Providers services,LDP E Cambs Special Needs,Residential Independent Sector
Cambridgeshire County Council,11-Jan-18,25246079-16652994,-1328.44,Care Management Group (64-66 Carlton),Care Establishment,4 - Operations - Providers services,LDP E Cambs Special Needs,Residential Independent Sector
Cambridgeshire County Council,11-Jan-18,25387154-16653465,-1328.44,Care Management Group (64-66 Carlton),Care Establishment,4 - Operations - Providers services,LDP E Cambs Special Needs,Residential Independent Sector
Cambridgeshire County Council,11-Jan-18,25387080-16653489,-1328.44,Care Management Group (64-66 Carlton),Care Establishment,4 - Operations - Providers services,LDP E Cambs Special Needs,Residential Independent Sector
Cambridgeshire County Council,11-Jan-18,25549789-16653779,-1328.44,Care Management Group (64-66 Carlton),Care Establishment,4 - Operations - Providers services,LDP E Cambs Special Needs,Residential Independent Sector
Cambridgeshire County Council,11-Jan-18,25551691-16653796,-1328.44,Care Management Group (64-66 Carlton),Care Establishment,4 - Operations - Providers services,LDP E Cambs Special Needs,Residential Independent Sector
Cambridgeshire County Council,11-Jan-18,25551734-16653803,-1328.44,Care Management Group (64-66 Carlton),Care Establishment,4 - Operations - Providers services,LDP E Cambs Special Needs,Residential Independent Sector
Cambridgeshire County Council,11-Jan-18,25551701-16653815,-1328.44,Care Management Group (64-66 Carlton),Care Establishment,4 - Operations - Providers services,LDP E Cambs Special Needs,Residential Independent Sector
Cambridgeshire County Council,11-Jan-18,25551713-16653827,-1328.44,Care Management Group (64-66 Carlton),Care Establishment,4 - Operations - Providers services,LDP E Cambs Special Needs,Residential Independent Sector
Cambridgeshire County Council,11-Jan-18,25551729-16653843,-1328.44,Care Management Group (64-66 Carlton),Care Establishment,4 - Operations - Providers services,LDP E Cambs Special Needs,Residential Independent Sector
Cambridgeshire County Council,11-Jan-18,25552714-16653856,-1328.44,Care Management Group (64-66 Carlton),Care Establishment,4 - Operations - Providers services,LDP E Cambs Special Needs,Residential Independent Sector
Cambridgeshire County Council,11-Jan-18,25552715-16653857,-1328.44,Care Management Group (64-66 Carlton),Care Establishment,4 - Operations - Providers services,LDP E Cambs Special Needs,Residential Independent Sector
Cambridgeshire County Council,11-Jan-18,25552727-16653869,-1328.44,Care Management Group (64-66 Carlton),Care Establishment,4 - Operations - Providers services,LDP E Cambs Special Needs,Residential Independent Sector
Cambridgeshire County Council,11-Jan-18,25387084-16653493,-1328.44,Care Management Group (64-66 Carlton),Care Establishment,4 - Operations - Providers services,LDP E Cambs Special Needs,Residential Independent Sector
Cambridgeshire County Council,11-Jan-18,25387086-16653495,-1328.44,Care Management Group (64-66 Carlton),Care Establishment,4 - Operations - Providers services,LDP E Cambs Special Needs,Residential Independent Sector
Cambridgeshire County Council,11-Jan-18,25387093-16653502,-1328.44,Care Management Group (64-66 Carlton),Care Establishment,4 - Operations - Providers services,LDP E Cambs Special Needs,Residential Independent Sector
Cambridgeshire County Council,11-Jan-18,25392834-16653527,-1328.44,Care Management Group (64-66 Carlton),Care Establishment,4 - Operations - Providers services,LDP E Cambs Special Needs,Residential Independent Sector
Cambridgeshire County Council,11-Jan-18,25392838-16653531,-1328.44,Care Management Group (64-66 Carlton),Care Establishment,4 - Operations - Providers services,LDP E Cambs Special Needs,Residential Independent Sector
Cambridgeshire County Council,11-Jan-18,25392845-16653538,-1328.44,Care Management Group (64-66 Carlton),Care Establishment,4 - Operations - Providers services,LDP E Cambs Special Needs,Residential Independent Sector
Cambridgeshire County Council,11-Jan-18,25394583-16653541,-1328.44,Care Management Group (64-66 Carlton),Care Establishment,4 - Operations - Providers services,LDP E Cambs Special Needs,Residential Independent Sector
Cambridgeshire County Council,11-Jan-18,25392852-16653582,-1328.44,Care Management Group (64-66 Carlton),Care Establishment,4 - Operations - Providers services,LDP E Cambs Special Needs,Residential Independent Sector
Cambridgeshire County Council,11-Jan-18,25392879-16653609,-1328.44,Care Management Group (64-66 Carlton),Care Establishment,4 - Operations - Providers services,LDP E Cambs Special Needs,Residential Independent Sector
Cambridgeshire County Council,11-Jan-18,25392894-16653624,-1328.44,Care Management Group (64-66 Carlton),Care Establishment,4 - Operations - Providers services,LDP E Cambs Special Needs,Residential Independent Sector
Cambridgeshire County Council,11-Jan-18,25400556-16653637,-1328.44,Care Management Group (64-66 Carlton),Care Establishment,4 - Operations - Providers services,LDP E Cambs Special Needs,Residential Independent Sector
Cambridgeshire County Council,11-Jan-18,25547760-16653671,-1328.44,Care Management Group (64-66 Carlton),Care Establishment,4 - Operations - Providers services,LDP E Cambs Special Needs,Residential Independent Sector
Cambridgeshire County Council,11-Jan-18,25547766-16653677,-1328.44,Care Management Group (64-66 Carlton),Care Establishment,4 - Operations - Providers services,LDP E Cambs Special Needs,Residential Independent Sector
Cambridgeshire County Council,11-Jan-18,25547767-16653678,-1328.44,Care Management Group (64-66 Carlton),Care Establishment,4 - Operations - Providers services,LDP E Cambs Special Needs,Residential Independent Sector
Cambridgeshire County Council,11-Jan-18,25549777-16653767,-1328.44,Care Management Group (64-66 Carlton),Care Establishment,4 - Operations - Providers services,LDP E Cambs Special Needs,Residential Independent Sector
Cambridgeshire County Council,11-Jan-18,25387146-16653457,-1328.44,Care Management Group (64-66 Carlton),Care Establishment,4 - Operations - Providers services,LDP E Cambs Special Needs,Residential Independent Sector
Cambridgeshire County Council,11-Jan-18,25552701-16653919,-1328.44,Care Management Group (64-66 Carlton),Care Establishment,4 - Operations - Providers services,LDP E Cambs Special Needs,Residential Independent Sector
Cambridgeshire County Council,11-Jan-18,25552675-16653893,-1328.44,Care Management Group (64-66 Carlton),Care Establishment,4 - Operations - Providers services,LDP E Cambs Special Needs,Residential Independent Sector
Cambridgeshire County Council,11-Jan-18,25246127-16652907,-1328.44,Care Management Group (64-66 Carlton),Care Establishment,4 - Operations - Providers services,LDP E Cambs Special Needs,Residential Independent Sector
Cambridgeshire County Council,11-Jan-18,25249103-16652925,-1328.44,Care Management Group (64-66 Carlton),Care Establishment,4 - Operations - Providers services,LDP E Cambs Special Needs,Residential Independent Sector
Cambridgeshire County Council,11-Jan-18,25249134-16652956,-1328.44,Care Management Group (64-66 Carlton),Care Establishment,4 - Operations - Providers services,LDP E Cambs Special Needs,Residential Independent Sector
Cambridgeshire County Council,11-Jan-18,25250486-16652975,-1328.44,Care Management Group (64-66 Carlton),Care Establishment,4 - Operations - Providers services,LDP E Cambs Special Needs,Residential Independent Sector
Cambridgeshire County Council,11-Jan-18,25244954-16653037,-1328.44,Care Management Group (64-66 Carlton),Care Establishment,4 - Operations - Providers services,LDP E Cambs Special Needs,Residential Independent Sector
Cambridgeshire County Council,11-Jan-18,25269211-16653327,-1328.44,Care Management Group (64-66 Carlton),Care Establishment,4 - Operations - Providers services,LDP E Cambs Special Needs,Residential Independent Sector
Cambridgeshire County Council,11-Jan-18,25272546-16653364,-1328.44,Care Management Group (64-66 Carlton),Care Establishment,4 - Operations - Providers services,LDP E Cambs Special Needs,Residential Independent Sector
Cambridgeshire County Council,11-Jan-18,25272554-16653372,-1328.44,Care Management Group (64-66 Carlton),Care Establishment,4 - Operations - Providers services,LDP E Cambs Special Needs,Residential Independent Sector
Cambridgeshire County Council,11-Jan-18,25272577-16653395,-1328.44,Care Management Group (64-66 Carlton),Care Establishment,4 - Operations - Providers services,LDP E Cambs Special Needs,Residential Independent Sector
Cambridgeshire County Council,11-Jan-18,25387063-16653410,-1328.44,Care Management Group (64-66 Carlton),Care Establishment,4 - Operations - Providers services,LDP E Cambs Special Needs,Residential Independent Sector
Cambridgeshire County Council,11-Jan-18,25253760-16653059,-1328.44,Care Management Group (64-66 Carlton),Care Establishment,4 - Operations - Providers services,LDP E Cambs Special Needs,Residential Independent Sector
Cambridgeshire County Council,11-Jan-18,25255108-16653071,-1328.44,Care Management Group (64-66 Carlton),Care Establishment,4 - Operations - Providers services,LDP E Cambs Special Needs,Residential Independent Sector
Cambridgeshire County Council,11-Jan-18,25255110-16653073,-1328.44,Care Management Group (64-66 Carlton),Care Establishment,4 - Operations - Providers services,LDP E Cambs Special Needs,Residential Independent Sector
Cambridgeshire County Council,11-Jan-18,25255118-16653081,-1328.44,Care Management Group (64-66 Carlton),Care Establishment,4 - Operations - Providers services,LDP E Cambs Special Needs,Residential Independent Sector
Cambridgeshire County Council,11-Jan-18,25253742-16653130,-1328.44,Care Management Group (64-66 Carlton),Care Establishment,4 - Operations - Providers services,LDP E Cambs Special Needs,Residential Independent Sector
Cambridgeshire County Council,11-Jan-18,25253747-16653135,-1328.44,Care Management Group (64-66 Carlton),Care Establishment,4 - Operations - Providers services,LDP E Cambs Special Needs,Residential Independent Sector
Cambridgeshire County Council,11-Jan-18,25267115-16653150,-1328.44,Care Management Group (64-66 Carlton),Care Establishment,4 - Operations - Providers services,LDP E Cambs Special Needs,Residential Independent Sector
Cambridgeshire County Council,11-Jan-18,25267123-16653158,-1328.44,Care Management Group (64-66 Carlton),Care Establishment,4 - Operations - Providers services,LDP E Cambs Special Needs,Residential Independent Sector
Cambridgeshire County Council,11-Jan-18,25267180-16653179,-1328.44,Care Management Group (64-66 Carlton),Care Establishment,4 - Operations - Providers services,LDP E Cambs Special Needs,Residential Independent Sector
Cambridgeshire County Council,11-Jan-18,25267199-16653198,-1328.44,Care Management Group (64-66 Carlton),Care Establishment,4 - Operations - Providers services,LDP E Cambs Special Needs,Residential Independent Sector
Cambridgeshire County Council,11-Jan-18,25267201-16653200,-1328.44,Care Management Group (64-66 Carlton),Care Establishment,4 - Operations - Providers services,LDP E Cambs Special Needs,Residential Independent Sector
Cambridgeshire County Council,11-Jan-18,25267210-16653209,-1328.44,Care Management Group (64-66 Carlton),Care Establishment,4 - Operations - Providers services,LDP E Cambs Special Needs,Residential Independent Sector
Cambridgeshire County Council,11-Jan-18,25267136-16653234,-1328.44,Care Management Group (64-66 Carlton),Care Establishment,4 - Operations - Providers services,LDP E Cambs Special Needs,Residential Independent Sector
Cambridgeshire County Council,11-Jan-18,25267158-16653256,-1328.44,Care Management Group (64-66 Carlton),Care Establishment,4 - Operations - Providers services,LDP E Cambs Special Needs,Residential Independent Sector
Cambridgeshire County Council,11-Jan-18,25267097-16653275,-1328.44,Care Management Group (64-66 Carlton),Care Establishment,4 - Operations - Providers services,LDP E Cambs Special Needs,Residential Independent Sector
Cambridgeshire County Council,11-Jan-18,25269201-16653284,-1328.44,Care Management Group (64-66 Carlton),Care Establishment,4 - Operations - Providers services,LDP E Cambs Special Needs,Residential Independent Sector
Cambridgeshire County Council,11-Jan-18,25269254-16653301,-1328.44,Care Management Group (64-66 Carlton),Care Establishment,4 - Operations - Providers services,LDP E Cambs Special Needs,Residential Independent Sector
Cambridgeshire County Council,11-Jan-18,25269262-16653309,-1328.44,Care Management Group (64-66 Carlton),Care Establishment,4 - Operations - Providers services,LDP E Cambs Special Needs,Residential Independent Sector
Cambridgeshire County Council,11-Jan-18,25246075-16652990,-1328.44,Care Management Group (64-66 Carlton),Care Establishment,4 - Operations - Providers services,LDP E Cambs Special Needs,Residential Independent Sector
Cambridgeshire County Council,11-Jan-18,25246092-16653007,-1328.44,Care Management Group (64-66 Carlton),Care Establishment,4 - Operations - Providers services,LDP E Cambs Special Needs,Residential Independent Sector
Cambridgeshire County Council,11-Jan-18,25387155-16653466,-1328.44,Care Management Group (64-66 Carlton),Care Establishment,4 - Operations - Providers services,LDP E Cambs Special Needs,Residential Independent Sector
Cambridgeshire County Council,11-Jan-18,25387078-16653487,-1328.44,Care Management Group (64-66 Carlton),Care Establishment,4 - Operations - Providers services,LDP E Cambs Special Needs,Residential Independent Sector
Cambridgeshire County Council,11-Jan-18,25549784-16653774,-1328.44,Care Management Group (64-66 Carlton),Care Establishment,4 - Operations - Providers services,LDP E Cambs Special Needs,Residential Independent Sector
Cambridgeshire County Council,11-Jan-18,25549788-16653778,-1328.44,Care Management Group (64-66 Carlton),Care Establishment,4 - Operations - Providers services,LDP E Cambs Special Needs,Residential Independent Sector
Cambridgeshire County Council,11-Jan-18,25551698-16653812,-1328.44,Care Management Group (64-66 Carlton),Care Establishment,4 - Operations - Providers services,LDP E Cambs Special Needs,Residential Independent Sector
Cambridgeshire County Council,11-Jan-18,25551710-16653824,-1328.44,Care Management Group (64-66 Carlton),Care Establishment,4 - Operations - Providers services,LDP E Cambs Special Needs,Residential Independent Sector
Cambridgeshire County Council,11-Jan-18,25551720-16653834,-1328.44,Care Management Group (64-66 Carlton),Care Establishment,4 - Operations - Providers services,LDP E Cambs Special Needs,Residential Independent Sector
Cambridgeshire County Council,11-Jan-18,25552704-16653846,-1328.44,Care Management Group (64-66 Carlton),Care Establishment,4 - Operations - Providers services,LDP E Cambs Special Needs,Residential Independent Sector
Cambridgeshire County Council,11-Jan-18,25552712-16653854,-1328.44,Care Management Group (64-66 Carlton),Care Establishment,4 - Operations - Providers services,LDP E Cambs Special Needs,Residential Independent Sector
Cambridgeshire County Council,11-Jan-18,25392835-16653528,-1328.44,Care Management Group (64-66 Carlton),Care Establishment,4 - Operations - Providers services,LDP E Cambs Special Needs,Residential Independent Sector
Cambridgeshire County Council,11-Jan-18,25394581-16653539,-1328.44,Care Management Group (64-66 Carlton),Care Establishment,4 - Operations - Providers services,LDP E Cambs Special Needs,Residential Independent Sector
Cambridgeshire County Council,11-Jan-18,25392858-16653588,-1328.44,Care Management Group (64-66 Carlton),Care Establishment,4 - Operations - Providers services,LDP E Cambs Special Needs,Residential Independent Sector
Cambridgeshire County Council,11-Jan-18,25392876-16653606,-1328.44,Care Management Group (64-66 Carlton),Care Establishment,4 - Operations - Providers services,LDP E Cambs Special Needs,Residential Independent Sector
Cambridgeshire County Council,11-Jan-18,25392897-16653627,-1328.44,Care Management Group (64-66 Carlton),Care Establishment,4 - Operations - Providers services,LDP E Cambs Special Needs,Residential Independent Sector
Cambridgeshire County Council,11-Jan-18,25549715-16653705,-1328.44,Care Management Group (64-66 Carlton),Care Establishment,4 - Operations - Providers services,LDP E Cambs Special Needs,Residential Independent Sector
Cambridgeshire County Council,11-Jan-18,25549729-16653719,-1328.44,Care Management Group (64-66 Carlton),Care Establishment,4 - Operations - Providers services,LDP E Cambs Special Needs,Residential Independent Sector
Cambridgeshire County Council,11-Jan-18,25549730-16653720,-1328.44,Care Management Group (64-66 Carlton),Care Establishment,4 - Operations - Providers services,LDP E Cambs Special Needs,Residential Independent Sector
Cambridgeshire County Council,11-Jan-18,25549741-16653731,-1328.44,Care Management Group (64-66 Carlton),Care Establishment,4 - Operations - Providers services,LDP E Cambs Special Needs,Residential Independent Sector
Cambridgeshire County Council,11-Jan-18,25549744-16653734,-1328.44,Care Management Group (64-66 Carlton),Care Establishment,4 - Operations - Providers services,LDP E Cambs Special Needs,Residential Independent Sector
Cambridgeshire County Council,11-Jan-18,25549751-16653741,-1328.44,Care Management Group (64-66 Carlton),Care Establishment,4 - Operations - Providers services,LDP E Cambs Special Needs,Residential Independent Sector
Cambridgeshire County Council,11-Jan-18,25387134-16653445,-1328.44,Care Management Group (64-66 Carlton),Care Establishment,4 - Operations - Providers services,LDP E Cambs Special Needs,Residential Independent Sector
Cambridgeshire County Council,11-Jan-18,25387136-16653447,-1328.44,Care Management Group (64-66 Carlton),Care Establishment,4 - Operations - Providers services,LDP E Cambs Special Needs,Residential Independent Sector
Cambridgeshire County Council,11-Jan-18,25552696-16653914,-1328.44,Care Management Group (64-66 Carlton),Care Establishment,4 - Operations - Providers services,LDP E Cambs Special Needs,Residential Independent Sector
Cambridgeshire County Council,11-Jan-18,25552673-16653891,-1328.44,Care Management Group (64-66 Carlton),Care Establishment,4 - Operations - Providers services,LDP E Cambs Special Needs,Residential Independent Sector
Cambridgeshire County Council,11-Jan-18,25552688-16653906,-1328.44,Care Management Group (64-66 Carlton),Care Establishment,4 - Operations - Providers services,LDP E Cambs Special Needs,Residential Independent Sector
Cambridgeshire County Council,11-Jan-18,25552692-16653910,-1328.44,Care Management Group (64-66 Carlton),Care Establishment,4 - Operations - Providers services,LDP E Cambs Special Needs,Residential Independent Sector
Cambridgeshire County Council,11-Jan-18,25244943-16652891,-1328.44,Care Management Group (64-66 Carlton),Care Establishment,4 - Operations - Providers services,LDP E Cambs Special Needs,Residential Independent Sector
Cambridgeshire County Council,11-Jan-18,25246119-16652899,-1328.44,Care Management Group (64-66 Carlton),Care Establishment,4 - Operations - Providers services,LDP E Cambs Special Needs,Residential Independent Sector
Cambridgeshire County Council,11-Jan-18,25246124-16652904,-1328.44,Care Management Group (64-66 Carlton),Care Establishment,4 - Operations - Providers services,LDP E Cambs Special Needs,Residential Independent Sector
Cambridgeshire County Council,11-Jan-18,25249108-16652930,-1328.44,Care Management Group (64-66 Carlton),Care Establishment,4 - Operations - Providers services,LDP E Cambs Special Needs,Residential Independent Sector
Cambridgeshire County Council,11-Jan-18,25249115-16652937,-1328.44,Care Management Group (64-66 Carlton),Care Establishment,4 - Operations - Providers services,LDP E Cambs Special Needs,Residential Independent Sector
Cambridgeshire County Council,11-Jan-18,25249131-16652953,-1328.44,Care Management Group (64-66 Carlton),Care Establishment,4 - Operations - Providers services,LDP E Cambs Special Needs,Residential Independent Sector
Cambridgeshire County Council,11-Jan-18,25249132-16652954,-1328.44,Care Management Group (64-66 Carlton),Care Establishment,4 - Operations - Providers services,LDP E Cambs Special Needs,Residential Independent Sector
Cambridgeshire County Council,11-Jan-18,25250478-16652967,-1328.44,Care Management Group (64-66 Carlton),Care Establishment,4 - Operations - Providers services,LDP E Cambs Special Needs,Residential Independent Sector
Cambridgeshire County Council,11-Jan-18,25246067-16652982,-1328.44,Care Management Group (64-66 Carlton),Care Establishment,4 - Operations - Providers services,LDP E Cambs Special Needs,Residential Independent Sector
